Workbook

Sheet Estimar Flete
C2: COSTEADOR DE RUTAS COLOMBIA | O2: Tipo Vehìculo | Q2: Validación | S2: Auxiliares
I3: COSTOS 25% | O3: Carry | Q3: Sí | S3: 0
B4: Ruta | C4: MEDELLIN-CALI | F4: Distancia Km | G4: =VLOOKUP(C4,'peajes NACIONAL '!$B$2:$C$60,2,0) -> 425 | I4: NOMINA 10% | O4: Luv | Q4: No | S4: 1
F5: Tiempo Estimado | G5: =VLOOKUP(C4,'peajes NACIONAL '!B2:E60,4,0) -> 07:45:00 | O5: NHR | S5: 2
B6: URBANAS | F6: Viaje ida y vuelta | G6: Sí | O6: NKR | S6: 3
O7: NPR
B8: Ingresar | C8: Tipo de Vehículo | D8: tractomula | F8: Kilometraje Ruta | G8: =IF($G$6="Sí",G4*2,IF($G$6="no",G4)) -> 850 | I8: Horas Extra Conductor | J8: No | O8: Sencillo
C9: Vehículo con Refrigeración | D9: No | F9: Costo Galón Combustible | G9: 8900 | I9: Horas Nocturnas Ruta | J9: 0 | O9: dobletroque
C10: Lavado Furgón | D10: Sí | F10: Costo Peajes y Otros | G10: =VLOOKUP(C4,'peajes NACIONAL '!$B$2:$J$60,9,0) -> 366400 | O10: tractomula
C11: N° de Auxiliares Directos | D11: 1 | F11: Días de Duración de la Ruta | G11: 3
C12: N° de Auxiliares por Prestación | D12: 1 | F12: % utilidad propietario | G12: 0.2
C13: Alimentación | D13: Sí | F13: % utilidad nomina | G13: 0.07 | I13: % de Intermediación | J13: 0.2
F14: Horas Extra Generadas | G14: 0
B15: Datos de Salida | C15: Costo Personal Directo | D15: =IFERROR($D$11*'Costos Vehículo'!$H$30*$G$11,"") -> 447228.2556 | F15: Noches de hotel | G15: 2 | I15: Costo Personal x Prestación | J15: =IFERROR($D$12*'Costos Vehículo'!$H$31*$G$11,0) -> 258900
C16: Soat | D16: =IF(OR($D$8='Costos Vehículo'!$C$7,$D$8='Costos Vehículo'!$C$8,$D$8='Costos Vehículo'!$C$9,$D$8='Costos Vehículo'!$C$10,$D$8='Costos Vehículo'!$C$11,$D$8='Costos Vehículo'!$C$12,$D$8='Costos Vehículo'!$C$13),'Costos Vehículo'!$D$4/26,IF($D$8='Costos Vehículo'!$C$14,'Costos Vehículo'!$D$5/26,0))*G11 -> 7042.307692 | F16: Costo Variable x Km | G16: =IFERROR(IF($D$9="Sí",VLOOKUP($D$8,'Costos Vehículo'!$G$19:$L$26,6,0)*$G$8,VLOOKUP($D$8,'Costos Vehículo'!$G$19:$H$26,2,0)*$G$8),0) -> 1921838.292 | I16: Horas Extra Prestación ($) | J16: =IFERROR($G$14*SUM($D$12)*'Costos Vehículo'!$K$28+$J$9*'Costos Vehículo'!$K$30*$D$12,0) -> 0
C17: RTM | D17: =IFERROR(VLOOKUP($D$8,'Costos Vehículo'!$C$7:$D$14,2,0)/26,0)*G11 -> 3312.798077 | F17: Horas Extra Directos ($) | G17: =IFERROR(IF($J$8="Sí",$G$14*SUM($D$11)*'Costos Vehículo'!$K$29+$J$9*'Costos Vehículo'!$K$31*$D$11,0),0) -> 0 | I17: Alimentación Personal Prest | J17: =IF(AND($D$13="Sí",$G$11>1),'Costos Vehículo'!$I$13*SUM($D$12)+'Costos Vehículo'!$I$15*($G$11-1)*SUM($D$12),IF($D$13="Sí",'Costos Vehículo'!$I$13*SUM($D$12),0)) -> 300000
C18: Seguros | D18: =IFERROR(VLOOKUP($D$8,'Costos Vehículo'!$C$16:$D$23,2,0)/26,0)*G11 -> 101399.4231 | F18: Utilidad Propietario | G18: =+((G16+D16+D17+D18+D19+D20+D21+D22+D23+D24+D25+D26)*G12)+(D15*G13) -> 656471.046 | I18: Hospedaje Personal Prest | J18: =IF($G$11>1,'Costos Vehículo'!$I$14*SUM($D$12)*($G$11-1),0) -> 100000
C19: Monitoreo | D19: =IF($D$8<>"",'Costos Vehículo'!$D$25/26,0)*G11 -> 6153.846154 | F19: Rete Fuente | G19: =SUM(D15:D26,G16:G18)*'Costos Vehículo'!$H$29 -> 220527.4149
C20: Imp. Rodamiento | D20: =IFERROR(VLOOKUP($D$8,'Costos Vehículo'!$C$26:$D$33,2,0)/26,0)*G11 -> 11740.212
C21: Lavadas Generales | D21: =IF($D$8<>"",'Costos Vehículo'!$D$35/26,0)*G11 -> 11538.46154 | F21: Flete sugerido Propietario | G21: =SUM($D$15:$D$26,$G$16:$G$18) -> 4229524.642 | I21: Costo Ruta | J21: =SUM($G$21,$J$15:$J$18) -> 4888424.642
C22: Lavadas Furgón | D22: =IF($D$10="Sí",'Costos Vehículo'!$I$16,0) -> 50000
C23: Mtto Termo | D23: =IF($D$9="Sí",'Costos Vehículo'!$K$11/26,0) -> 0 | I23: Intermediación | J23: =J25-J21 -> 1222106.161
C24: Alimentación Directos | D24: =IF(AND($D$13="Sí",$G$11>1),'Costos Vehículo'!$I$13*SUM($D$11)+'Costos Vehículo'!$I$13*($G$11-1)*SUM($D$11),IF($D$13="Sí",'Costos Vehículo'!$I$13*SUM($D$11),0)) -> 180000
C25: Hospedaje Directos | D25: =IF(AND($D$13="Sí",$G$15>1),'Costos Vehículo'!$I$16*SUM($D$11)+'Costos Vehículo'!$I$16*($G$15-1)*SUM($D$11),IF($D$13="Sí",'Costos Vehículo'!$I$16*SUM($D$11),0)) -> 100000 | I25: Tarifa Cliente Sugerida | J25: =IFERROR($J$21/(1-$J$13),"") -> 6110530.803
C26: Peajes y Otros | D26: =IF($G$6="Sí",G10*2,IF($G$6="no",G10)) -> 732800

Sheet Salarios (hidden)
D1: Salario | E1: 1567125 | F1: 2675295
C2: CONCEPTOS | D2: Factor | E2: Costos Mes | F2: HO DOMINICAL FESTIVA 175% | G2: RN -35% | H2: HED-125% | I2: HEN - 175% | J2: RN DOMINICAL 110% | K2: RN DOMINICAL FESTIVO 210% | L2: HED DOMINICAL FESTIVA 200% | M2: HEN DOMINICAL FESTIVA 250% | O2: Costo x Persona x Dïa Empresa Temporal | P2: 86300
B3: Basico | C3: Salario | E3: =IF('Estimar Flete'!D8="TRACTOMULA",Salarios!F1,E1) -> 2675295 | F3: =(E3/240)*(175%) -> 19507.35938 | G3: =(E3/240)*35% -> 3901.471875 | H3: =(E3/240)*125% -> 13933.82812 | I3: =(E3/240)*175% -> 19507.35938 | J3: =(E3/240)*(35%+75%) -> 12261.76875 | K3: =(E3/240)*(35%+175%) -> 23408.83125 | L3: =(E3/240)*(175%+25%) -> 22294.125 | M3: =(E3/240)*(175%+75%) -> 27867.65625
C4: Auxilio de Transporte | E4: 0
C5: Total | E5: =SUM(E3:E4) -> 2675295 | F5: =SUM(F3:F4) -> 19507.35938 | G5: =SUM(G3:G4) -> 3901.471875 | H5: 13933.82812 | I5: 19507.35938 | J5: 12261.76875 | K5: 23408.83125 | L5: 22294.125 | M5: 27867.65625
B7: Prestaciones Sociales | C7: Cesantias | D7: 0.0833 | E7: =E5*D7 -> 222852.0735 | F7: =$F$5*D7 -> 1624.963036 | G7: =$G$5*D7 -> 324.9926072 | H7: =$H$5*D7 -> 1160.687883 | I7: =$I$5*D7 -> 1624.963036 | J7: =$J$5*D7 -> 1021.405337 | K7: =$K$5*D7 -> 1949.955643 | L7: =$L$5*D7 -> 1857.100612 | M7: =$M$5*D7 -> 2321.375766
C8: Intereses | D8: 0.01 | E8: =D8*E5 -> 26752.95 | F8: =$F$5*D8 -> 195.0735938 | G8: =$G$5*D8 -> 39.01471875 | H8: =$H$5*D8 -> 139.3382812 | I8: =$I$5*D8 -> 195.0735938 | J8: =$J$5*D8 -> 122.6176875 | K8: =$K$5*D8 -> 234.0883125 | L8: =$L$5*D8 -> 222.94125 | M8: =$M$5*D8 -> 278.6765625
C9: Prima de Servicios | D9: 0.0833 | E9: =E5*D9 -> 222852.0735 | F9: =$F$5*D9 -> 1624.963036 | G9: =$G$5*D9 -> 324.9926072 | H9: =$H$5*D9 -> 1160.687883 | I9: =$I$5*D9 -> 1624.963036 | J9: =$J$5*D9 -> 1021.405337 | K9: =$K$5*D9 -> 1949.955643 | L9: =$L$5*D9 -> 1857.100612 | M9: =$M$5*D9 -> 2321.375766
C10: Vacaciones | D10: 0.04165 | E10: =E3*D10 -> 111426.0367 | F10: =$F$5*D10 -> 812.481518 | G10: =$G$5*D10 -> 162.4963036 | H10: =$H$5*D10 -> 580.3439414 | I10: =$I$5*D10 -> 812.481518 | J10: =$J$5*D10 -> 510.7026684 | K10: =$K$5*D10 -> 974.9778216 | L10: =$L$5*D10 -> 928.5503062 | M10: =$M$5*D10 -> 1160.687883
C11: Provisión Descanso | D11: 0 | E11: =$E$3*D11 -> 0 | F11: =$F$5*D11 -> 0 | G11: =$G$5*D11 -> 0 | H11: =$H$5*D11 -> 0 | I11: =$I$5*D11 -> 0 | J11: =$J$5*D11 -> 0 | K11: =$K$5*D11 -> 0 | L11: =$L$5*D11 -> 0 | M11: =$M$5*D11 -> 0
C12: Total | D12: =SUM(D7:D11) -> 0.21825 | E12: 583883.1338 | F12: 4257.481184 | G12: 851.4962367 | H12: 3041.057988 | I12: 4257.481184 | J12: 2676.13103 | K12: 5108.97742 | L12: 4865.692781 | M12: 6082.115977
B14: Seguridad Social | C14: Salud | D14: 0 | E14: =$E$3*D14 -> 0 | F14: =F5*$D$14 -> 0 | G14: =G5*$D$14 -> 0 | H14: 0 | I14: 0 | J14: 0 | K14: 0 | L14: 0 | M14: 0
C15: Pensión | D15: 0.12 | E15: =$E$3*D15 -> 321035.4 | F15: =F5*$D$15 -> 2340.883125 | G15: =G5*$D$15 -> 468.176625 | H15: 1672.059375 | I15: 2340.883125 | J15: 1471.41225 | K15: 2809.05975 | L15: 2675.295 | M15: 3344.11875
C16: Riesgos Profesionales | D16: 0.0435 | E16: =$E$3*D16 -> 116375.3325 | F16: =F5*$D$16 -> 848.5701328 | G16: =G5*$D$16 -> 169.7140266 | H16: 606.1215234 | I16: 848.5701328 | J16: 533.3869406 | K16: 1018.284159 | L16: 969.7944375 | M16: 1212.243047
C17: Total | D17: =SUM(D14:D16) -> 0.1635 | E17: 437410.7325 | F17: 3189.453258 | G17: 637.8906516 | H17: 2278.180898 | I17: 3189.453258 | J17: 2004.799191 | K17: 3827.343909 | L17: 3645.089437 | M17: 4556.361797
B19: Parafiscales | C19: Caja de Compensación | D19: 0.04 | E19: =E3*$D$19 -> 107011.8 | F19: =F3*$D$19 -> 780.294375 | G19: 156.058875 | H19: 557.353125 | I19: 780.294375 | J19: 490.47075 | K19: 936.35325 | L19: 891.765 | M19: 1114.70625
C20: ICBF | D20: 0 | E20: =E3*$D$20 -> 0 | F20: =F3*$D$20 -> 0 | G20: 0 | H20: 0 | I20: 0 | J20: 0 | K20: 0 | L20: 0 | M20: 0
C21: Sena | D21: 0 | E21: =E3*$D$21 -> 0 | F21: =F3*$D$21 -> 0 | G21: 0 | H21: 0 | I21: 0 | J21: 0 | K21: 0 | L21: 0 | M21: 0
C22: Total | D22: =SUM(D19:D21) -> 0.04 | E22: 107011.8 | F22: 780.294375 | G22: 156.058875 | H22: 557.353125 | I22: 780.294375 | J22: 490.47075 | K22: 936.35325 | L22: 891.765 | M22: 1114.70625
B24: Costos Generales del Personal | C24: Basico | E24: =+E5 -> 2675295 | F24: =F5+F12+F17+F22 -> 27734.58819 | G24: =G5+G12+G17+G22 -> 5546.917638 | H24: =H5+H12+H17+H22 -> 19810.42014 | I24: 27734.58819 | J24: 17433.16972 | K24: 33281.50583 | L24: 31696.67222 | M24: 39620.84027
C25: Prestaciones Sociales | D25: =D12 -> 0.21825 | E25: =E12 -> 583883.1338 | F25: 0 | G25: 0 | H25: 0 | I25: 0 | J25: 0 | K25: 0 | L25: 0 | M25: 0
C26: Seguridad Social | D26: =D17 -> 0.1635 | E26: =D26*E3 -> 437410.7325 | F26: 0 | G26: 0 | H26: 0 | I26: 0 | J26: 0 | K26: 0 | L26: 0 | M26: 0
C27: Parafiscales | D27: =D22 -> 0.04 | E27: =E22 -> 107011.8 | F27: 0 | G27: 0 | H27: 0 | I27: 0 | J27: 0 | K27: 0 | L27: 0 | M27: 0
C28: Dotación | E28: 62817.5492 | F28: 0 | G28: 0 | H28: 0 | I28: 0 | J28: 0 | K28: 0 | L28: 0 | M28: 0
C29: Examenes Ocupacionales | E29: 9560
C30: Ausentismo SS & PS | D30: 0 | E30: =D30*E3 -> 0
C31: Bienestar | D31: 0 | E31: =E3*D31 -> 0 | F31: 0 | G31: 0 | H31: 0 | I31: 0 | J31: 0 | K31: 0 | L31: 0 | M31: 0
C32: Subtotal | E32: =SUM(E24:E31) -> 3875978.215 | F32: 0 | G32: 0 | H32: 0 | I32: 0 | J32: 0 | K32: 0 | L32: 0 | M32: 0
C33: Tarifa Operador | E33: 0 | F33: 0 | G33: 0 | H33: 0 | I33: 0 | J33: 0 | K33: 0 | L33: 0 | M33: 0
C34: ReteFuente | D34: 0 | E34: =+E33*D34 -> 0 | F34: =+F25*D34 -> 0 | G34: =+G25*$D$31 -> 0 | H34: 0 | I34: 0 | J34: 0 | K34: 0 | L34: 0 | M34: 0
C35: Costo Negocio | E35: =+E32+E33+E34 -> 3875978.215 | F35: =+F24+F33 -> 27734.58819 | G35: 5546.917638 | H35: 19810.42014 | I35: 27734.58819 | J35: 17433.16972 | K35: 33281.50583 | L35: 31696.67222 | M35: 39620.84027

Sheet Costos Vehículo (hidden)
P1: 1.0312
A2: <<<<<<<<<<<<< | B2: Costos | P2: Costos Variables x Kilómentro
B3: Seguros e Impuestos | D3: Mes | E3: Año 2019 | G3: Mantenimiento Termo | P3: Gtos Mtto | Q3: Carry | T3: Luv | W3: NHR | Z3: NKR | AC3: NPR | AF3: Sencillo | AI3: Dobletroque | AL3: TractoMula
B4: SOAT | C4: < 5 Ton | D4: =E4/12 -> 61033.33333 | E4: 732400 | G4: Descripción | H4: Cant | I4: Valor | J4: Frecuencia | K4: Total Mes | L4: Total Año | O4: 1.04 | Q4: Frec/km | R4: Precio | S4: $/Km | T4: Frec/km | U4: Precio | V4: $/Km | W4: Frec/km | X4: Precio | Y4: $/Km | Z4: Frec/km | AA4: Precio | AB4: $/Km | AC4: Frec/km | AD4: Precio | AE4: $/Km | AF4: Frecuencia / Km | AG4: Precio | AH4: $/Km | AI4: Frec/km | AJ4: Precio | AK4: $/Km | AL4: Frec/km | AM4: Precio | AN4: $/Km
C5: 5 - 15 Ton | D5: =E5/12 -> 88125 | E5: 1057500 | G5: Filtro de Aceite Motor | H5: 1 | I5: 36660.08808 | J5: 4 / Año | K5: =L5/12 -> 12220.02936 | L5: =I5*4 -> 146640.3523 | P5: Motor | Q5: 250000 | R5: 5003929.761 | S5: =R5/Q5 -> 20.01571904 | T5: 250000 | U5: 5204086.951 | V5: =U5/T5 -> 20.81634781 | W5: 250000 | X5: 6299596.444 | Y5: =X5/W5 -> 25.19838578 | Z5: 250000 | AA5: 6847415.323 | AB5: =AA5/Z5 -> 27.38966129 | AC5: 250000 | AD5: 8901704.052 | AE5: =AD5/AC5 -> 35.60681621 | AF5: 400000 | AG5: 14799782.4 | AH5: =AG5/AF5 -> 36.999456 | AI5: 550000 | AJ5: 19733043.2 | AK5: =AJ5/AI5 -> 35.87826036 | AL5: 350000 | AM5: 24666304 | AN5: =AM5/AL5 -> 70.47515429
C6: > 15 Ton | D6: =E6/12 -> 111416.6667 | E6: 1337000 | G6: Filtro de Aceite By Pass | H6: 1 | I6: 37517.634 | J6: 4 / Año | K6: 12505.878 | L6: 150070.536 | P6: Caja | Q6: 250000 | R6: 1975277.624 | S6: 7.901110497 | T6: 250000 | U6: 2054288.729 | V6: 8.217154917 | W6: 250000 | X6: 2465120.822 | Y6: 9.860483289 | Z6: 250000 | AA6: 2465120.822 | AB6: 9.860483289 | AC6: 250000 | AD6: 2738966.129 | AE6: 10.95586452 | AF6: 250000 | AG6: 3083288 | AH6: 12.333152 | AI6: 350000 | AJ6: 3699945.6 | AK6: 10.57127314 | AL6: 180000 | AM6: 4933260.8 | AN6: =AM6/AL6 -> 27.40700444
B7: Revisión Tecno Mecanica | C7: Carry | D7: =E7/12 -> 21101.91667 | E7: 253223 | G7: Filtro Combustible | H7: 1 | I7: 29263.75452 | J7: 4 / Año | K7: 9754.58484 | L7: 117055.0181 | P7: Embrague | Q7: 50000 | R7: 658466.9853 | S7: 13.16933971 | T7: 50000 | U7: 684805.6647 | V7: 13.69611329 | W7: 100000 | X7: 821664.1858 | Y7: 8.216641858 | Z7: 120000 | AA7: 821664.1858 | AB7: 6.847201548 | AC7: 120000 | AD7: 1095637.758 | AE7: 9.130314647 | AF7: 250000 | AG7: 1539177.37 | AH7: 6.156709478 | AI7: 300000 | AJ7: 3823277.12 | AK7: 12.74425707 | AL7: 300000 | AM7: 3823277.12 | AN7: 12.74425707
C8: Luv | D8: =E8/12 -> 21101.91667 | E8: 253223 | G8: Filtro de Aire | H8: 1 | I8: 34301.8368 | J8: 4 / Año | K8: 11433.9456 | L8: 137207.3472 | P8: Diferencial | Q8: 500000 | R8: 1053497.844 | S8: 2.106995688 | T8: 500000 | U8: 1095637.758 | V8: 2.191275515 | W8: 400000 | X8: 2054288.729 | Y8: 5.135721823 | Z8: 400000 | AA8: 2054288.729 | AB8: 5.135721823 | AC8: 180000 | AD8: 2054288.729 | AE8: 11.41271516 | AF8: 250000 | AG8: 2821825.178 | AH8: 11.28730071 | AI8: 350000 | AJ8: 3453282.56 | AK8: 9.8665216 | AL8: 350000 | AM8: 4933260.8 | AN8: 14.09503086
C9: NHR | D9: =E9/12 -> 21101.91667 | E9: 253223 | G9: Aceite 15W40 | H9: 10 | I9: 113839.2209 | J9: 4 / Año | K9: 37946.40696 | L9: 455356.8835 | P9: Frenos | Q9: 15000 | R9: 197577.095 | S9: 13.17180634 | T9: 15000 | U9: 205480.1788 | V9: 13.69867859 | W9: 30000 | X9: 547818.8788 | Y9: 18.26062929 | Z9: 30000 | AA9: 547818.8788 | AB9: 18.26062929 | AC9: 30000 | AD9: 1095637.758 | AE9: 36.52125859 | AF9: 30000 | AG9: 1139463.268 | AH9: 37.98210893 | AI9: 40000 | AJ9: 1479978.24 | AK9: 36.999456 | AL9: 40000 | AM9: 3083288 | AN9: 77.0822
C10: NKR | D10: 21101.91667 | E10: 253223 | G10: Mano de Obra | H10: 1 | I10: 137314.5404 | J10: 4 / Año | K10: 45771.51348 | L10: 549258.1618 | P10: Dirección | Q10: 120000 | R10: 658466.9853 | S10: 5.487224877 | T10: 120000 | U10: 684805.6647 | V10: 5.706713872 | W10: 250000 | X10: 958650.9717 | Y10: 3.834603887 | Z10: 250000 | AA10: 958650.9717 | AB10: 3.834603887 | AC10: 250000 | AD10: 958650.9717 | AE10: 3.834603887 | AF10: 250000 | AG10: 996997.0106 | AH10: 3.987988042 | AI10: 120000 | AJ10: 369994.56 | AK10: 3.083288 | AL10: 120000 | AM10: 431660.32 | AN10: 3.597169333
C11: NPR | D11: 28710.91667 | E11: 344531 | G11: Total | K11: =SUM(K5:K10) -> 129632.3582 | L11: =SUM(L5:L10) -> 1555588.299 | P11: Electricos | Q11: 250000 | R11: 1053497.844 | S11: 4.213991375 | T11: 250000 | U11: 1095637.758 | V11: 4.38255103 | W11: 350000 | X11: 1643328.372 | Y11: 4.695223919 | Z11: 350000 | AA11: 1643328.372 | AB11: 4.695223919 | AC11: 350000 | AD11: 1643328.372 | AE11: 4.695223919 | AF11: 250000 | AG11: 1233315.2 | AH11: 4.9332608 | AI11: 250000 | AJ11: 2466630.4 | AK11: 9.8665216 | AL11: 250000 | AM11: 2466630.4 | AN11: 9.8665216
C12: dobletroque | D12: 28710.91667 | E12: 344531 | P12: Suspención | Q12: 50000 | R12: 426666.6268 | S12: 8.533332535 | T12: 50000 | U12: 493036.9909 | V12: 9.860739818 | W12: 120000 | X12: 547818.8788 | Y12: 4.565157323 | Z12: 120000 | AA12: 547818.8788 | AB12: 4.565157323 | AC12: 120000 | AD12: 684805.6647 | AE12: 5.706713872 | AF12: 40000 | AG12: 345328.256 | AH12: 8.6332064 | AI12: 40000 | AJ12: 1849972.8 | AK12: 46.24932 | AL12: 40000 | AM12: 1849972.8 | AN12: 46.24932
C13: tractomula | D13: =E13/12 -> 28710.91667 | E13: 344531 | G13: Alimentación Día/Persona | I13: 60000 | P13: Eje Delantero | Q13: 0.1 | R13: 0 | S13: 0 | T13: 0.1 | U13: 0 | V13: 0 | W13: 150000 | X13: 273845.307 | Y13: 1.82563538 | Z13: 150000 | AA13: 273845.307 | AB13: 1.82563538 | AC13: 120000 | AD13: 273845.307 | AE13: 2.282044225 | AF13: 120000 | AG13: 616657.6 | AH13: 5.138813333 | AI13: 120000 | AJ13: 986652.16 | AK13: 8.222101333 | AL13: 120000 | AM13: 1233315.2 | AN13: 10.27762667
C14: Sencillo | D14: 28710.91667 | E14: 344531 | G14: Hospedaje Día/Persona | I14: 50000 | P14: Eje Trasero | Q14: 60000 | R14: 237043.1814 | S14: 3.950719691 | T14: 60000 | U14: 246524.9087 | V14: 4.108748478 | W14: 130000 | X14: 142373.9067 | Y14: 1.095183898 | Z14: 130000 | AA14: 142373.9067 | AB14: 1.095183898 | AC14: 120000 | AD14: 205480.1788 | AE14: 1.712334824 | AF14: 120000 | AG14: 221996.736 | AH14: 1.8499728 | AI14: 120000 | AJ14: 295995.648 | AK14: 2.4666304 | AL14: 120000 | AM14: 616657.6 | AN14: 5.138813333
G15: Alimentación Día/Persona (>= 2 Días) | I15: =I13*2 -> 120000 | P15: Sub Total | S15: =SUM(S5:S14) -> 78.55023975 | U15: 0 | V15: =SUM(V5:V14) -> 82.67832332 | Y15: =SUM(Y5:Y14) -> 82.68766645 | AB15: =SUM(AB5:AB14) -> 83.50950165 | AE15: =SUM(AE5:AE14) -> 121.8578898 | AH15: =SUM(AH5:AH14) -> 129.3019685 | AK15: =SUM(AK5:AK14) -> 175.9476295 | AN15: =SUM(AN5:AN14) -> 276.9330976
B16: Seguros | C16: Carry | D16: =E16/12 -> 163768.4609 | E16: 1965221.53 | G16: Lavado Furgón | I16: 50000 | P16: Combustible | Q16: 30 | R16: ='Estimar Flete'!$G$9 -> 8900 | S16: =R16/Q16 -> 296.6666667 | T16: 23 | U16: =R16 -> 8900 | V16: =U16/T16 -> 386.9565217 | W16: 20 | X16: =R16 -> 8900 | Y16: =X16/W16 -> 445 | Z16: 19 | AA16: =R16 -> 8900 | AB16: =AA16/Z16 -> 468.4210526 | AC16: 17 | AD16: =R16 -> 8900 | AE16: =AD16/AC16 -> 523.5294118 | AF16: 10 | AG16: =R16 -> 8900 | AH16: =AG16/AF16 -> 890 | AI16: 9.7 | AJ16: =R16 -> 8900 | AK16: =AJ16/AI16 -> 917.5257732 | AL16: 5.4 | AM16: =AJ16 -> 8900 | AN16: =AM16/AL16 -> 1648.148148
C17: Luv | D17: =E17/12 -> 181964.9565 | E17: 2183579.478 | P17: Juego de Llantas | Q17: 60000 | R17: 1236639.789 | S17: 20.61066315 | T17: 60000 | U17: 1479021.187 | V17: 24.65035312 | W17: 60000 | X17: 2191147.25 | Y17: 36.51912084 | Z17: 40000 | AA17: 3286785.008 | AB17: 82.1696252 | AC17: 60000 | AD17: 4930113.38 | AE17: 82.16855633 | AF17: 80000 | AG17: 6402977.858 | AH17: 80.03722322 | AI17: 120000 | AJ17: 12333152 | AK17: 102.7762667 | AL17: 120000 | AM17: 27132934.4 | AN17: 226.1077867 | AP17: =AM17/22 -> 1233315.2 | AQ17: =AP17/AL17 -> 10.27762667
C18: NHR | D18: =E18/12 -> 186048.1343 | E18: 2232577.611 | G18: Tipo Vehículo | H18: Costo Vble x Km | I18: Cost sin Combust | J18: Rend/Galón | K18: Refrigerado | L18: Vble x Km Ref | P18: Aceite Motor 8/4 | Q18: 5000 | R18: 171806.1696 | S18: 34.36123392 | T18: 5000 | U18: 205480.1788 | V18: 41.09603577 | W18: 5000 | X18: 109538.1228 | Y18: 21.90762456 | Z18: 5000 | AA18: 109538.1228 | AB18: 21.90762456 | AC18: 5000 | AD18: 191755.8473 | AE18: 38.35116946 | AF18: 5000 | AG18: 209663.584 | AH18: 41.9327168 | AI18: 15000 | AJ18: 863320.64 | AK18: 57.55470933 | AL18: 15000 | AM18: 1109983.68 | AN18: 73.998912 | AQ18: =2500000/270000 -> 9.259259259
C19: NKR | D19: 304639.334 | E19: 3655672.008 | G19: Carry | H19: =$S$27 -> 433.2417055 | I19: =S26 -> 136.5750388 | J19: =Q16 -> 30 | K19: =J19-3 -> 27 | L19: =I19+$R$16/J19 -> 433.2417055 | P19: Filtro Aceite | Q19: 0.1 | R19: 0 | S19: 0 | T19: 0.1 | U19: 0 | V19: 0 | W19: 5000 | X19: 17700.53975 | Y19: 3.54010795 | Z19: 5000 | AA19: 17700.53975 | AB19: 3.54010795 | AC19: 5000 | AD19: 34888.02038 | AE19: 6.977604076 | AF19: 5000 | AG19: 44399.3472 | AH19: 8.87986944 | AI19: 15000 | AJ19: 117164.944 | AK19: 7.810996267 | AL19: 15000 | AM19: 184997.28 | AN19: 12.333152 | AQ19: =+AQ18*22 -> 203.7037037
C20: NPR | D20: 578816.0703 | E20: 6945792.844 | G20: Luv | H20: =$V$27 -> 539.0325047 | I20: =V26 -> 152.075983 | J20: =T16 -> 23 | K20: =J20-3 -> 20 | L20: =I20+$R$16/J20 -> 539.0325047 | P20: Filtro Combustible | Q20: 0.1 | R20: 0 | S20: 0 | T20: 0.1 | U20: 0 | V20: 0 | W20: 5000 | X20: 16161.36238 | Y20: 3.232272476 | Z20: 5000 | AA20: 16161.36238 | AB20: 3.232272476 | AC20: 5000 | AD20: 109538.1228 | AE20: 21.90762456 | AF20: 5000 | AG20: 109538.1228 | AH20: 21.90762456 | AI20: 15000 | AJ20: 96198.5856 | AK20: 6.41323904 | AL20: 15000 | AM20: 14183.1248 | AN20: 0.9455416533
C21: Dobletroque | D21: =E21/12 -> 878795 | E21: 10545540 | G21: NHR | H21: =Y27 -> 609.3110975 | I21: =Y26 -> 164.3110975 | J21: =W16 -> 20 | K21: =J21-3 -> 17 | L21: 609.3110975 | P21: Filtro Aire | Q21: 0.1 | R21: 0 | S21: 0 | T21: 0.1 | U21: 0 | V21: 0 | W21: 5000 | X21: 36170.66819 | Y21: 7.234133637 | Z21: 5000 | AA21: 36170.66819 | AB21: 7.234133637 | AC21: 5000 | AD21: 35529.34428 | AE21: 7.105868856 | AF21: 12000 | AG21: 110998.368 | AH21: 9.249864 | AI21: 30000 | AJ21: 246663.04 | AK21: 8.222101333 | AL21: 30000 | AM21: 246663.04 | AN21: 8.222101333
C22: Tractomula | D22: =E22/12 -> 878795 | E22: 10545540 | G22: NKR | H22: =AB27 -> 679.2718287 | I22: =AB26 -> 210.850776 | J22: =Z16 -> 19 | K22: =J22-3 -> 16 | L22: 679.2718287 | P22: Aceite Caja de Cambios | Q22: 30000 | R22: 91587.0592 | S22: 3.052901973 | T22: 30000 | U22: 109538.1228 | V22: 3.65127076 | W22: 40000 | X22: 41044.72986 | Y22: 1.026118246 | Z22: 40000 | AA22: 41044.72986 | AB22: 1.026118246 | AC22: 40000 | AD22: 68493.39295 | AE22: 1.712334824 | AF22: 72000 | AG22: 246663.04 | AH22: 3.425875556 | AI22: 250000 | AJ22: 443993.472 | AK22: 1.775973888 | AL22: 250000 | AM22: 443993.472 | AN22: 1.775973888
C23: Sencillo | D23: 608987.5538 | E23: 7307850.645 | G23: NPR | H23: =AE27 -> 815.583977 | I23: =AE26 -> 292.0545652 | J23: =AC16 -> 17 | K23: =J23-3 -> 14 | L23: 815.583977 | P23: Aceite Diferencial | Q23: 0.1 | R23: 0 | S23: 0 | T23: 0.1 | U23: 0 | V23: 0 | W23: 40000 | X23: 52075.501 | Y23: 1.301887525 | Z23: 40000 | AA23: 54769.0614 | AB23: 1.369226535 | AC23: 40000 | AD23: 68493.39295 | AE23: 1.712334824 | AF23: 72000 | AG23: 443993.472 | AH23: 6.166576 | AI23: 250000 | AJ23: 887986.944 | AK23: 3.551947776 | AL23: 250000 | AM23: 887986.944 | AN23: 3.551947776
G24: Dobletroque | H24: =+AK27 -> 1290.548202 | I24: =+AK26 -> 373.0224289 | J24: =+AI16 -> 9.7 | K24: =J24-2 -> 7.7 | L24: 1290.548202 | P24: Engrase | Q24: 0.1 | R24: 0 | S24: 0 | T24: 0.1 | U24: 0 | V24: 0 | W24: 2000 | X24: 13724.33155 | Y24: 6.862165773 | Z24: 2000 | AA24: 13724.33155 | AB24: 6.862165773 | AC24: 2000 | AD24: 20522.36493 | AE24: 10.26118246 | AF24: 2000 | AG24: 20522.36493 | AH24: 10.26118246 | AI24: 4400 | AJ24: 39466.0864 | AK24: 8.969565091 | AL24: 4400 | AM24: 39466.0864 | AN24: 8.969565091
B25: Sistema de Monitoreo | D25: =E25/12 -> 53333.33333 | E25: 640000 | G25: Tractomula | H25: =+AN27 -> 2260.986226 | I25: =+AN26 -> 612.838078 | J25: =+AL16 -> 5.4 | K25: =J25-2 -> 3.4 | L25: 2260.986226 | P25: Sub Total | S25: =SUM(S16:S24) -> 354.6914657 | V25: =SUM(V16:V24) -> 456.3541814 | Y25: =SUM(Y16:Y24) -> 526.623431 | AB25: =SUM(AB16:AB24) -> 595.762327 | AE25: =SUM(AE16:AE24) -> 693.7260872 | AH25: =SUM(AH16:AH24) -> 1071.860932 | AK25: =SUM(AK16:AK24) -> 1114.600573 | AN25: =SUM(AN16:AN24) -> 1984.053129
B26: Impto de Rodamiento | C26: Carry | D26: =E26/12 -> 23101.53534 | E26: 277218.4241 | G26: Sencillo | H26: =AH27 -> 1201.162901 | I26: =AH26 -> 311.1629005 | J26: =AF16 -> 10 | K26: =J26-2 -> 8 | L26: 1201.162901 | S26: =S27-S16 -> 136.5750388 | V26: =V27-V16 -> 152.075983 | Y26: =Y27-Y16 -> 164.3110975 | AB26: =AB27-AB16 -> 210.850776 | AE26: =AE27-AE16 -> 292.0545652 | AH26: =AH27-AH16 -> 311.1629005 | AK26: =AK27-AK16 -> 373.0224289 | AN26: =AN27-AN16 -> 612.838078
C27: Luv | D27: =E27/12 -> 25668.3726 | E27: 308020.4712 | G27: Concepto | H27: % / Valor | J27: Concepto | K27: Valor | P27: Total $ / Km Recorrido | S27: =S15+S25 -> 433.2417055 | V27: =V15+V25 -> 539.0325047 | Y27: =Y15+Y25 -> 609.3110975 | AB27: =AB15+AB25 -> 679.2718287 | AE27: =AE15+AE25 -> 815.583977 | AH27: =AH15+AH25 -> 1201.162901 | AK27: =AK15+AK25 -> 1290.548202 | AN27: =AN15+AN25 -> 2260.986226
C28: NHR | D28: 51197.99724 | E28: 614375.9669 | G28: % de Intermediación | H28: ='Estimar Flete'!J13 -> 0.2 | J28: Hora Extra Pres | K28: =Salarios!P2/8*1.25 -> 13484.375
C29: NKR | D29: 57996.64728 | E29: 695959.7674 | G29: Retención en la Fuente | H29: 0.05214 | J29: Hora Extra Dir | K29: =Salarios!H35 -> 19810.42014
C30: NPR | D30: 78623.844 | E30: 943486.128 | G30: Costo x Persona Día | H30: =Salarios!$E$35/26 -> 149076.0852 | J30: Recargo Nocturno Pre | K30: =H31/8*0.35 -> 3775.625
C31: Dobletroque | D31: =E31/12 -> 101748.504 | E31: 1220982.048 | G31: Costo x Persona Día Temp | H31: =Salarios!P2 -> 86300 | J31: Recargo Nocturno Dir | K31: =Salarios!$G$35 -> 5546.917638
C32: Tractomula | D32: =E32/12 -> 101748.504 | E32: 1220982.048
C33: Sencillo | D33: 101748.504 | E33: 1220982.048
B35: Lavados | D35: 100000 | E35: =D35*12 -> 1200000
D38: año | E38: Plataforma de Monitoreo | H38: 640000
D39: año | E39: Monitoreo + alquiler caja | H39: 1801660
D40: año | E40: Monitoreo + caja (si es el proveedor actual) | H40: 1642200
D41: año | E41: Monitoreo + caja (si es con instalación de GPS) | H41: 2237200

Sheet Rutas (hidden)
A2: Nombre Ruta | B2: Tipo de Vehículo | C2: TIEMPO ESTIMADO | D2: Vehículo con Refrigeración | E2: Lavado Furgón | F2: N° de Auxiliares Directos | G2: N° de Auxiliares por Prestación | H2: Alimentación | I2: Kilometraje Ruta | J2: Costo Galón Combustible | K2: Costo Peajes y Otros | M2: % de Utilidad Propietario | N2: Horas Extra Generadas | O2: Horas Extra Conductor | P2: % de Intermediación | Q2: Costo Personal Directo | R2: Soat | S2: RTM | T2: Seguros | U2: Monitoreo | V2: Imp. Rodamiento | W2: Lavadas Generales | X2: Lavadas Furgón | Y2: Mtto Termo | Z2: Alimentación Directos | AA2: Hospedaje Directos | AB2: Peajes y Otros | AC2: Costo Variable x Km | AD2: Horas Extra Directos ($) | AE2: Utilidad Propietario | AF2: Rete Fuente | AG2: Flete sugerido Propietario | AH2: Costo Personal x Prestación | AI2: Horas Extra Prestación ($) | AJ2: Alimentación Personal Prest | AK2: Hospedaje Personal Prest | AL2: Total Costo Aux | AM2: Costo Ruta | AN2: Intermediación | AO2: Tarifa Cliente Sugerida | AR2: Flete Propietario | AS2: Tarifa Cliente
A3: BARRANQUILLA_BOSCONIA | B3: tractomula | C3: =VLOOKUP(A3,'peajes NACIONAL '!$B$2:$E$59,4,0) -> 03:38:00 | D3: No | E3: Sí | F3: 1 | G3: 1 | H3: Sí | I3: =VLOOKUP(A3,'[1]NACIONAL '!B$2:C$58,2,0) -> 207 | J3: 8871 | K3: =VLOOKUP(A3,'peajes NACIONAL '!$B$2:$I$59,8,0) -> 136200 | L3: 1 | M3: 0.18 | N3: 1 | O3: Sí | P3: 0.185 | Q3: =IFERROR(F3*'Costos Vehículo'!$H$30*L3,"") -> 149076.0852 | R3: =IF(OR(B3='Costos Vehículo'!$C$7,B3='Costos Vehículo'!$C$8,B3='Costos Vehículo'!$C$9,B3='Costos Vehículo'!$C$10,B3='Costos Vehículo'!$C$11),'Costos Vehículo'!$D$4/26,IF(B3='Costos Vehículo'!$C$14,'Costos Vehículo'!$D$5/26,0)) -> 0 | S3: =IFERROR(VLOOKUP(B3,'Costos Vehículo'!$C$7:$D$14,2,0)/26,0) -> 1104.266026 | T3: =IFERROR(VLOOKUP(B3,'Costos Vehículo'!$C$16:$D$23,2,0)/26,0) -> 33799.80769 | U3: =IF(B3<>"",'Costos Vehículo'!$D$25/26,0) -> 2051.282051 | V3: =IFERROR(VLOOKUP(B3,'Costos Vehículo'!$C$26:$D$33,2,0)/26,0) -> 3913.404 | W3: =IF(B3<>"",'Costos Vehículo'!$D$35/26,0) -> 3846.153846 | X3: =IF(E3="Sí",'Costos Vehículo'!$I$16,0) -> 50000 | Y3: =IF(D3="Sí",'Costos Vehículo'!$K$11/26,0) -> 0 | Z3: =IF(AND(H3="Sí",L3>1),'Costos Vehículo'!$I$13*SUM(F3)+'Costos Vehículo'!$I$15*(L3-1)*SUM(F3),IF(H3="Sí",'Costos Vehículo'!$I$13*SUM(F3),0)) -> 60000 | AA3: =IF(L3>1,'Costos Vehículo'!$I$14*SUM(F3)*(L3-1),0) -> 0 | AB3: =IFERROR(K3,0) -> 136200 | AC3: =IFERROR(IF(D3="Sí",(VLOOKUP(B3,'Costos Vehículo'!$G$19:$I$26,3,0)+J3/VLOOKUP(B3,'Costos Vehículo'!$G$19:$L$26,5,0))*I3,(VLOOKUP(B3,'Costos Vehículo'!$G$19:$I$26,3,0)+J3/VLOOKUP(B3,'Costos Vehículo'!$G$19:$J$26,4,0))*I3),0) -> 466912.4821 | AD3: =IFERROR(IF(O3="Sí",N3*SUM(F3)*'Costos Vehículo'!$K$29,0),0) -> 19810.42014 | AE3: =IFERROR(SUM(Q3:AD3)/(1-M3)-SUM(Q3:AD3),0) -> 203425.0027 | AF3: =SUM(Q3:AE3)*'Costos Vehículo'!$H$29 -> 58925.44244 | AG3: =SUM(Q3:AF3) -> 1189064.346 | AH3: =IFERROR(G3*'Costos Vehículo'!$H$31*L3,0) -> 86300 | AI3: =IFERROR(N3*SUM(G3)*'Costos Vehículo'!$K$28,0) -> 13484.375 | AJ3: =IF(AND(H3="Sí",L3>1),'Costos Vehículo'!$I$13*SUM(G3)+'Costos Vehículo'!$I$15*(L3-1)*SUM(G3),IF(H3="Sí",'Costos Vehículo'!$I$13*SUM(G3),0)) -> 60000 | AK3: =IF(L3>1,'Costos Vehículo'!$I$14*SUM(G3)*(L3-1),0) -> 0 | AL3: =SUM(AH3:AK3) -> 159784.375 | AM3: =SUM(AG3:AK3) -> 1348848.721 | AN3: =AO3-AM3 -> 306180.3846 | AO3: =IFERROR(AM3/(1-P3),"") -> 1655029.106 | AR3: 122000 | AS3: 153000 | AV3: =SUM(AH3:AK3) -> 159784.375
A4: BARRANQUILLA_SANTA MARTA | B4: dobletroque | C4: =VLOOKUP(A4,'peajes NACIONAL '!$B$2:$E$59,4,0) -> 01:56:00 | D4: No | E4: Sí | F4: 1 | G4: 1 | H4: Sí | I4: =VLOOKUP(A4,'[1]NACIONAL '!B$2:C$58,2,0) -> 105 | J4: 8871 | K4: =VLOOKUP(A4,'peajes NACIONAL '!$B$2:$I$59,8,0) -> 42800 | L4: 1 | M4: 0.18 | N4: 1 | O4: Sí | P4: 0.185 | Q4: =IFERROR(F4*'Costos Vehículo'!$H$30*L4,"") -> 149076.0852 | R4: =IF(OR(B4='Costos Vehículo'!$C$7,B4='Costos Vehículo'!$C$8,B4='Costos Vehículo'!$C$9,B4='Costos Vehículo'!$C$10,B4='Costos Vehículo'!$C$11),'Costos Vehículo'!$D$4/26,IF(B4='Costos Vehículo'!$C$14,'Costos Vehículo'!$D$5/26,0)) -> 0 | S4: =IFERROR(VLOOKUP(B4,'Costos Vehículo'!$C$7:$D$14,2,0)/26,0) -> 1104.266026 | T4: =IFERROR(VLOOKUP(B4,'Costos Vehículo'!$C$16:$D$23,2,0)/26,0) -> 33799.80769 | U4: =IF(B4<>"",'Costos Vehículo'!$D$25/26,0) -> 2051.282051 | V4: =IFERROR(VLOOKUP(B4,'Costos Vehículo'!$C$26:$D$33,2,0)/26,0) -> 3913.404 | W4: =IF(B4<>"",'Costos Vehículo'!$D$35/26,0) -> 3846.153846 | X4: =IF(E4="Sí",'Costos Vehículo'!$I$16,0) -> 50000 | Y4: =IF(D4="Sí",'Costos Vehículo'!$K$11/26,0) -> 0 | Z4: =IF(AND(H4="Sí",L4>1),'Costos Vehículo'!$I$13*SUM(F4)+'Costos Vehículo'!$I$15*(L4-1)*SUM(F4),IF(H4="Sí",'Costos Vehículo'!$I$13*SUM(F4),0)) -> 60000 | AA4: =IF(L4>1,'Costos Vehículo'!$I$14*SUM(F4)*(L4-1),0) -> 0 | AB4: =IFERROR(K4,0) -> 42800 | AC4: =IFERROR(IF(D4="Sí",(VLOOKUP(B4,'Costos Vehículo'!$G$19:$I$26,3,0)+J4/VLOOKUP(B4,'Costos Vehículo'!$G$19:$L$26,5,0))*I4,(VLOOKUP(B4,'Costos Vehículo'!$G$19:$I$26,3,0)+J4/VLOOKUP(B4,'Costos Vehículo'!$G$19:$J$26,4,0))*I4),0) -> 135193.6437 | AD4: =IFERROR(IF(O4="Sí",N4*SUM(F4)*'Costos Vehículo'!$K$29,0),0) -> 19810.42014 | AE4: =IFERROR(SUM(Q4:AD4)/(1-M4)-SUM(Q4:AD4),0) -> 110106.2333 | AF4: =SUM(Q4:AE4)*'Costos Vehículo'!$H$29 -> 31894.10557 | AG4: =SUM(Q4:AF4) -> 643595.4015 | AH4: =IFERROR(G4*'Costos Vehículo'!$H$31*L4,0) -> 86300 | AI4: =IFERROR(N4*SUM(G4)*'Costos Vehículo'!$K$28,0) -> 13484.375 | AJ4: =IF(AND(H4="Sí",L4>1),'Costos Vehículo'!$I$13*SUM(G4)+'Costos Vehículo'!$I$15*(L4-1)*SUM(G4),IF(H4="Sí",'Costos Vehículo'!$I$13*SUM(G4),0)) -> 60000 | AK4: =IF(L4>1,'Costos Vehículo'!$I$14*SUM(G4)*(L4-1),0) -> 0 | AL4: =SUM(AH4:AK4) -> 159784.375 | AM4: =SUM(AG4:AK4) -> 803379.7765 | AN4: =AO4-AM4 -> 182362.2806 | AO4: =IFERROR(AM4/(1-P4),"") -> 985742.057 | AR4: 165000 | AS4: 207000 | AV4: 159784.375
A5: BARRANQUILLA_VALLEDUPAR | B5: NHR | C5: =VLOOKUP(A5,'peajes NACIONAL '!$B$2:$E$59,4,0) -> 05:35:00 | D5: No | E5: Sí | F5: 1 | G5: 1 | H5: Sí | I5: =VLOOKUP(A5,'[1]NACIONAL '!B$2:C$58,2,0) -> 295 | J5: 8871 | K5: =VLOOKUP(A5,'peajes NACIONAL '!$B$2:$I$59,8,0) -> 127600 | L5: 1 | M5: 0.18 | N5: 1 | O5: Sí | P5: 0.185 | Q5: =IFERROR(F5*'Costos Vehículo'!$H$30*L5,"") -> 149076.0852 | R5: =IF(OR(B5='Costos Vehículo'!$C$7,B5='Costos Vehículo'!$C$8,B5='Costos Vehículo'!$C$9,B5='Costos Vehículo'!$C$10,B5='Costos Vehículo'!$C$11),'Costos Vehículo'!$D$4/26,IF(B5='Costos Vehículo'!$C$14,'Costos Vehículo'!$D$5/26,0)) -> 2347.435897 | S5: =IFERROR(VLOOKUP(B5,'Costos Vehículo'!$C$7:$D$14,2,0)/26,0) -> 811.6121795 | T5: =IFERROR(VLOOKUP(B5,'Costos Vehículo'!$C$16:$D$23,2,0)/26,0) -> 7155.697472 | U5: =IF(B5<>"",'Costos Vehículo'!$D$25/26,0) -> 2051.282051 | V5: =IFERROR(VLOOKUP(B5,'Costos Vehículo'!$C$26:$D$33,2,0)/26,0) -> 1969.15374 | W5: =IF(B5<>"",'Costos Vehículo'!$D$35/26,0) -> 3846.153846 | X5: =IF(E5="Sí",'Costos Vehículo'!$I$16,0) -> 50000 | Y5: =IF(D5="Sí",'Costos Vehículo'!$K$11/26,0) -> 0 | Z5: =IF(AND(H5="Sí",L5>1),'Costos Vehículo'!$I$13*SUM(F5)+'Costos Vehículo'!$I$15*(L5-1)*SUM(F5),IF(H5="Sí",'Costos Vehículo'!$I$13*SUM(F5),0)) -> 60000 | AA5: =IF(L5>1,'Costos Vehículo'!$I$14*SUM(F5)*(L5-1),0) -> 0 | AB5: 127600 | AC5: =IFERROR(IF(D5="Sí",(VLOOKUP(B5,'Costos Vehículo'!$G$19:$I$26,3,0)+J5/VLOOKUP(B5,'Costos Vehículo'!$G$19:$L$26,5,0))*I5,(VLOOKUP(B5,'Costos Vehículo'!$G$19:$I$26,3,0)+J5/VLOOKUP(B5,'Costos Vehículo'!$G$19:$J$26,4,0))*I5),0) -> 179319.0237 | AD5: =IFERROR(IF(O5="Sí",N5*SUM(F5)*'Costos Vehículo'!$K$29,0),0) -> 19810.42014 | AE5: 132582.4824 | AF5: =SUM(Q5:AE5)*'Costos Vehículo'!$H$29 -> 38404.72574 | AG5: 774974.0724 | AH5: =IFERROR(G5*'Costos Vehículo'!$H$31*L5,0) -> 86300 | AI5: =IFERROR(N5*SUM(G5)*'Costos Vehículo'!$K$28,0) -> 13484.375 | AJ5: =IF(AND(H5="Sí",L5>1),'Costos Vehículo'!$I$13*SUM(G5)+'Costos Vehículo'!$I$15*(L5-1)*SUM(G5),IF(H5="Sí",'Costos Vehículo'!$I$13*SUM(G5),0)) -> 60000 | AK5: =IF(L5>1,'Costos Vehículo'!$I$14*SUM(G5)*(L5-1),0) -> 0 | AL5: 159784.375 | AM5: 934758.4474 | AN5: 212184.4329 | AO5: 1146942.88 | AR5: 141000 | AS5: 177000 | AV5: 159784.375
A6: BOGOTA_AQUITANIA | B6: dobletroque | C6: =VLOOKUP(A6,'peajes NACIONAL '!$B$2:$E$59,4,0) -> 04:15:00 | D6: No | E6: Sí | F6: 1 | G6: 1 | H6: Sí | I6: =VLOOKUP(A6,'[1]NACIONAL '!B$2:C$58,2,0) -> 244 | J6: 8871 | K6: =VLOOKUP(A6,'peajes NACIONAL '!$B$2:$I$59,8,0) -> 132600 | L6: 1 | M6: 0.18 | N6: 1 | O6: Sí | P6: 0.185 | Q6: =IFERROR(F6*'Costos Vehículo'!$H$30*L6,"") -> 149076.0852 | R6: =IF(OR(B6='Costos Vehículo'!$C$7,B6='Costos Vehículo'!$C$8,B6='Costos Vehículo'!$C$9,B6='Costos Vehículo'!$C$10,B6='Costos Vehículo'!$C$11),'Costos Vehículo'!$D$4/26,IF(B6='Costos Vehículo'!$C$14,'Costos Vehículo'!$D$5/26,0)) -> 0 | S6: =IFERROR(VLOOKUP(B6,'Costos Vehículo'!$C$7:$D$14,2,0)/26,0) -> 1104.266026 | T6: =IFERROR(VLOOKUP(B6,'Costos Vehículo'!$C$16:$D$23,2,0)/26,0) -> 33799.80769 | U6: =IF(B6<>"",'Costos Vehículo'!$D$25/26,0) -> 2051.282051 | V6: =IFERROR(VLOOKUP(B6,'Costos Vehículo'!$C$26:$D$33,2,0)/26,0) -> 3913.404 | W6: =IF(B6<>"",'Costos Vehículo'!$D$35/26,0) -> 3846.153846 | X6: =IF(E6="Sí",'Costos Vehículo'!$I$16,0) -> 50000 | Y6: =IF(D6="Sí",'Costos Vehículo'!$K$11/26,0) -> 0 | Z6: =IF(AND(H6="Sí",L6>1),'Costos Vehículo'!$I$13*SUM(F6)+'Costos Vehículo'!$I$15*(L6-1)*SUM(F6),IF(H6="Sí",'Costos Vehículo'!$I$13*SUM(F6),0)) -> 60000 | AA6: =IF(L6>1,'Costos Vehículo'!$I$14*SUM(F6)*(L6-1),0) -> 0 | AB6: 132600 | AC6: =IFERROR(IF(D6="Sí",(VLOOKUP(B6,'Costos Vehículo'!$G$19:$I$26,3,0)+J6/VLOOKUP(B6,'Costos Vehículo'!$G$19:$L$26,5,0))*I6,(VLOOKUP(B6,'Costos Vehículo'!$G$19:$I$26,3,0)+J6/VLOOKUP(B6,'Costos Vehículo'!$G$19:$J$26,4,0))*I6),0) -> 314164.2768 | AD6: =IFERROR(IF(O6="Sí",N6*SUM(F6)*'Costos Vehículo'!$K$29,0),0) -> 19810.42014 | AE6: 169104.6649 | AF6: =SUM(Q6:AE6)*'Costos Vehículo'!$H$29 -> 48983.9846 | AG6: 988454.3453 | AH6: =IFERROR(G6*'Costos Vehículo'!$H$31*L6,0) -> 86300 | AI6: =IFERROR(N6*SUM(G6)*'Costos Vehículo'!$K$28,0) -> 13484.375 | AJ6: =IF(AND(H6="Sí",L6>1),'Costos Vehículo'!$I$13*SUM(G6)+'Costos Vehículo'!$I$15*(L6-1)*SUM(G6),IF(H6="Sí",'Costos Vehículo'!$I$13*SUM(G6),0)) -> 60000 | AK6: =IF(L6>1,'Costos Vehículo'!$I$14*SUM(G6)*(L6-1),0) -> 0 | AL6: 159784.375 | AM6: 1148238.72 | AN6: 260643.1451 | AO6: 1408881.865 | AR6: 194000 | AS6: 243000 | AV6: 159784.375
A7: BOGOTA_ARMENIA | B7: Sencillo | C7: =VLOOKUP(A7,'peajes NACIONAL '!$B$2:$E$59,4,0) -> 05:37:00 | D7: No | E7: Sí | F7: 1 | G7: 1 | H7: Sí | I7: =VLOOKUP(A7,'[1]NACIONAL '!B$2:C$58,2,0) -> 282 | J7: 8871 | K7: =VLOOKUP(A7,'peajes NACIONAL '!$B$2:$I$59,8,0) -> 174300 | L7: 1 | M7: 0.18 | N7: 1 | O7: Sí | P7: 0.185 | Q7: =IFERROR(F7*'Costos Vehículo'!$H$30*L7,"") -> 149076.0852 | R7: =IF(OR(B7='Costos Vehículo'!$C$7,B7='Costos Vehículo'!$C$8,B7='Costos Vehículo'!$C$9,B7='Costos Vehículo'!$C$10,B7='Costos Vehículo'!$C$11),'Costos Vehículo'!$D$4/26,IF(B7='Costos Vehículo'!$C$14,'Costos Vehículo'!$D$5/26,0)) -> 3389.423077 | S7: =IFERROR(VLOOKUP(B7,'Costos Vehículo'!$C$7:$D$14,2,0)/26,0) -> 1104.266026 | T7: =IFERROR(VLOOKUP(B7,'Costos Vehículo'!$C$16:$D$23,2,0)/26,0) -> 23422.59822 | U7: =IF(B7<>"",'Costos Vehículo'!$D$25/26,0) -> 2051.282051 | V7: =IFERROR(VLOOKUP(B7,'Costos Vehículo'!$C$26:$D$33,2,0)/26,0) -> 3913.404 | W7: =IF(B7<>"",'Costos Vehículo'!$D$35/26,0) -> 3846.153846 | X7: =IF(E7="Sí",'Costos Vehículo'!$I$16,0) -> 50000 | Y7: =IF(D7="Sí",'Costos Vehículo'!$K$11/26,0) -> 0 | Z7: =IF(AND(H7="Sí",L7>1),'Costos Vehículo'!$I$13*SUM(F7)+'Costos Vehículo'!$I$15*(L7-1)*SUM(F7),IF(H7="Sí",'Costos Vehículo'!$I$13*SUM(F7),0)) -> 60000 | AA7: =IF(L7>1,'Costos Vehículo'!$I$14*SUM(F7)*(L7-1),0) -> 0 | AB7: 174300 | AC7: =IFERROR(IF(D7="Sí",(VLOOKUP(B7,'Costos Vehículo'!$G$19:$I$26,3,0)+J7/VLOOKUP(B7,'Costos Vehículo'!$G$19:$L$26,5,0))*I7,(VLOOKUP(B7,'Costos Vehículo'!$G$19:$I$26,3,0)+J7/VLOOKUP(B7,'Costos Vehículo'!$G$19:$J$26,4,0))*I7),0) -> 337910.138 | AD7: =IFERROR(IF(O7="Sí",N7*SUM(F7)*'Costos Vehículo'!$K$29,0),0) -> 19810.42014 | AE7: 181936.9252 | AF7: =SUM(Q7:AE7)*'Costos Vehículo'!$H$29 -> 52701.06268 | AG7: 1063461.758 | AH7: =IFERROR(G7*'Costos Vehículo'!$H$31*L7,0) -> 86300 | AI7: =IFERROR(N7*SUM(G7)*'Costos Vehículo'!$K$28,0) -> 13484.375 | AJ7: =IF(AND(H7="Sí",L7>1),'Costos Vehículo'!$I$13*SUM(G7)+'Costos Vehículo'!$I$15*(L7-1)*SUM(G7),IF(H7="Sí",'Costos Vehículo'!$I$13*SUM(G7),0)) -> 60000 | AK7: =IF(L7>1,'Costos Vehículo'!$I$14*SUM(G7)*(L7-1),0) -> 0 | AL7: 159784.375 | AM7: 1223246.133 | AN7: 277669.3677 | AO7: 1500915.501 | AR7: 162000 | AS7: 203000 | AV7: 159784.375
A8: BOGOTA_BARBOSA | B8: Sencillo | C8: =VLOOKUP(A8,'peajes NACIONAL '!$B$2:$E$59,4,0) -> 03:41:00 | D8: No | E8: Sí | F8: 1 | G8: 1 | H8: Sí | I8: =VLOOKUP(A8,'[1]NACIONAL '!B$2:C$58,2,0) -> 185 | J8: 8871 | K8: =VLOOKUP(A8,'peajes NACIONAL '!$B$2:$I$59,8,0) -> 81000 | L8: 1 | M8: 0.18 | N8: 1 | O8: Sí | P8: 0.185 | Q8: =IFERROR(F8*'Costos Vehículo'!$H$30*L8,"") -> 149076.0852 | R8: =IF(OR(B8='Costos Vehículo'!$C$7,B8='Costos Vehículo'!$C$8,B8='Costos Vehículo'!$C$9,B8='Costos Vehículo'!$C$10,B8='Costos Vehículo'!$C$11),'Costos Vehículo'!$D$4/26,IF(B8='Costos Vehículo'!$C$14,'Costos Vehículo'!$D$5/26,0)) -> 3389.423077 | S8: =IFERROR(VLOOKUP(B8,'Costos Vehículo'!$C$7:$D$14,2,0)/26,0) -> 1104.266026 | T8: =IFERROR(VLOOKUP(B8,'Costos Vehículo'!$C$16:$D$23,2,0)/26,0) -> 23422.59822 | U8: =IF(B8<>"",'Costos Vehículo'!$D$25/26,0) -> 2051.282051 | V8: =IFERROR(VLOOKUP(B8,'Costos Vehículo'!$C$26:$D$33,2,0)/26,0) -> 3913.404 | W8: =IF(B8<>"",'Costos Vehículo'!$D$35/26,0) -> 3846.153846 | X8: =IF(E8="Sí",'Costos Vehículo'!$I$16,0) -> 50000 | Y8: =IF(D8="Sí",'Costos Vehículo'!$K$11/26,0) -> 0 | Z8: =IF(AND(H8="Sí",L8>1),'Costos Vehículo'!$I$13*SUM(F8)+'Costos Vehículo'!$I$15*(L8-1)*SUM(F8),IF(H8="Sí",'Costos Vehículo'!$I$13*SUM(F8),0)) -> 60000 | AA8: =IF(L8>1,'Costos Vehículo'!$I$14*SUM(F8)*(L8-1),0) -> 0 | AB8: 81000 | AC8: =IFERROR(IF(D8="Sí",(VLOOKUP(B8,'Costos Vehículo'!$G$19:$I$26,3,0)+J8/VLOOKUP(B8,'Costos Vehículo'!$G$19:$L$26,5,0))*I8,(VLOOKUP(B8,'Costos Vehículo'!$G$19:$I$26,3,0)+J8/VLOOKUP(B8,'Costos Vehículo'!$G$19:$J$26,4,0))*I8),0) -> 221678.6366 | AD8: =IFERROR(IF(O8="Sí",N8*SUM(F8)*'Costos Vehículo'!$K$29,0),0) -> 19810.42014 | AE8: 135942.2054 | AF8: =SUM(Q8:AE8)*'Costos Vehículo'!$H$29 -> 39377.92551 | AG8: 794612.4001 | AH8: =IFERROR(G8*'Costos Vehículo'!$H$31*L8,0) -> 86300 | AI8: =IFERROR(N8*SUM(G8)*'Costos Vehículo'!$K$28,0) -> 13484.375 | AJ8: =IF(AND(H8="Sí",L8>1),'Costos Vehículo'!$I$13*SUM(G8)+'Costos Vehículo'!$I$15*(L8-1)*SUM(G8),IF(H8="Sí",'Costos Vehículo'!$I$13*SUM(G8),0)) -> 60000 | AK8: =IF(L8>1,'Costos Vehículo'!$I$14*SUM(G8)*(L8-1),0) -> 0 | AL8: 159784.375 | AM8: 954396.7751 | AN8: 216642.2128 | AO8: 1171038.988 | AR8: 221000 | AS8: 277000 | AV8: 159784.375
A9: BOGOTÁ_BARRANQUILLA | B9: NKR | C9: =VLOOKUP(A9,'peajes NACIONAL '!$B$2:$E$59,4,0) -> 17:57:00 | D9: No | E9: Sí | F9: 1 | G9: 1 | H9: Sí | I9: =VLOOKUP(A9,'[1]NACIONAL '!B$2:C$58,2,0) -> 979 | J9: 8871 | K9: =VLOOKUP(A9,'peajes NACIONAL '!$B$2:$I$59,8,0) -> 426500 | L9: 1 | M9: 0.18 | N9: 1 | O9: Sí | P9: 0.185 | Q9: =IFERROR(F9*'Costos Vehículo'!$H$30*L9,"") -> 149076.0852 | R9: =IF(OR(B9='Costos Vehículo'!$C$7,B9='Costos Vehículo'!$C$8,B9='Costos Vehículo'!$C$9,B9='Costos Vehículo'!$C$10,B9='Costos Vehículo'!$C$11),'Costos Vehículo'!$D$4/26,IF(B9='Costos Vehículo'!$C$14,'Costos Vehículo'!$D$5/26,0)) -> 2347.435897 | S9: =IFERROR(VLOOKUP(B9,'Costos Vehículo'!$C$7:$D$14,2,0)/26,0) -> 811.6121795 | T9: =IFERROR(VLOOKUP(B9,'Costos Vehículo'!$C$16:$D$23,2,0)/26,0) -> 11716.89746 | U9: =IF(B9<>"",'Costos Vehículo'!$D$25/26,0) -> 2051.282051 | V9: =IFERROR(VLOOKUP(B9,'Costos Vehículo'!$C$26:$D$33,2,0)/26,0) -> 2230.64028 | W9: =IF(B9<>"",'Costos Vehículo'!$D$35/26,0) -> 3846.153846 | X9: =IF(E9="Sí",'Costos Vehículo'!$I$16,0) -> 50000 | Y9: =IF(D9="Sí",'Costos Vehículo'!$K$11/26,0) -> 0 | Z9: =IF(AND(H9="Sí",L9>1),'Costos Vehículo'!$I$13*SUM(F9)+'Costos Vehículo'!$I$15*(L9-1)*SUM(F9),IF(H9="Sí",'Costos Vehículo'!$I$13*SUM(F9),0)) -> 60000 | AA9: =IF(L9>1,'Costos Vehículo'!$I$14*SUM(F9)*(L9-1),0) -> 0 | AB9: 426500 | AC9: =IFERROR(IF(D9="Sí",(VLOOKUP(B9,'Costos Vehículo'!$G$19:$I$26,3,0)+J9/VLOOKUP(B9,'Costos Vehículo'!$G$19:$L$26,5,0))*I9,(VLOOKUP(B9,'Costos Vehículo'!$G$19:$I$26,3,0)+J9/VLOOKUP(B9,'Costos Vehículo'!$G$19:$J$26,4,0))*I9),0) -> 663512.8571 | AD9: =IFERROR(IF(O9="Sí",N9*SUM(F9)*'Costos Vehículo'!$K$29,0),0) -> 19810.42014 | AE9: 305539.7673 | AF9: =SUM(Q9:AE9)*'Costos Vehículo'!$H$29 -> 88504.68592 | AG9: 1785947.837 | AH9: =IFERROR(G9*'Costos Vehículo'!$H$31*L9,0) -> 86300 | AI9: =IFERROR(N9*SUM(G9)*'Costos Vehículo'!$K$28,0) -> 13484.375 | AJ9: =IF(AND(H9="Sí",L9>1),'Costos Vehículo'!$I$13*SUM(G9)+'Costos Vehículo'!$I$15*(L9-1)*SUM(G9),IF(H9="Sí",'Costos Vehículo'!$I$13*SUM(G9),0)) -> 60000 | AK9: =IF(L9>1,'Costos Vehículo'!$I$14*SUM(G9)*(L9-1),0) -> 0 | AL9: 159784.375 | AM9: 1945732.212 | AN9: 441669.2752 | AO9: 2387401.488 | AR9: 185000 | AS9: 232000 | AU9: % Margen Actual | AV9: 159784.375 | AX9: ='P&G Operación'!J31 -> 0.1617606297
A10: BOGOTÁ_BUCARAMANGA | B10: Sencillo | C10: =VLOOKUP(A10,'peajes NACIONAL '!$B$2:$E$59,4,0) -> 07:36:00 | D10: No | E10: Sí | F10: 1 | G10: 1 | H10: Sí | I10: =VLOOKUP(A10,'[1]NACIONAL '!B$2:C$58,2,0) -> 407 | J10: 8871 | K10: =VLOOKUP(A10,'peajes NACIONAL '!$B$2:$I$59,8,0) -> 183300 | L10: 1 | M10: 0.18 | N10: 1 | O10: Sí | P10: 0.185 | Q10: =IFERROR(F10*'Costos Vehículo'!$H$30*L10,"") -> 149076.0852 | R10: =IF(OR(B10='Costos Vehículo'!$C$7,B10='Costos Vehículo'!$C$8,B10='Costos Vehículo'!$C$9,B10='Costos Vehículo'!$C$10,B10='Costos Vehículo'!$C$11),'Costos Vehículo'!$D$4/26,IF(B10='Costos Vehículo'!$C$14,'Costos Vehículo'!$D$5/26,0)) -> 3389.423077 | S10: =IFERROR(VLOOKUP(B10,'Costos Vehículo'!$C$7:$D$14,2,0)/26,0) -> 1104.266026 | T10: =IFERROR(VLOOKUP(B10,'Costos Vehículo'!$C$16:$D$23,2,0)/26,0) -> 23422.59822 | U10: =IF(B10<>"",'Costos Vehículo'!$D$25/26,0) -> 2051.282051 | V10: =IFERROR(VLOOKUP(B10,'Costos Vehículo'!$C$26:$D$33,2,0)/26,0) -> 3913.404 | W10: =IF(B10<>"",'Costos Vehículo'!$D$35/26,0) -> 3846.153846 | X10: =IF(E10="Sí",'Costos Vehículo'!$I$16,0) -> 50000 | Y10: =IF(D10="Sí",'Costos Vehículo'!$K$11/26,0) -> 0 | Z10: =IF(AND(H10="Sí",L10>1),'Costos Vehículo'!$I$13*SUM(F10)+'Costos Vehículo'!$I$15*(L10-1)*SUM(F10),IF(H10="Sí",'Costos Vehículo'!$I$13*SUM(F10),0)) -> 60000 | AA10: =IF(L10>1,'Costos Vehículo'!$I$14*SUM(F10)*(L10-1),0) -> 0 | AB10: 183300 | AC10: =IFERROR(IF(D10="Sí",(VLOOKUP(B10,'Costos Vehículo'!$G$19:$I$26,3,0)+J10/VLOOKUP(B10,'Costos Vehículo'!$G$19:$L$26,5,0))*I10,(VLOOKUP(B10,'Costos Vehículo'!$G$19:$I$26,3,0)+J10/VLOOKUP(B10,'Costos Vehículo'!$G$19:$J$26,4,0))*I10),0) -> 487693.0005 | AD10: =IFERROR(IF(O10="Sí",N10*SUM(F10)*'Costos Vehículo'!$K$29,0),0) -> 19810.42014 | AE10: 216791.6999 | AF10: =SUM(Q10:AE10)*'Costos Vehículo'!$H$29 -> 62797.32908 | AG10: 1267195.662 | AH10: =IFERROR(G10*'Costos Vehículo'!$H$31*L10,0) -> 86300 | AI10: =IFERROR(N10*SUM(G10)*'Costos Vehículo'!$K$28,0) -> 13484.375 | AJ10: =IF(AND(H10="Sí",L10>1),'Costos Vehículo'!$I$13*SUM(G10)+'Costos Vehículo'!$I$15*(L10-1)*SUM(G10),IF(H10="Sí",'Costos Vehículo'!$I$13*SUM(G10),0)) -> 60000 | AK10: =IF(L10>1,'Costos Vehículo'!$I$14*SUM(G10)*(L10-1),0) -> 0 | AL10: 159784.375 | AM10: 1426980.037 | AN10: 323915.7139 | AO10: 1750895.751 | AR10: 260000 | AS10: 326000 | AV10: 159784.375
A11: BOGOTA_CALI | B11: Sencillo | C11: =VLOOKUP(A11,'peajes NACIONAL '!$B$2:$E$59,4,0) -> 08:39:00 | D11: No | E11: Sí | F11: 1 | G11: 1 | H11: Sí | I11: =VLOOKUP(A11,'[1]NACIONAL '!B$2:C$58,2,0) -> 464 | J11: 8871 | K11: =VLOOKUP(A11,'peajes NACIONAL '!$B$2:$I$59,8,0) -> 342500 | L11: 1 | M11: 0.18 | N11: 1 | O11: Sí | P11: 0.185 | Q11: =IFERROR(F11*'Costos Vehículo'!$H$30*L11,"") -> 149076.0852 | R11: =IF(OR(B11='Costos Vehículo'!$C$7,B11='Costos Vehículo'!$C$8,B11='Costos Vehículo'!$C$9,B11='Costos Vehículo'!$C$10,B11='Costos Vehículo'!$C$11),'Costos Vehículo'!$D$4/26,IF(B11='Costos Vehículo'!$C$14,'Costos Vehículo'!$D$5/26,0)) -> 3389.423077 | S11: =IFERROR(VLOOKUP(B11,'Costos Vehículo'!$C$7:$D$14,2,0)/26,0) -> 1104.266026 | T11: =IFERROR(VLOOKUP(B11,'Costos Vehículo'!$C$16:$D$23,2,0)/26,0) -> 23422.59822 | U11: =IF(B11<>"",'Costos Vehículo'!$D$25/26,0) -> 2051.282051 | V11: =IFERROR(VLOOKUP(B11,'Costos Vehículo'!$C$26:$D$33,2,0)/26,0) -> 3913.404 | W11: =IF(B11<>"",'Costos Vehículo'!$D$35/26,0) -> 3846.153846 | X11: =IF(E11="Sí",'Costos Vehículo'!$I$16,0) -> 50000 | Y11: =IF(D11="Sí",'Costos Vehículo'!$K$11/26,0) -> 0 | Z11: =IF(AND(H11="Sí",L11>1),'Costos Vehículo'!$I$13*SUM(F11)+'Costos Vehículo'!$I$15*(L11-1)*SUM(F11),IF(H11="Sí",'Costos Vehículo'!$I$13*SUM(F11),0)) -> 60000 | AA11: =IF(L11>1,'Costos Vehículo'!$I$14*SUM(F11)*(L11-1),0) -> 0 | AB11: 342500 | AC11: =IFERROR(IF(D11="Sí",(VLOOKUP(B11,'Costos Vehículo'!$G$19:$I$26,3,0)+J11/VLOOKUP(B11,'Costos Vehículo'!$G$19:$L$26,5,0))*I11,(VLOOKUP(B11,'Costos Vehículo'!$G$19:$I$26,3,0)+J11/VLOOKUP(B11,'Costos Vehículo'!$G$19:$J$26,4,0))*I11),0) -> 555993.9858 | AD11: =IFERROR(IF(O11="Sí",N11*SUM(F11)*'Costos Vehículo'!$K$29,0),0) -> 19810.42014 | AE11: 266730.9406 | AF11: =SUM(Q11:AE11)*'Costos Vehículo'!$H$29 -> 77263.06247 | AG11: 1559101.622 | AH11: =IFERROR(G11*'Costos Vehículo'!$H$31*L11,0) -> 86300 | AI11: =IFERROR(N11*SUM(G11)*'Costos Vehículo'!$K$28,0) -> 13484.375 | AJ11: =IF(AND(H11="Sí",L11>1),'Costos Vehículo'!$I$13*SUM(G11)+'Costos Vehículo'!$I$15*(L11-1)*SUM(G11),IF(H11="Sí",'Costos Vehículo'!$I$13*SUM(G11),0)) -> 60000 | AK11: =IF(L11>1,'Costos Vehículo'!$I$14*SUM(G11)*(L11-1),0) -> 0 | AL11: 159784.375 | AM11: 1718885.997 | AN11: 390176.5759 | AO11: 2109062.572 | AR11: 0 | AS11: 0 | AU11: % Margen Deseado | AX11: 0.15
A12: BOGOTA_CARTAGENA | B12: Sencillo | C12: =VLOOKUP(A12,'peajes NACIONAL '!$B$2:$E$59,4,0) -> 19:10:00 | D12: No | E12: Sí | F12: 1 | G12: 1 | H12: Sí | I12: =VLOOKUP(A12,'[1]NACIONAL '!B$2:C$58,2,0) -> 1050 | J12: 8871 | K12: =VLOOKUP(A12,'peajes NACIONAL '!$B$2:$I$59,8,0) -> 425100 | L12: 1 | M12: 0.18 | N12: 1 | O12: Sí | P12: 0.185 | Q12: =IFERROR(F12*'Costos Vehículo'!$H$30*L12,"") -> 149076.0852 | R12: =IF(OR(B12='Costos Vehículo'!$C$7,B12='Costos Vehículo'!$C$8,B12='Costos Vehículo'!$C$9,B12='Costos Vehículo'!$C$10,B12='Costos Vehículo'!$C$11),'Costos Vehículo'!$D$4/26,IF(B12='Costos Vehículo'!$C$14,'Costos Vehículo'!$D$5/26,0)) -> 3389.423077 | S12: =IFERROR(VLOOKUP(B12,'Costos Vehículo'!$C$7:$D$14,2,0)/26,0) -> 1104.266026 | T12: =IFERROR(VLOOKUP(B12,'Costos Vehículo'!$C$16:$D$23,2,0)/26,0) -> 23422.59822 | U12: =IF(B12<>"",'Costos Vehículo'!$D$25/26,0) -> 2051.282051 | V12: =IFERROR(VLOOKUP(B12,'Costos Vehículo'!$C$26:$D$33,2,0)/26,0) -> 3913.404 | W12: =IF(B12<>"",'Costos Vehículo'!$D$35/26,0) -> 3846.153846 | X12: =IF(E12="Sí",'Costos Vehículo'!$I$16,0) -> 50000 | Y12: =IF(D12="Sí",'Costos Vehículo'!$K$11/26,0) -> 0 | Z12: =IF(AND(H12="Sí",L12>1),'Costos Vehículo'!$I$13*SUM(F12)+'Costos Vehículo'!$I$15*(L12-1)*SUM(F12),IF(H12="Sí",'Costos Vehículo'!$I$13*SUM(F12),0)) -> 60000 | AA12: =IF(L12>1,'Costos Vehículo'!$I$14*SUM(F12)*(L12-1),0) -> 0 | AB12: 425100 | AC12: =IFERROR(IF(D12="Sí",(VLOOKUP(B12,'Costos Vehículo'!$G$19:$I$26,3,0)+J12/VLOOKUP(B12,'Costos Vehículo'!$G$19:$L$26,5,0))*I12,(VLOOKUP(B12,'Costos Vehículo'!$G$19:$I$26,3,0)+J12/VLOOKUP(B12,'Costos Vehículo'!$G$19:$J$26,4,0))*I12),0) -> 1258176.046 | AD12: =IFERROR(IF(O12="Sí",N12*SUM(F12)*'Costos Vehículo'!$K$29,0),0) -> 19810.42014 | AE12: 439000.1732 | AF12: =SUM(Q12:AE12)*'Costos Vehículo'!$H$29 -> 127163.7169 | AG12: 2566053.568 | AH12: =IFERROR(G12*'Costos Vehículo'!$H$31*L12,0) -> 86300 | AI12: =IFERROR(N12*SUM(G12)*'Costos Vehículo'!$K$28,0) -> 13484.375 | AJ12: =IF(AND(H12="Sí",L12>1),'Costos Vehículo'!$I$13*SUM(G12)+'Costos Vehículo'!$I$15*(L12-1)*SUM(G12),IF(H12="Sí",'Costos Vehículo'!$I$13*SUM(G12),0)) -> 60000 | AK12: =IF(L12>1,'Costos Vehículo'!$I$14*SUM(G12)*(L12-1),0) -> 0 | AL12: 159784.375 | AM12: 2725837.943 | AN12: 618748.4902 | AO12: 3344586.433 | AR12: 0 | AS12: 0
A13: BOGOTA_CHIQUINQUIRA | B13: Sencillo | C13: =VLOOKUP(A13,'peajes NACIONAL '!$B$2:$E$59,4,0) -> 02:43:00 | D13: No | E13: Sí | F13: 1 | G13: 1 | H13: Sí | I13: =VLOOKUP(A13,'[1]NACIONAL '!B$2:C$58,2,0) -> 134 | J13: 8871 | K13: =VLOOKUP(A13,'peajes NACIONAL '!$B$2:$I$59,8,0) -> 31800 | L13: 1 | M13: 0.18 | N13: 1 | O13: Sí | P13: 0.185 | Q13: =IFERROR(F13*'Costos Vehículo'!$H$30*L13,"") -> 149076.0852 | R13: =IF(OR(B13='Costos Vehículo'!$C$7,B13='Costos Vehículo'!$C$8,B13='Costos Vehículo'!$C$9,B13='Costos Vehículo'!$C$10,B13='Costos Vehículo'!$C$11),'Costos Vehículo'!$D$4/26,IF(B13='Costos Vehículo'!$C$14,'Costos Vehículo'!$D$5/26,0)) -> 3389.423077 | S13: =IFERROR(VLOOKUP(B13,'Costos Vehículo'!$C$7:$D$14,2,0)/26,0) -> 1104.266026 | T13: =IFERROR(VLOOKUP(B13,'Costos Vehículo'!$C$16:$D$23,2,0)/26,0) -> 23422.59822 | U13: =IF(B13<>"",'Costos Vehículo'!$D$25/26,0) -> 2051.282051 | V13: =IFERROR(VLOOKUP(B13,'Costos Vehículo'!$C$26:$D$33,2,0)/26,0) -> 3913.404 | W13: =IF(B13<>"",'Costos Vehículo'!$D$35/26,0) -> 3846.153846 | X13: =IF(E13="Sí",'Costos Vehículo'!$I$16,0) -> 50000 | Y13: =IF(D13="Sí",'Costos Vehículo'!$K$11/26,0) -> 0 | Z13: =IF(AND(H13="Sí",L13>1),'Costos Vehículo'!$I$13*SUM(F13)+'Costos Vehículo'!$I$15*(L13-1)*SUM(F13),IF(H13="Sí",'Costos Vehículo'!$I$13*SUM(F13),0)) -> 60000 | AA13: =IF(L13>1,'Costos Vehículo'!$I$14*SUM(F13)*(L13-1),0) -> 0 | AB13: 31800 | AC13: =IFERROR(IF(D13="Sí",(VLOOKUP(B13,'Costos Vehículo'!$G$19:$I$26,3,0)+J13/VLOOKUP(B13,'Costos Vehículo'!$G$19:$L$26,5,0))*I13,(VLOOKUP(B13,'Costos Vehículo'!$G$19:$I$26,3,0)+J13/VLOOKUP(B13,'Costos Vehículo'!$G$19:$J$26,4,0))*I13),0) -> 160567.2287 | AD13: =IFERROR(IF(O13="Sí",N13*SUM(F13)*'Costos Vehículo'!$K$29,0),0) -> 19810.42014 | AE13: 111727.5061 | AF13: =SUM(Q13:AE13)*'Costos Vehículo'!$H$29 -> 32363.73427 | AG13: 653072.1016 | AH13: =IFERROR(G13*'Costos Vehículo'!$H$31*L13,0) -> 86300 | AI13: =IFERROR(N13*SUM(G13)*'Costos Vehículo'!$K$28,0) -> 13484.375 | AJ13: =IF(AND(H13="Sí",L13>1),'Costos Vehículo'!$I$13*SUM(G13)+'Costos Vehículo'!$I$15*(L13-1)*SUM(G13),IF(H13="Sí",'Costos Vehículo'!$I$13*SUM(G13),0)) -> 60000 | AK13: =IF(L13>1,'Costos Vehículo'!$I$14*SUM(G13)*(L13-1),0) -> 0 | AL13: 159784.375 | AM13: 812856.4766 | AN13: 184513.4333 | AO13: 997369.91 | AR13: 0 | AS13: 0
A14: BOGOTA_CUCUTA | B14: Sencillo | C14: =VLOOKUP(A14,'peajes NACIONAL '!$B$2:$E$59,4,0) -> 11:35:00 | D14: No | E14: Sí | F14: 1 | G14: 1 | H14: Sí | I14: =VLOOKUP(A14,'[1]NACIONAL '!B$2:C$58,2,0) -> 557 | J14: 8871 | K14: =VLOOKUP(A14,'peajes NACIONAL '!$B$2:$I$59,8,0) -> 145700 | L14: 1 | M14: 0.18 | N14: 1 | O14: Sí | P14: 0.185 | Q14: =IFERROR(F14*'Costos Vehículo'!$H$30*L14,"") -> 149076.0852 | R14: =IF(OR(B14='Costos Vehículo'!$C$7,B14='Costos Vehículo'!$C$8,B14='Costos Vehículo'!$C$9,B14='Costos Vehículo'!$C$10,B14='Costos Vehículo'!$C$11),'Costos Vehículo'!$D$4/26,IF(B14='Costos Vehículo'!$C$14,'Costos Vehículo'!$D$5/26,0)) -> 3389.423077 | S14: =IFERROR(VLOOKUP(B14,'Costos Vehículo'!$C$7:$D$14,2,0)/26,0) -> 1104.266026 | T14: =IFERROR(VLOOKUP(B14,'Costos Vehículo'!$C$16:$D$23,2,0)/26,0) -> 23422.59822 | U14: =IF(B14<>"",'Costos Vehículo'!$D$25/26,0) -> 2051.282051 | V14: =IFERROR(VLOOKUP(B14,'Costos Vehículo'!$C$26:$D$33,2,0)/26,0) -> 3913.404 | W14: =IF(B14<>"",'Costos Vehículo'!$D$35/26,0) -> 3846.153846 | X14: =IF(E14="Sí",'Costos Vehículo'!$I$16,0) -> 50000 | Y14: =IF(D14="Sí",'Costos Vehículo'!$K$11/26,0) -> 0 | Z14: =IF(AND(H14="Sí",L14>1),'Costos Vehículo'!$I$13*SUM(F14)+'Costos Vehículo'!$I$15*(L14-1)*SUM(F14),IF(H14="Sí",'Costos Vehículo'!$I$13*SUM(F14),0)) -> 60000 | AA14: =IF(L14>1,'Costos Vehículo'!$I$14*SUM(F14)*(L14-1),0) -> 0 | AB14: 145700 | AC14: =IFERROR(IF(D14="Sí",(VLOOKUP(B14,'Costos Vehículo'!$G$19:$I$26,3,0)+J14/VLOOKUP(B14,'Costos Vehículo'!$G$19:$L$26,5,0))*I14,(VLOOKUP(B14,'Costos Vehículo'!$G$19:$I$26,3,0)+J14/VLOOKUP(B14,'Costos Vehículo'!$G$19:$J$26,4,0))*I14),0) -> 667432.4356 | AD14: =IFERROR(IF(O14="Sí",N14*SUM(F14)*'Costos Vehículo'!$K$29,0),0) -> 19810.42014 | AE14: 247993.0394 | AF14: =SUM(Q14:AE14)*'Costos Vehículo'!$H$29 -> 71835.31707 | AG14: 1449574.425 | AH14: =IFERROR(G14*'Costos Vehículo'!$H$31*L14,0) -> 86300 | AI14: =IFERROR(N14*SUM(G14)*'Costos Vehículo'!$K$28,0) -> 13484.375 | AJ14: =IF(AND(H14="Sí",L14>1),'Costos Vehículo'!$I$13*SUM(G14)+'Costos Vehículo'!$I$15*(L14-1)*SUM(G14),IF(H14="Sí",'Costos Vehículo'!$I$13*SUM(G14),0)) -> 60000 | AK14: =IF(L14>1,'Costos Vehículo'!$I$14*SUM(G14)*(L14-1),0) -> 0 | AL14: 159784.375 | AM14: 1609358.8 | AN14: 365314.5741 | AO14: 1974673.374 | AR14: 0 | AS14: 0
A15: BOGOTA_DORADA | B15: Sencillo | C15: =VLOOKUP(A15,'peajes NACIONAL '!$B$2:$E$59,4,0) -> 04:37:00 | D15: No | E15: Sí | F15: 1 | G15: 1 | H15: Sí | I15: =VLOOKUP(A15,'[1]NACIONAL '!B$2:C$58,2,0) -> 204 | J15: 8871 | K15: =VLOOKUP(A15,'peajes NACIONAL '!$B$2:$I$59,8,0) -> 105200 | L15: 1 | M15: 0.18 | N15: 1 | O15: Sí | P15: 0.185 | Q15: =IFERROR(F15*'Costos Vehículo'!$H$30*L15,"") -> 149076.0852 | R15: =IF(OR(B15='Costos Vehículo'!$C$7,B15='Costos Vehículo'!$C$8,B15='Costos Vehículo'!$C$9,B15='Costos Vehículo'!$C$10,B15='Costos Vehículo'!$C$11),'Costos Vehículo'!$D$4/26,IF(B15='Costos Vehículo'!$C$14,'Costos Vehículo'!$D$5/26,0)) -> 3389.423077 | S15: =IFERROR(VLOOKUP(B15,'Costos Vehículo'!$C$7:$D$14,2,0)/26,0) -> 1104.266026 | T15: =IFERROR(VLOOKUP(B15,'Costos Vehículo'!$C$16:$D$23,2,0)/26,0) -> 23422.59822 | U15: =IF(B15<>"",'Costos Vehículo'!$D$25/26,0) -> 2051.282051 | V15: =IFERROR(VLOOKUP(B15,'Costos Vehículo'!$C$26:$D$33,2,0)/26,0) -> 3913.404 | W15: =IF(B15<>"",'Costos Vehículo'!$D$35/26,0) -> 3846.153846 | X15: =IF(E15="Sí",'Costos Vehículo'!$I$16,0) -> 50000 | Y15: =IF(D15="Sí",'Costos Vehículo'!$K$11/26,0) -> 0 | Z15: =IF(AND(H15="Sí",L15>1),'Costos Vehículo'!$I$13*SUM(F15)+'Costos Vehículo'!$I$15*(L15-1)*SUM(F15),IF(H15="Sí",'Costos Vehículo'!$I$13*SUM(F15),0)) -> 60000 | AA15: =IF(L15>1,'Costos Vehículo'!$I$14*SUM(F15)*(L15-1),0) -> 0 | AB15: 105200 | AC15: =IFERROR(IF(D15="Sí",(VLOOKUP(B15,'Costos Vehículo'!$G$19:$I$26,3,0)+J15/VLOOKUP(B15,'Costos Vehículo'!$G$19:$L$26,5,0))*I15,(VLOOKUP(B15,'Costos Vehículo'!$G$19:$I$26,3,0)+J15/VLOOKUP(B15,'Costos Vehículo'!$G$19:$J$26,4,0))*I15),0) -> 244445.6317 | AD15: =IFERROR(IF(O15="Sí",N15*SUM(F15)*'Costos Vehículo'!$K$29,0),0) -> 19810.42014 | AE15: 146252.0336 | AF15: =SUM(Q15:AE15)*'Costos Vehículo'!$H$29 -> 42364.33907 | AG15: 854875.637 | AH15: =IFERROR(G15*'Costos Vehículo'!$H$31*L15,0) -> 86300 | AI15: =IFERROR(N15*SUM(G15)*'Costos Vehículo'!$K$28,0) -> 13484.375 | AJ15: =IF(AND(H15="Sí",L15>1),'Costos Vehículo'!$I$13*SUM(G15)+'Costos Vehículo'!$I$15*(L15-1)*SUM(G15),IF(H15="Sí",'Costos Vehículo'!$I$13*SUM(G15),0)) -> 60000 | AK15: =IF(L15>1,'Costos Vehículo'!$I$14*SUM(G15)*(L15-1),0) -> 0 | AL15: 159784.375 | AM15: 1014660.012 | AN15: 230321.5978 | AO15: 1244981.61
A16: BOGOTA_DUITAMA | B16: Sencillo | C16: =VLOOKUP(A16,'peajes NACIONAL '!$B$2:$E$59,4,0) -> 03:02:00 | D16: No | E16: Sí | F16: 1 | G16: 1 | H16: Sí | I16: =VLOOKUP(A16,'[1]NACIONAL '!B$2:C$58,2,0) -> 195 | J16: 8871 | K16: =VLOOKUP(A16,'peajes NACIONAL '!$B$2:$I$59,8,0) -> 107300 | L16: 1 | M16: 0.18 | N16: 1 | O16: Sí | P16: 0.185 | Q16: =IFERROR(F16*'Costos Vehículo'!$H$30*L16,"") -> 149076.0852 | R16: =IF(OR(B16='Costos Vehículo'!$C$7,B16='Costos Vehículo'!$C$8,B16='Costos Vehículo'!$C$9,B16='Costos Vehículo'!$C$10,B16='Costos Vehículo'!$C$11),'Costos Vehículo'!$D$4/26,IF(B16='Costos Vehículo'!$C$14,'Costos Vehículo'!$D$5/26,0)) -> 3389.423077 | S16: =IFERROR(VLOOKUP(B16,'Costos Vehículo'!$C$7:$D$14,2,0)/26,0) -> 1104.266026 | T16: =IFERROR(VLOOKUP(B16,'Costos Vehículo'!$C$16:$D$23,2,0)/26,0) -> 23422.59822 | U16: =IF(B16<>"",'Costos Vehículo'!$D$25/26,0) -> 2051.282051 | V16: =IFERROR(VLOOKUP(B16,'Costos Vehículo'!$C$26:$D$33,2,0)/26,0) -> 3913.404 | W16: =IF(B16<>"",'Costos Vehículo'!$D$35/26,0) -> 3846.153846 | X16: =IF(E16="Sí",'Costos Vehículo'!$I$16,0) -> 50000 | Y16: =IF(D16="Sí",'Costos Vehículo'!$K$11/26,0) -> 0 | Z16: =IF(AND(H16="Sí",L16>1),'Costos Vehículo'!$I$13*SUM(F16)+'Costos Vehículo'!$I$15*(L16-1)*SUM(F16),IF(H16="Sí",'Costos Vehículo'!$I$13*SUM(F16),0)) -> 60000 | AA16: =IF(L16>1,'Costos Vehículo'!$I$14*SUM(F16)*(L16-1),0) -> 0 | AB16: 107300 | AC16: =IFERROR(IF(D16="Sí",(VLOOKUP(B16,'Costos Vehículo'!$G$19:$I$26,3,0)+J16/VLOOKUP(B16,'Costos Vehículo'!$G$19:$L$26,5,0))*I16,(VLOOKUP(B16,'Costos Vehículo'!$G$19:$I$26,3,0)+J16/VLOOKUP(B16,'Costos Vehículo'!$G$19:$J$26,4,0))*I16),0) -> 233661.2656 | AD16: =IFERROR(IF(O16="Sí",N16*SUM(F16)*'Costos Vehículo'!$K$29,0),0) -> 19810.42014 | AE16: 144345.7094 | AF16: =SUM(Q16:AE16)*'Costos Vehículo'!$H$29 -> 41812.14048 | AG16: 843732.748 | AH16: =IFERROR(G16*'Costos Vehículo'!$H$31*L16,0) -> 86300 | AI16: =IFERROR(N16*SUM(G16)*'Costos Vehículo'!$K$28,0) -> 13484.375 | AJ16: =IF(AND(H16="Sí",L16>1),'Costos Vehículo'!$I$13*SUM(G16)+'Costos Vehículo'!$I$15*(L16-1)*SUM(G16),IF(H16="Sí",'Costos Vehículo'!$I$13*SUM(G16),0)) -> 60000 | AK16: =IF(L16>1,'Costos Vehículo'!$I$14*SUM(G16)*(L16-1),0) -> 0 | AL16: 159784.375 | AM16: 1003517.123 | AN16: 227792.2304 | AO16: 1231309.353
A17: BOGOTA_FLORENCIA | B17: Sencillo | C17: =VLOOKUP(A17,'peajes NACIONAL '!$B$2:$E$59,4,0) -> 10:01:00 | D17: No | E17: Sí | F17: 1 | G17: 1 | H17: Sí | I17: =VLOOKUP(A17,'[1]NACIONAL '!B$2:C$58,2,0) -> 534 | J17: 8871 | K17: =VLOOKUP(A17,'peajes NACIONAL '!$B$2:$I$59,8,0) -> 216100 | L17: 1 | M17: 0.18 | N17: 1 | O17: Sí | P17: 0.185 | Q17: =IFERROR(F17*'Costos Vehículo'!$H$30*L17,"") -> 149076.0852 | R17: =IF(OR(B17='Costos Vehículo'!$C$7,B17='Costos Vehículo'!$C$8,B17='Costos Vehículo'!$C$9,B17='Costos Vehículo'!$C$10,B17='Costos Vehículo'!$C$11),'Costos Vehículo'!$D$4/26,IF(B17='Costos Vehículo'!$C$14,'Costos Vehículo'!$D$5/26,0)) -> 3389.423077 | S17: =IFERROR(VLOOKUP(B17,'Costos Vehículo'!$C$7:$D$14,2,0)/26,0) -> 1104.266026 | T17: =IFERROR(VLOOKUP(B17,'Costos Vehículo'!$C$16:$D$23,2,0)/26,0) -> 23422.59822 | U17: =IF(B17<>"",'Costos Vehículo'!$D$25/26,0) -> 2051.282051 | V17: =IFERROR(VLOOKUP(B17,'Costos Vehículo'!$C$26:$D$33,2,0)/26,0) -> 3913.404 | W17: =IF(B17<>"",'Costos Vehículo'!$D$35/26,0) -> 3846.153846 | X17: =IF(E17="Sí",'Costos Vehículo'!$I$16,0) -> 50000 | Y17: =IF(D17="Sí",'Costos Vehículo'!$K$11/26,0) -> 0 | Z17: =IF(AND(H17="Sí",L17>1),'Costos Vehículo'!$I$13*SUM(F17)+'Costos Vehículo'!$I$15*(L17-1)*SUM(F17),IF(H17="Sí",'Costos Vehículo'!$I$13*SUM(F17),0)) -> 60000 | AA17: =IF(L17>1,'Costos Vehículo'!$I$14*SUM(F17)*(L17-1),0) -> 0 | AB17: 216100 | AC17: =IFERROR(IF(D17="Sí",(VLOOKUP(B17,'Costos Vehículo'!$G$19:$I$26,3,0)+J17/VLOOKUP(B17,'Costos Vehículo'!$G$19:$L$26,5,0))*I17,(VLOOKUP(B17,'Costos Vehículo'!$G$19:$I$26,3,0)+J17/VLOOKUP(B17,'Costos Vehículo'!$G$19:$J$26,4,0))*I17),0) -> 639872.3889 | AD17: =IFERROR(IF(O17="Sí",N17*SUM(F17)*'Costos Vehículo'!$K$29,0),0) -> 19810.42014 | AE17: 257396.9315 | AF17: =SUM(Q17:AE17)*'Costos Vehículo'!$H$29 -> 74559.31117 | AG17: 1504542.264 | AH17: =IFERROR(G17*'Costos Vehículo'!$H$31*L17,0) -> 86300 | AI17: =IFERROR(N17*SUM(G17)*'Costos Vehículo'!$K$28,0) -> 13484.375 | AJ17: =IF(AND(H17="Sí",L17>1),'Costos Vehículo'!$I$13*SUM(G17)+'Costos Vehículo'!$I$15*(L17-1)*SUM(G17),IF(H17="Sí",'Costos Vehículo'!$I$13*SUM(G17),0)) -> 60000 | AK17: =IF(L17>1,'Costos Vehículo'!$I$14*SUM(G17)*(L17-1),0) -> 0 | AL17: 159784.375 | AM17: 1664326.639 | AN17: 377791.9365 | AO17: 2042118.576
A18: BOGOTA_FUSA | B18: Sencillo | C18: =VLOOKUP(A18,'peajes NACIONAL '!$B$2:$E$59,4,0) -> 02:02:00 | D18: No | E18: Sí | F18: 1 | G18: 1 | H18: Sí | I18: =VLOOKUP(A18,'[1]NACIONAL '!B$2:C$58,2,0) -> 82.4 | J18: 8871 | K18: =VLOOKUP(A18,'peajes NACIONAL '!$B$2:$I$59,8,0) -> 15600 | L18: 1 | M18: 0.18 | N18: 1 | O18: Sí | P18: 0.185 | Q18: =IFERROR(F18*'Costos Vehículo'!$H$30*L18,"") -> 149076.0852 | R18: =IF(OR(B18='Costos Vehículo'!$C$7,B18='Costos Vehículo'!$C$8,B18='Costos Vehículo'!$C$9,B18='Costos Vehículo'!$C$10,B18='Costos Vehículo'!$C$11),'Costos Vehículo'!$D$4/26,IF(B18='Costos Vehículo'!$C$14,'Costos Vehículo'!$D$5/26,0)) -> 3389.423077 | S18: =IFERROR(VLOOKUP(B18,'Costos Vehículo'!$C$7:$D$14,2,0)/26,0) -> 1104.266026 | T18: =IFERROR(VLOOKUP(B18,'Costos Vehículo'!$C$16:$D$23,2,0)/26,0) -> 23422.59822 | U18: =IF(B18<>"",'Costos Vehículo'!$D$25/26,0) -> 2051.282051 | V18: =IFERROR(VLOOKUP(B18,'Costos Vehículo'!$C$26:$D$33,2,0)/26,0) -> 3913.404 | W18: =IF(B18<>"",'Costos Vehículo'!$D$35/26,0) -> 3846.153846 | X18: =IF(E18="Sí",'Costos Vehículo'!$I$16,0) -> 50000 | Y18: =IF(D18="Sí",'Costos Vehículo'!$K$11/26,0) -> 0 | Z18: =IF(AND(H18="Sí",L18>1),'Costos Vehículo'!$I$13*SUM(F18)+'Costos Vehículo'!$I$15*(L18-1)*SUM(F18),IF(H18="Sí",'Costos Vehículo'!$I$13*SUM(F18),0)) -> 60000 | AA18: =IF(L18>1,'Costos Vehículo'!$I$14*SUM(F18)*(L18-1),0) -> 0 | AB18: 15600 | AC18: =IFERROR(IF(D18="Sí",(VLOOKUP(B18,'Costos Vehículo'!$G$19:$I$26,3,0)+J18/VLOOKUP(B18,'Costos Vehículo'!$G$19:$L$26,5,0))*I18,(VLOOKUP(B18,'Costos Vehículo'!$G$19:$I$26,3,0)+J18/VLOOKUP(B18,'Costos Vehículo'!$G$19:$J$26,4,0))*I18),0) -> 98736.863 | AD18: =IFERROR(IF(O18="Sí",N18*SUM(F18)*'Costos Vehículo'!$K$29,0),0) -> 19810.42014 | AE18: 94598.88927 | AF18: =SUM(Q18:AE18)*'Costos Vehículo'!$H$29 -> 27402.14493 | AG18: 552951.5298 | AH18: =IFERROR(G18*'Costos Vehículo'!$H$31*L18,0) -> 86300 | AI18: =IFERROR(N18*SUM(G18)*'Costos Vehículo'!$K$28,0) -> 13484.375 | AJ18: =IF(AND(H18="Sí",L18>1),'Costos Vehículo'!$I$13*SUM(G18)+'Costos Vehículo'!$I$15*(L18-1)*SUM(G18),IF(H18="Sí",'Costos Vehículo'!$I$13*SUM(G18),0)) -> 60000 | AK18: =IF(L18>1,'Costos Vehículo'!$I$14*SUM(G18)*(L18-1),0) -> 0 | AL18: 159784.375 | AM18: 712735.9048 | AN18: 161786.6778 | AO18: 874522.5825
A19: BOGOTA_GARAGOA | B19: Sencillo | C19: =VLOOKUP(A19,'peajes NACIONAL '!$B$2:$E$59,4,0) -> 02:58:00 | D19: No | E19: Sí | F19: 1 | G19: 1 | H19: Sí | I19: =VLOOKUP(A19,'[1]NACIONAL '!B$2:C$58,2,0) -> 137 | J19: 8871 | K19: =VLOOKUP(A19,'peajes NACIONAL '!$B$2:$I$59,8,0) -> 75000 | L19: 1 | M19: 0.18 | N19: 1 | O19: Sí | P19: 0.185 | Q19: =IFERROR(F19*'Costos Vehículo'!$H$30*L19,"") -> 149076.0852 | R19: =IF(OR(B19='Costos Vehículo'!$C$7,B19='Costos Vehículo'!$C$8,B19='Costos Vehículo'!$C$9,B19='Costos Vehículo'!$C$10,B19='Costos Vehículo'!$C$11),'Costos Vehículo'!$D$4/26,IF(B19='Costos Vehículo'!$C$14,'Costos Vehículo'!$D$5/26,0)) -> 3389.423077 | S19: =IFERROR(VLOOKUP(B19,'Costos Vehículo'!$C$7:$D$14,2,0)/26,0) -> 1104.266026 | T19: =IFERROR(VLOOKUP(B19,'Costos Vehículo'!$C$16:$D$23,2,0)/26,0) -> 23422.59822 | U19: =IF(B19<>"",'Costos Vehículo'!$D$25/26,0) -> 2051.282051 | V19: =IFERROR(VLOOKUP(B19,'Costos Vehículo'!$C$26:$D$33,2,0)/26,0) -> 3913.404 | W19: =IF(B19<>"",'Costos Vehículo'!$D$35/26,0) -> 3846.153846 | X19: =IF(E19="Sí",'Costos Vehículo'!$I$16,0) -> 50000 | Y19: =IF(D19="Sí",'Costos Vehículo'!$K$11/26,0) -> 0 | Z19: =IF(AND(H19="Sí",L19>1),'Costos Vehículo'!$I$13*SUM(F19)+'Costos Vehículo'!$I$15*(L19-1)*SUM(F19),IF(H19="Sí",'Costos Vehículo'!$I$13*SUM(F19),0)) -> 60000 | AA19: =IF(L19>1,'Costos Vehículo'!$I$14*SUM(F19)*(L19-1),0) -> 0 | AB19: 75000 | AC19: =IFERROR(IF(D19="Sí",(VLOOKUP(B19,'Costos Vehículo'!$G$19:$I$26,3,0)+J19/VLOOKUP(B19,'Costos Vehículo'!$G$19:$L$26,5,0))*I19,(VLOOKUP(B19,'Costos Vehículo'!$G$19:$I$26,3,0)+J19/VLOOKUP(B19,'Costos Vehículo'!$G$19:$J$26,4,0))*I19),0) -> 164162.0174 | AD19: =IFERROR(IF(O19="Sí",N19*SUM(F19)*'Costos Vehículo'!$K$29,0),0) -> 19810.42014 | AE19: 121999.5329 | AF19: =SUM(Q19:AE19)*'Costos Vehículo'!$H$29 -> 35339.19803 | AG19: 713114.3809 | AH19: =IFERROR(G19*'Costos Vehículo'!$H$31*L19,0) -> 86300 | AI19: =IFERROR(N19*SUM(G19)*'Costos Vehículo'!$K$28,0) -> 13484.375 | AJ19: =IF(AND(H19="Sí",L19>1),'Costos Vehículo'!$I$13*SUM(G19)+'Costos Vehículo'!$I$15*(L19-1)*SUM(G19),IF(H19="Sí",'Costos Vehículo'!$I$13*SUM(G19),0)) -> 60000 | AK19: =IF(L19>1,'Costos Vehículo'!$I$14*SUM(G19)*(L19-1),0) -> 0 | AL19: 159784.375 | AM19: 872898.7559 | AN19: 198142.6624 | AO19: 1071041.418
A20: BOGOTÁ_GARZON | B20: Sencillo | C20: =VLOOKUP(A20,'peajes NACIONAL '!$B$2:$E$59,4,0) -> 07:51:00 | D20: No | E20: Sí | F20: 1 | G20: 1 | H20: Sí | I20: =VLOOKUP(A20,'[1]NACIONAL '!B$2:C$58,2,0) -> 425 | J20: 8871 | K20: =VLOOKUP(A20,'peajes NACIONAL '!$B$2:$I$59,8,0) -> 177100 | L20: 1 | M20: 0.18 | N20: 1 | O20: Sí | P20: 0.185 | Q20: =IFERROR(F20*'Costos Vehículo'!$H$30*L20,"") -> 149076.0852 | R20: =IF(OR(B20='Costos Vehículo'!$C$7,B20='Costos Vehículo'!$C$8,B20='Costos Vehículo'!$C$9,B20='Costos Vehículo'!$C$10,B20='Costos Vehículo'!$C$11),'Costos Vehículo'!$D$4/26,IF(B20='Costos Vehículo'!$C$14,'Costos Vehículo'!$D$5/26,0)) -> 3389.423077 | S20: =IFERROR(VLOOKUP(B20,'Costos Vehículo'!$C$7:$D$14,2,0)/26,0) -> 1104.266026 | T20: =IFERROR(VLOOKUP(B20,'Costos Vehículo'!$C$16:$D$23,2,0)/26,0) -> 23422.59822 | U20: =IF(B20<>"",'Costos Vehículo'!$D$25/26,0) -> 2051.282051 | V20: =IFERROR(VLOOKUP(B20,'Costos Vehículo'!$C$26:$D$33,2,0)/26,0) -> 3913.404 | W20: =IF(B20<>"",'Costos Vehículo'!$D$35/26,0) -> 3846.153846 | X20: =IF(E20="Sí",'Costos Vehículo'!$I$16,0) -> 50000 | Y20: =IF(D20="Sí",'Costos Vehículo'!$K$11/26,0) -> 0 | Z20: =IF(AND(H20="Sí",L20>1),'Costos Vehículo'!$I$13*SUM(F20)+'Costos Vehículo'!$I$15*(L20-1)*SUM(F20),IF(H20="Sí",'Costos Vehículo'!$I$13*SUM(F20),0)) -> 60000 | AA20: =IF(L20>1,'Costos Vehículo'!$I$14*SUM(F20)*(L20-1),0) -> 0 | AB20: 177100 | AC20: =IFERROR(IF(D20="Sí",(VLOOKUP(B20,'Costos Vehículo'!$G$19:$I$26,3,0)+J20/VLOOKUP(B20,'Costos Vehículo'!$G$19:$L$26,5,0))*I20,(VLOOKUP(B20,'Costos Vehículo'!$G$19:$I$26,3,0)+J20/VLOOKUP(B20,'Costos Vehículo'!$G$19:$J$26,4,0))*I20),0) -> 509261.7327 | AD20: =IFERROR(IF(O20="Sí",N20*SUM(F20)*'Costos Vehículo'!$K$29,0),0) -> 19810.42014 | AE20: 220165.3241 | AF20: =SUM(Q20:AE20)*'Costos Vehículo'!$H$29 -> 63774.55554 | AG20: 1286915.245 | AH20: =IFERROR(G20*'Costos Vehículo'!$H$31*L20,0) -> 86300 | AI20: =IFERROR(N20*SUM(G20)*'Costos Vehículo'!$K$28,0) -> 13484.375 | AJ20: =IF(AND(H20="Sí",L20>1),'Costos Vehículo'!$I$13*SUM(G20)+'Costos Vehículo'!$I$15*(L20-1)*SUM(G20),IF(H20="Sí",'Costos Vehículo'!$I$13*SUM(G20),0)) -> 60000 | AK20: =IF(L20>1,'Costos Vehículo'!$I$14*SUM(G20)*(L20-1),0) -> 0 | AL20: 159784.375 | AM20: 1446699.62 | AN20: 328391.9383 | AO20: 1775091.558
A21: BOGOTA_GIRARDOT | B21: Sencillo | C21: =VLOOKUP(A21,'peajes NACIONAL '!$B$2:$E$59,4,0) -> 02:43:00 | D21: No | E21: Sí | F21: 1 | G21: 1 | H21: Sí | I21: =VLOOKUP(A21,'[1]NACIONAL '!B$2:C$58,2,0) -> 135 | J21: 8871 | K21: =VLOOKUP(A21,'peajes NACIONAL '!$B$2:$I$59,8,0) -> 89800 | L21: 1 | M21: 0.18 | N21: 1 | O21: Sí | P21: 0.185 | Q21: =IFERROR(F21*'Costos Vehículo'!$H$30*L21,"") -> 149076.0852 | R21: =IF(OR(B21='Costos Vehículo'!$C$7,B21='Costos Vehículo'!$C$8,B21='Costos Vehículo'!$C$9,B21='Costos Vehículo'!$C$10,B21='Costos Vehículo'!$C$11),'Costos Vehículo'!$D$4/26,IF(B21='Costos Vehículo'!$C$14,'Costos Vehículo'!$D$5/26,0)) -> 3389.423077 | S21: =IFERROR(VLOOKUP(B21,'Costos Vehículo'!$C$7:$D$14,2,0)/26,0) -> 1104.266026 | T21: =IFERROR(VLOOKUP(B21,'Costos Vehículo'!$C$16:$D$23,2,0)/26,0) -> 23422.59822 | U21: =IF(B21<>"",'Costos Vehículo'!$D$25/26,0) -> 2051.282051 | V21: =IFERROR(VLOOKUP(B21,'Costos Vehículo'!$C$26:$D$33,2,0)/26,0) -> 3913.404 | W21: =IF(B21<>"",'Costos Vehículo'!$D$35/26,0) -> 3846.153846 | X21: =IF(E21="Sí",'Costos Vehículo'!$I$16,0) -> 50000 | Y21: =IF(D21="Sí",'Costos Vehículo'!$K$11/26,0) -> 0 | Z21: =IF(AND(H21="Sí",L21>1),'Costos Vehículo'!$I$13*SUM(F21)+'Costos Vehículo'!$I$15*(L21-1)*SUM(F21),IF(H21="Sí",'Costos Vehículo'!$I$13*SUM(F21),0)) -> 60000 | AA21: =IF(L21>1,'Costos Vehículo'!$I$14*SUM(F21)*(L21-1),0) -> 0 | AB21: 89800 | AC21: =IFERROR(IF(D21="Sí",(VLOOKUP(B21,'Costos Vehículo'!$G$19:$I$26,3,0)+J21/VLOOKUP(B21,'Costos Vehículo'!$G$19:$L$26,5,0))*I21,(VLOOKUP(B21,'Costos Vehículo'!$G$19:$I$26,3,0)+J21/VLOOKUP(B21,'Costos Vehículo'!$G$19:$J$26,4,0))*I21),0) -> 161765.4916 | AD21: =IFERROR(IF(O21="Sí",N21*SUM(F21)*'Costos Vehículo'!$K$29,0),0) -> 19810.42014 | AE21: 124722.2468 | AF21: =SUM(Q21:AE21)*'Costos Vehículo'!$H$29 -> 36127.87748 | AG21: 729029.2484 | AH21: =IFERROR(G21*'Costos Vehículo'!$H$31*L21,0) -> 86300 | AI21: =IFERROR(N21*SUM(G21)*'Costos Vehículo'!$K$28,0) -> 13484.375 | AJ21: =IF(AND(H21="Sí",L21>1),'Costos Vehículo'!$I$13*SUM(G21)+'Costos Vehículo'!$I$15*(L21-1)*SUM(G21),IF(H21="Sí",'Costos Vehículo'!$I$13*SUM(G21),0)) -> 60000 | AK21: =IF(L21>1,'Costos Vehículo'!$I$14*SUM(G21)*(L21-1),0) -> 0 | AL21: 159784.375 | AM21: 888813.6234 | AN21: 201755.2397 | AO21: 1090568.863
A22: BOGOTA_GUATEQUE | B22: Sencillo | C22: =VLOOKUP(A22,'peajes NACIONAL '!$B$2:$E$59,4,0) -> 02:14:00 | D22: No | E22: Sí | F22: 1 | G22: 1 | H22: Sí | I22: =VLOOKUP(A22,'[1]NACIONAL '!B$2:C$58,2,0) -> 113 | J22: 8871 | K22: =VLOOKUP(A22,'peajes NACIONAL '!$B$2:$I$59,8,0) -> 75000 | L22: 1 | M22: 0.18 | N22: 1 | O22: Sí | P22: 0.185 | Q22: =IFERROR(F22*'Costos Vehículo'!$H$30*L22,"") -> 149076.0852 | R22: =IF(OR(B22='Costos Vehículo'!$C$7,B22='Costos Vehículo'!$C$8,B22='Costos Vehículo'!$C$9,B22='Costos Vehículo'!$C$10,B22='Costos Vehículo'!$C$11),'Costos Vehículo'!$D$4/26,IF(B22='Costos Vehículo'!$C$14,'Costos Vehículo'!$D$5/26,0)) -> 3389.423077 | S22: =IFERROR(VLOOKUP(B22,'Costos Vehículo'!$C$7:$D$14,2,0)/26,0) -> 1104.266026 | T22: =IFERROR(VLOOKUP(B22,'Costos Vehículo'!$C$16:$D$23,2,0)/26,0) -> 23422.59822 | U22: =IF(B22<>"",'Costos Vehículo'!$D$25/26,0) -> 2051.282051 | V22: =IFERROR(VLOOKUP(B22,'Costos Vehículo'!$C$26:$D$33,2,0)/26,0) -> 3913.404 | W22: =IF(B22<>"",'Costos Vehículo'!$D$35/26,0) -> 3846.153846 | X22: =IF(E22="Sí",'Costos Vehículo'!$I$16,0) -> 50000 | Y22: =IF(D22="Sí",'Costos Vehículo'!$K$11/26,0) -> 0 | Z22: =IF(AND(H22="Sí",L22>1),'Costos Vehículo'!$I$13*SUM(F22)+'Costos Vehículo'!$I$15*(L22-1)*SUM(F22),IF(H22="Sí",'Costos Vehículo'!$I$13*SUM(F22),0)) -> 60000 | AA22: =IF(L22>1,'Costos Vehículo'!$I$14*SUM(F22)*(L22-1),0) -> 0 | AB22: 75000 | AC22: =IFERROR(IF(D22="Sí",(VLOOKUP(B22,'Costos Vehículo'!$G$19:$I$26,3,0)+J22/VLOOKUP(B22,'Costos Vehículo'!$G$19:$L$26,5,0))*I22,(VLOOKUP(B22,'Costos Vehículo'!$G$19:$I$26,3,0)+J22/VLOOKUP(B22,'Costos Vehículo'!$G$19:$J$26,4,0))*I22),0) -> 135403.7078 | AD22: =IFERROR(IF(O22="Sí",N22*SUM(F22)*'Costos Vehículo'!$K$29,0),0) -> 19810.42014 | AE22: 115686.7332 | AF22: =SUM(Q22:AE22)*'Costos Vehículo'!$H$29 -> 33510.5904 | AG22: 676214.664 | AH22: =IFERROR(G22*'Costos Vehículo'!$H$31*L22,0) -> 86300 | AI22: =IFERROR(N22*SUM(G22)*'Costos Vehículo'!$K$28,0) -> 13484.375 | AJ22: =IF(AND(H22="Sí",L22>1),'Costos Vehículo'!$I$13*SUM(G22)+'Costos Vehículo'!$I$15*(L22-1)*SUM(G22),IF(H22="Sí",'Costos Vehículo'!$I$13*SUM(G22),0)) -> 60000 | AK22: =IF(L22>1,'Costos Vehículo'!$I$14*SUM(G22)*(L22-1),0) -> 0 | AL22: 159784.375 | AM22: 835999.039 | AN22: 189766.653 | AO22: 1025765.692
A23: BOGOTA_IBAGUE | B23: Sencillo | C23: =VLOOKUP(A23,'peajes NACIONAL '!$B$2:$E$59,4,0) -> 03:11:00 | D23: No | E23: Sí | F23: 1 | G23: 1 | H23: Sí | I23: =VLOOKUP(A23,'[1]NACIONAL '!B$2:C$58,2,0) -> 191 | J23: 8871 | K23: =VLOOKUP(A23,'peajes NACIONAL '!$B$2:$I$59,8,0) -> 146700 | L23: 1 | M23: 0.18 | N23: 1 | O23: Sí | P23: 0.185 | Q23: =IFERROR(F23*'Costos Vehículo'!$H$30*L23,"") -> 149076.0852 | R23: =IF(OR(B23='Costos Vehículo'!$C$7,B23='Costos Vehículo'!$C$8,B23='Costos Vehículo'!$C$9,B23='Costos Vehículo'!$C$10,B23='Costos Vehículo'!$C$11),'Costos Vehículo'!$D$4/26,IF(B23='Costos Vehículo'!$C$14,'Costos Vehículo'!$D$5/26,0)) -> 3389.423077 | S23: =IFERROR(VLOOKUP(B23,'Costos Vehículo'!$C$7:$D$14,2,0)/26,0) -> 1104.266026 | T23: =IFERROR(VLOOKUP(B23,'Costos Vehículo'!$C$16:$D$23,2,0)/26,0) -> 23422.59822 | U23: =IF(B23<>"",'Costos Vehículo'!$D$25/26,0) -> 2051.282051 | V23: =IFERROR(VLOOKUP(B23,'Costos Vehículo'!$C$26:$D$33,2,0)/26,0) -> 3913.404 | W23: =IF(B23<>"",'Costos Vehículo'!$D$35/26,0) -> 3846.153846 | X23: =IF(E23="Sí",'Costos Vehículo'!$I$16,0) -> 50000 | Y23: =IF(D23="Sí",'Costos Vehículo'!$K$11/26,0) -> 0 | Z23: =IF(AND(H23="Sí",L23>1),'Costos Vehículo'!$I$13*SUM(F23)+'Costos Vehículo'!$I$15*(L23-1)*SUM(F23),IF(H23="Sí",'Costos Vehículo'!$I$13*SUM(F23),0)) -> 60000 | AA23: =IF(L23>1,'Costos Vehículo'!$I$14*SUM(F23)*(L23-1),0) -> 0 | AB23: 146700 | AC23: =IFERROR(IF(D23="Sí",(VLOOKUP(B23,'Costos Vehículo'!$G$19:$I$26,3,0)+J23/VLOOKUP(B23,'Costos Vehículo'!$G$19:$L$26,5,0))*I23,(VLOOKUP(B23,'Costos Vehículo'!$G$19:$I$26,3,0)+J23/VLOOKUP(B23,'Costos Vehículo'!$G$19:$J$26,4,0))*I23),0) -> 228868.214 | AD23: =IFERROR(IF(O23="Sí",N23*SUM(F23)*'Costos Vehículo'!$K$29,0),0) -> 19810.42014 | AE23: 151942.3566 | AF23: =SUM(Q23:AE23)*'Costos Vehículo'!$H$29 -> 44012.63595 | AG23: 888136.8391 | AH23: =IFERROR(G23*'Costos Vehículo'!$H$31*L23,0) -> 86300 | AI23: =IFERROR(N23*SUM(G23)*'Costos Vehículo'!$K$28,0) -> 13484.375 | AJ23: =IF(AND(H23="Sí",L23>1),'Costos Vehículo'!$I$13*SUM(G23)+'Costos Vehículo'!$I$15*(L23-1)*SUM(G23),IF(H23="Sí",'Costos Vehículo'!$I$13*SUM(G23),0)) -> 60000 | AK23: =IF(L23>1,'Costos Vehículo'!$I$14*SUM(G23)*(L23-1),0) -> 0 | AL23: 159784.375 | AM23: 1047921.214 | AN23: 237871.6866 | AO23: 1285792.901
A24: BOGOTA_MEDELLIN | B24: Sencillo | C24: =VLOOKUP(A24,'peajes NACIONAL '!$B$2:$E$59,4,0) -> 08:12:00 | D24: No | E24: Sí | F24: 1 | G24: 1 | H24: Sí | I24: =VLOOKUP(A24,'[1]NACIONAL '!B$2:C$58,2,0) -> 443 | J24: 8871 | K24: =VLOOKUP(A24,'peajes NACIONAL '!$B$2:$I$59,8,0) -> 170900 | L24: 1 | M24: 0.18 | N24: 1 | O24: Sí | P24: 0.185 | Q24: =IFERROR(F24*'Costos Vehículo'!$H$30*L24,"") -> 149076.0852 | R24: =IF(OR(B24='Costos Vehículo'!$C$7,B24='Costos Vehículo'!$C$8,B24='Costos Vehículo'!$C$9,B24='Costos Vehículo'!$C$10,B24='Costos Vehículo'!$C$11),'Costos Vehículo'!$D$4/26,IF(B24='Costos Vehículo'!$C$14,'Costos Vehículo'!$D$5/26,0)) -> 3389.423077 | S24: =IFERROR(VLOOKUP(B24,'Costos Vehículo'!$C$7:$D$14,2,0)/26,0) -> 1104.266026 | T24: =IFERROR(VLOOKUP(B24,'Costos Vehículo'!$C$16:$D$23,2,0)/26,0) -> 23422.59822 | U24: =IF(B24<>"",'Costos Vehículo'!$D$25/26,0) -> 2051.282051 | V24: =IFERROR(VLOOKUP(B24,'Costos Vehículo'!$C$26:$D$33,2,0)/26,0) -> 3913.404 | W24: =IF(B24<>"",'Costos Vehículo'!$D$35/26,0) -> 3846.153846 | X24: =IF(E24="Sí",'Costos Vehículo'!$I$16,0) -> 50000 | Y24: =IF(D24="Sí",'Costos Vehículo'!$K$11/26,0) -> 0 | Z24: =IF(AND(H24="Sí",L24>1),'Costos Vehículo'!$I$13*SUM(F24)+'Costos Vehículo'!$I$15*(L24-1)*SUM(F24),IF(H24="Sí",'Costos Vehículo'!$I$13*SUM(F24),0)) -> 60000 | AA24: =IF(L24>1,'Costos Vehículo'!$I$14*SUM(F24)*(L24-1),0) -> 0 | AB24: 170900 | AC24: =IFERROR(IF(D24="Sí",(VLOOKUP(B24,'Costos Vehículo'!$G$19:$I$26,3,0)+J24/VLOOKUP(B24,'Costos Vehículo'!$G$19:$L$26,5,0))*I24,(VLOOKUP(B24,'Costos Vehículo'!$G$19:$I$26,3,0)+J24/VLOOKUP(B24,'Costos Vehículo'!$G$19:$J$26,4,0))*I24),0) -> 530830.4649 | AD24: =IFERROR(IF(O24="Sí",N24*SUM(F24)*'Costos Vehículo'!$K$29,0),0) -> 19810.42014 | AE24: 223538.9482 | AF24: =SUM(Q24:AE24)*'Costos Vehículo'!$H$29 -> 64751.782 | AG24: 1306634.828 | AH24: =IFERROR(G24*'Costos Vehículo'!$H$31*L24,0) -> 86300 | AI24: =IFERROR(N24*SUM(G24)*'Costos Vehículo'!$K$28,0) -> 13484.375 | AJ24: =IF(AND(H24="Sí",L24>1),'Costos Vehículo'!$I$13*SUM(G24)+'Costos Vehículo'!$I$15*(L24-1)*SUM(G24),IF(H24="Sí",'Costos Vehículo'!$I$13*SUM(G24),0)) -> 60000 | AK24: =IF(L24>1,'Costos Vehículo'!$I$14*SUM(G24)*(L24-1),0) -> 0 | AL24: 159784.375 | AM24: 1466419.203 | AN24: 332868.1626 | AO24: 1799287.365
A25: BOGOTÁ_NEIVA | B25: Sencillo | C25: =VLOOKUP(A25,'peajes NACIONAL '!$B$2:$E$59,4,0) -> 05:29:00 | D25: No | E25: Sí | F25: 1 | G25: 1 | H25: Sí | I25: =VLOOKUP(A25,'[1]NACIONAL '!B$2:C$58,2,0) -> 292 | J25: 8871 | K25: =VLOOKUP(A25,'peajes NACIONAL '!$B$2:$I$59,8,0) -> 165100 | L25: 1 | M25: 0.18 | N25: 1 | O25: Sí | P25: 0.185 | Q25: =IFERROR(F25*'Costos Vehículo'!$H$30*L25,"") -> 149076.0852 | R25: =IF(OR(B25='Costos Vehículo'!$C$7,B25='Costos Vehículo'!$C$8,B25='Costos Vehículo'!$C$9,B25='Costos Vehículo'!$C$10,B25='Costos Vehículo'!$C$11),'Costos Vehículo'!$D$4/26,IF(B25='Costos Vehículo'!$C$14,'Costos Vehículo'!$D$5/26,0)) -> 3389.423077 | S25: =IFERROR(VLOOKUP(B25,'Costos Vehículo'!$C$7:$D$14,2,0)/26,0) -> 1104.266026 | T25: =IFERROR(VLOOKUP(B25,'Costos Vehículo'!$C$16:$D$23,2,0)/26,0) -> 23422.59822 | U25: =IF(B25<>"",'Costos Vehículo'!$D$25/26,0) -> 2051.282051 | V25: =IFERROR(VLOOKUP(B25,'Costos Vehículo'!$C$26:$D$33,2,0)/26,0) -> 3913.404 | W25: =IF(B25<>"",'Costos Vehículo'!$D$35/26,0) -> 3846.153846 | X25: =IF(E25="Sí",'Costos Vehículo'!$I$16,0) -> 50000 | Y25: =IF(D25="Sí",'Costos Vehículo'!$K$11/26,0) -> 0 | Z25: =IF(AND(H25="Sí",L25>1),'Costos Vehículo'!$I$13*SUM(F25)+'Costos Vehículo'!$I$15*(L25-1)*SUM(F25),IF(H25="Sí",'Costos Vehículo'!$I$13*SUM(F25),0)) -> 60000 | AA25: =IF(L25>1,'Costos Vehículo'!$I$14*SUM(F25)*(L25-1),0) -> 0 | AB25: 165100 | AC25: =IFERROR(IF(D25="Sí",(VLOOKUP(B25,'Costos Vehículo'!$G$19:$I$26,3,0)+J25/VLOOKUP(B25,'Costos Vehículo'!$G$19:$L$26,5,0))*I25,(VLOOKUP(B25,'Costos Vehículo'!$G$19:$I$26,3,0)+J25/VLOOKUP(B25,'Costos Vehículo'!$G$19:$J$26,4,0))*I25),0) -> 349892.767 | AD25: =IFERROR(IF(O25="Sí",N25*SUM(F25)*'Costos Vehículo'!$K$29,0),0) -> 19810.42014 | AE25: 182547.7462 | AF25: =SUM(Q25:AE25)*'Costos Vehículo'!$H$29 -> 52877.99716 | AG25: 1067032.143 | AH25: =IFERROR(G25*'Costos Vehículo'!$H$31*L25,0) -> 86300 | AI25: =IFERROR(N25*SUM(G25)*'Costos Vehículo'!$K$28,0) -> 13484.375 | AJ25: =IF(AND(H25="Sí",L25>1),'Costos Vehículo'!$I$13*SUM(G25)+'Costos Vehículo'!$I$15*(L25-1)*SUM(G25),IF(H25="Sí",'Costos Vehículo'!$I$13*SUM(G25),0)) -> 60000 | AK25: =IF(L25>1,'Costos Vehículo'!$I$14*SUM(G25)*(L25-1),0) -> 0 | AL25: 159784.375 | AM25: 1226816.518 | AN25: 278479.8231 | AO25: 1505296.341
A26: BOGOTA_PAIPA | B26: Sencillo | C26: =VLOOKUP(A26,'peajes NACIONAL '!$B$2:$E$59,4,0) -> 03:41:00 | D26: No | E26: Sí | F26: 1 | G26: 1 | H26: Sí | I26: =VLOOKUP(A26,'[1]NACIONAL '!B$2:C$58,2,0) -> 191 | J26: 8871 | K26: =VLOOKUP(A26,'peajes NACIONAL '!$B$2:$I$59,8,0) -> 119700 | L26: 1 | M26: 0.18 | N26: 1 | O26: Sí | P26: 0.185 | Q26: =IFERROR(F26*'Costos Vehículo'!$H$30*L26,"") -> 149076.0852 | R26: =IF(OR(B26='Costos Vehículo'!$C$7,B26='Costos Vehículo'!$C$8,B26='Costos Vehículo'!$C$9,B26='Costos Vehículo'!$C$10,B26='Costos Vehículo'!$C$11),'Costos Vehículo'!$D$4/26,IF(B26='Costos Vehículo'!$C$14,'Costos Vehículo'!$D$5/26,0)) -> 3389.423077 | S26: =IFERROR(VLOOKUP(B26,'Costos Vehículo'!$C$7:$D$14,2,0)/26,0) -> 1104.266026 | T26: =IFERROR(VLOOKUP(B26,'Costos Vehículo'!$C$16:$D$23,2,0)/26,0) -> 23422.59822 | U26: =IF(B26<>"",'Costos Vehículo'!$D$25/26,0) -> 2051.282051 | V26: =IFERROR(VLOOKUP(B26,'Costos Vehículo'!$C$26:$D$33,2,0)/26,0) -> 3913.404 | W26: =IF(B26<>"",'Costos Vehículo'!$D$35/26,0) -> 3846.153846 | X26: =IF(E26="Sí",'Costos Vehículo'!$I$16,0) -> 50000 | Y26: =IF(D26="Sí",'Costos Vehículo'!$K$11/26,0) -> 0 | Z26: =IF(AND(H26="Sí",L26>1),'Costos Vehículo'!$I$13*SUM(F26)+'Costos Vehículo'!$I$15*(L26-1)*SUM(F26),IF(H26="Sí",'Costos Vehículo'!$I$13*SUM(F26),0)) -> 60000 | AA26: =IF(L26>1,'Costos Vehículo'!$I$14*SUM(F26)*(L26-1),0) -> 0 | AB26: 119700 | AC26: =IFERROR(IF(D26="Sí",(VLOOKUP(B26,'Costos Vehículo'!$G$19:$I$26,3,0)+J26/VLOOKUP(B26,'Costos Vehículo'!$G$19:$L$26,5,0))*I26,(VLOOKUP(B26,'Costos Vehículo'!$G$19:$I$26,3,0)+J26/VLOOKUP(B26,'Costos Vehículo'!$G$19:$J$26,4,0))*I26),0) -> 228868.214 | AD26: =IFERROR(IF(O26="Sí",N26*SUM(F26)*'Costos Vehículo'!$K$29,0),0) -> 19810.42014 | AE26: 146015.5273 | AF26: =SUM(Q26:AE26)*'Costos Vehículo'!$H$29 -> 42295.83107 | AG26: 853493.2049 | AH26: =IFERROR(G26*'Costos Vehículo'!$H$31*L26,0) -> 86300 | AI26: =IFERROR(N26*SUM(G26)*'Costos Vehículo'!$K$28,0) -> 13484.375 | AJ26: =IF(AND(H26="Sí",L26>1),'Costos Vehículo'!$I$13*SUM(G26)+'Costos Vehículo'!$I$15*(L26-1)*SUM(G26),IF(H26="Sí",'Costos Vehículo'!$I$13*SUM(G26),0)) -> 60000 | AK26: =IF(L26>1,'Costos Vehículo'!$I$14*SUM(G26)*(L26-1),0) -> 0 | AL26: 159784.375 | AM26: 1013277.58 | AN26: 230007.7942 | AO26: 1243285.374
A27: BOGOTA_PEREIRA | B27: Sencillo | C27: =VLOOKUP(A27,'peajes NACIONAL '!$B$2:$E$59,4,0) -> 06:06:00 | D27: No | E27: Sí | F27: 1 | G27: 1 | H27: Sí | I27: =VLOOKUP(A27,'[1]NACIONAL '!B$2:C$58,2,0) -> 318 | J27: 8871 | K27: =VLOOKUP(A27,'peajes NACIONAL '!$B$2:$I$59,8,0) -> 193900 | L27: 1 | M27: 0.18 | N27: 1 | O27: Sí | P27: 0.185 | Q27: =IFERROR(F27*'Costos Vehículo'!$H$30*L27,"") -> 149076.0852 | R27: =IF(OR(B27='Costos Vehículo'!$C$7,B27='Costos Vehículo'!$C$8,B27='Costos Vehículo'!$C$9,B27='Costos Vehículo'!$C$10,B27='Costos Vehículo'!$C$11),'Costos Vehículo'!$D$4/26,IF(B27='Costos Vehículo'!$C$14,'Costos Vehículo'!$D$5/26,0)) -> 3389.423077 | S27: =IFERROR(VLOOKUP(B27,'Costos Vehículo'!$C$7:$D$14,2,0)/26,0) -> 1104.266026 | T27: =IFERROR(VLOOKUP(B27,'Costos Vehículo'!$C$16:$D$23,2,0)/26,0) -> 23422.59822 | U27: =IF(B27<>"",'Costos Vehículo'!$D$25/26,0) -> 2051.282051 | V27: =IFERROR(VLOOKUP(B27,'Costos Vehículo'!$C$26:$D$33,2,0)/26,0) -> 3913.404 | W27: =IF(B27<>"",'Costos Vehículo'!$D$35/26,0) -> 3846.153846 | X27: =IF(E27="Sí",'Costos Vehículo'!$I$16,0) -> 50000 | Y27: =IF(D27="Sí",'Costos Vehículo'!$K$11/26,0) -> 0 | Z27: =IF(AND(H27="Sí",L27>1),'Costos Vehículo'!$I$13*SUM(F27)+'Costos Vehículo'!$I$15*(L27-1)*SUM(F27),IF(H27="Sí",'Costos Vehículo'!$I$13*SUM(F27),0)) -> 60000 | AA27: =IF(L27>1,'Costos Vehículo'!$I$14*SUM(F27)*(L27-1),0) -> 0 | AB27: 193900 | AC27: =IFERROR(IF(D27="Sí",(VLOOKUP(B27,'Costos Vehículo'!$G$19:$I$26,3,0)+J27/VLOOKUP(B27,'Costos Vehículo'!$G$19:$L$26,5,0))*I27,(VLOOKUP(B27,'Costos Vehículo'!$G$19:$I$26,3,0)+J27/VLOOKUP(B27,'Costos Vehículo'!$G$19:$J$26,4,0))*I27),0) -> 381047.6024 | AD27: =IFERROR(IF(O27="Sí",N27*SUM(F27)*'Costos Vehículo'!$K$29,0),0) -> 19810.42014 | AE27: 195708.5638 | AF27: =SUM(Q27:AE27)*'Costos Vehículo'!$H$29 -> 56690.2473 | AG27: 1143960.046 | AH27: =IFERROR(G27*'Costos Vehículo'!$H$31*L27,0) -> 86300 | AI27: =IFERROR(N27*SUM(G27)*'Costos Vehículo'!$K$28,0) -> 13484.375 | AJ27: =IF(AND(H27="Sí",L27>1),'Costos Vehículo'!$I$13*SUM(G27)+'Costos Vehículo'!$I$15*(L27-1)*SUM(G27),IF(H27="Sí",'Costos Vehículo'!$I$13*SUM(G27),0)) -> 60000 | AK27: =IF(L27>1,'Costos Vehículo'!$I$14*SUM(G27)*(L27-1),0) -> 0 | AL27: 159784.375 | AM27: 1303744.421 | AN27: 295941.9851 | AO27: 1599686.406
A28: BOGOTA_PITALITO | B28: Sencillo | C28: =VLOOKUP(A28,'peajes NACIONAL '!$B$2:$E$59,4,0) -> 09:22:00 | D28: No | E28: Sí | F28: 1 | G28: 1 | H28: Sí | I28: =VLOOKUP(A28,'[1]NACIONAL '!B$2:C$58,2,0) -> 504 | J28: 8871 | K28: =VLOOKUP(A28,'peajes NACIONAL '!$B$2:$I$59,8,0) -> 202800 | L28: 1 | M28: 0.18 | N28: 1 | O28: Sí | P28: 0.185 | Q28: =IFERROR(F28*'Costos Vehículo'!$H$30*L28,"") -> 149076.0852 | R28: =IF(OR(B28='Costos Vehículo'!$C$7,B28='Costos Vehículo'!$C$8,B28='Costos Vehículo'!$C$9,B28='Costos Vehículo'!$C$10,B28='Costos Vehículo'!$C$11),'Costos Vehículo'!$D$4/26,IF(B28='Costos Vehículo'!$C$14,'Costos Vehículo'!$D$5/26,0)) -> 3389.423077 | S28: =IFERROR(VLOOKUP(B28,'Costos Vehículo'!$C$7:$D$14,2,0)/26,0) -> 1104.266026 | T28: =IFERROR(VLOOKUP(B28,'Costos Vehículo'!$C$16:$D$23,2,0)/26,0) -> 23422.59822 | U28: =IF(B28<>"",'Costos Vehículo'!$D$25/26,0) -> 2051.282051 | V28: =IFERROR(VLOOKUP(B28,'Costos Vehículo'!$C$26:$D$33,2,0)/26,0) -> 3913.404 | W28: =IF(B28<>"",'Costos Vehículo'!$D$35/26,0) -> 3846.153846 | X28: =IF(E28="Sí",'Costos Vehículo'!$I$16,0) -> 50000 | Y28: =IF(D28="Sí",'Costos Vehículo'!$K$11/26,0) -> 0 | Z28: =IF(AND(H28="Sí",L28>1),'Costos Vehículo'!$I$13*SUM(F28)+'Costos Vehículo'!$I$15*(L28-1)*SUM(F28),IF(H28="Sí",'Costos Vehículo'!$I$13*SUM(F28),0)) -> 60000 | AA28: =IF(L28>1,'Costos Vehículo'!$I$14*SUM(F28)*(L28-1),0) -> 0 | AB28: 202800 | AC28: =IFERROR(IF(D28="Sí",(VLOOKUP(B28,'Costos Vehículo'!$G$19:$I$26,3,0)+J28/VLOOKUP(B28,'Costos Vehículo'!$G$19:$L$26,5,0))*I28,(VLOOKUP(B28,'Costos Vehículo'!$G$19:$I$26,3,0)+J28/VLOOKUP(B28,'Costos Vehículo'!$G$19:$J$26,4,0))*I28),0) -> 603924.5019 | AD28: =IFERROR(IF(O28="Sí",N28*SUM(F28)*'Costos Vehículo'!$K$29,0),0) -> 19810.42014 | AE28: 246586.4198 | AF28: =SUM(Q28:AE28)*'Costos Vehículo'!$H$29 -> 71427.86626 | AG28: 1441352.42 | AH28: =IFERROR(G28*'Costos Vehículo'!$H$31*L28,0) -> 86300 | AI28: =IFERROR(N28*SUM(G28)*'Costos Vehículo'!$K$28,0) -> 13484.375 | AJ28: =IF(AND(H28="Sí",L28>1),'Costos Vehículo'!$I$13*SUM(G28)+'Costos Vehículo'!$I$15*(L28-1)*SUM(G28),IF(H28="Sí",'Costos Vehículo'!$I$13*SUM(G28),0)) -> 60000 | AK28: =IF(L28>1,'Costos Vehículo'!$I$14*SUM(G28)*(L28-1),0) -> 0 | AL28: 159784.375 | AM28: 1601136.795 | AN28: 363448.2296 | AO28: 1964585.025
A29: BOGOTA_SANGIL | B29: Sencillo | C29: =VLOOKUP(A29,'peajes NACIONAL '!$B$2:$E$59,4,0) -> 06:10:00 | D29: No | E29: Sí | F29: 1 | G29: 1 | H29: Sí | I29: =VLOOKUP(A29,'[1]NACIONAL '!B$2:C$58,2,0) -> 300 | J29: 8871 | K29: =VLOOKUP(A29,'peajes NACIONAL '!$B$2:$I$59,8,0) -> 110600 | L29: 1 | M29: 0.18 | N29: 1 | O29: Sí | P29: 0.185 | Q29: =IFERROR(F29*'Costos Vehículo'!$H$30*L29,"") -> 149076.0852 | R29: =IF(OR(B29='Costos Vehículo'!$C$7,B29='Costos Vehículo'!$C$8,B29='Costos Vehículo'!$C$9,B29='Costos Vehículo'!$C$10,B29='Costos Vehículo'!$C$11),'Costos Vehículo'!$D$4/26,IF(B29='Costos Vehículo'!$C$14,'Costos Vehículo'!$D$5/26,0)) -> 3389.423077 | S29: =IFERROR(VLOOKUP(B29,'Costos Vehículo'!$C$7:$D$14,2,0)/26,0) -> 1104.266026 | T29: =IFERROR(VLOOKUP(B29,'Costos Vehículo'!$C$16:$D$23,2,0)/26,0) -> 23422.59822 | U29: =IF(B29<>"",'Costos Vehículo'!$D$25/26,0) -> 2051.282051 | V29: =IFERROR(VLOOKUP(B29,'Costos Vehículo'!$C$26:$D$33,2,0)/26,0) -> 3913.404 | W29: =IF(B29<>"",'Costos Vehículo'!$D$35/26,0) -> 3846.153846 | X29: =IF(E29="Sí",'Costos Vehículo'!$I$16,0) -> 50000 | Y29: =IF(D29="Sí",'Costos Vehículo'!$K$11/26,0) -> 0 | Z29: =IF(AND(H29="Sí",L29>1),'Costos Vehículo'!$I$13*SUM(F29)+'Costos Vehículo'!$I$15*(L29-1)*SUM(F29),IF(H29="Sí",'Costos Vehículo'!$I$13*SUM(F29),0)) -> 60000 | AA29: =IF(L29>1,'Costos Vehículo'!$I$14*SUM(F29)*(L29-1),0) -> 0 | AB29: 110600 | AC29: =IFERROR(IF(D29="Sí",(VLOOKUP(B29,'Costos Vehículo'!$G$19:$I$26,3,0)+J29/VLOOKUP(B29,'Costos Vehículo'!$G$19:$L$26,5,0))*I29,(VLOOKUP(B29,'Costos Vehículo'!$G$19:$I$26,3,0)+J29/VLOOKUP(B29,'Costos Vehículo'!$G$19:$J$26,4,0))*I29),0) -> 359478.8702 | AD29: =IFERROR(IF(O29="Sí",N29*SUM(F29)*'Costos Vehículo'!$K$29,0),0) -> 19810.42014 | AE29: 172688.5982 | AF29: =SUM(Q29:AE29)*'Costos Vehículo'!$H$29 -> 50022.1306 | AG29: 1009403.231 | AH29: =IFERROR(G29*'Costos Vehículo'!$H$31*L29,0) -> 86300 | AI29: =IFERROR(N29*SUM(G29)*'Costos Vehículo'!$K$28,0) -> 13484.375 | AJ29: =IF(AND(H29="Sí",L29>1),'Costos Vehículo'!$I$13*SUM(G29)+'Costos Vehículo'!$I$15*(L29-1)*SUM(G29),IF(H29="Sí",'Costos Vehículo'!$I$13*SUM(G29),0)) -> 60000 | AK29: =IF(L29>1,'Costos Vehículo'!$I$14*SUM(G29)*(L29-1),0) -> 0 | AL29: 159784.375 | AM29: 1169187.606 | AN29: 265398.4137 | AO29: 1434586.02
A30: BOGOTA_SANTA MARTA | B30: Sencillo | C30: =VLOOKUP(A30,'peajes NACIONAL '!$B$2:$E$59,4,0) -> 17:14:00 | D30: No | E30: Sí | F30: 1 | G30: 1 | H30: Sí | I30: =VLOOKUP(A30,'[1]NACIONAL '!B$2:C$58,2,0) -> 940 | J30: 8871 | K30: =VLOOKUP(A30,'peajes NACIONAL '!$B$2:$I$59,8,0) -> 383700 | L30: 1 | M30: 0.18 | N30: 1 | O30: Sí | P30: 0.185 | Q30: =IFERROR(F30*'Costos Vehículo'!$H$30*L30,"") -> 149076.0852 | R30: =IF(OR(B30='Costos Vehículo'!$C$7,B30='Costos Vehículo'!$C$8,B30='Costos Vehículo'!$C$9,B30='Costos Vehículo'!$C$10,B30='Costos Vehículo'!$C$11),'Costos Vehículo'!$D$4/26,IF(B30='Costos Vehículo'!$C$14,'Costos Vehículo'!$D$5/26,0)) -> 3389.423077 | S30: =IFERROR(VLOOKUP(B30,'Costos Vehículo'!$C$7:$D$14,2,0)/26,0) -> 1104.266026 | T30: =IFERROR(VLOOKUP(B30,'Costos Vehículo'!$C$16:$D$23,2,0)/26,0) -> 23422.59822 | U30: =IF(B30<>"",'Costos Vehículo'!$D$25/26,0) -> 2051.282051 | V30: =IFERROR(VLOOKUP(B30,'Costos Vehículo'!$C$26:$D$33,2,0)/26,0) -> 3913.404 | W30: =IF(B30<>"",'Costos Vehículo'!$D$35/26,0) -> 3846.153846 | X30: =IF(E30="Sí",'Costos Vehículo'!$I$16,0) -> 50000 | Y30: =IF(D30="Sí",'Costos Vehículo'!$K$11/26,0) -> 0 | Z30: =IF(AND(H30="Sí",L30>1),'Costos Vehículo'!$I$13*SUM(F30)+'Costos Vehículo'!$I$15*(L30-1)*SUM(F30),IF(H30="Sí",'Costos Vehículo'!$I$13*SUM(F30),0)) -> 60000 | AA30: =IF(L30>1,'Costos Vehículo'!$I$14*SUM(F30)*(L30-1),0) -> 0 | AB30: 383700 | AC30: =IFERROR(IF(D30="Sí",(VLOOKUP(B30,'Costos Vehículo'!$G$19:$I$26,3,0)+J30/VLOOKUP(B30,'Costos Vehículo'!$G$19:$L$26,5,0))*I30,(VLOOKUP(B30,'Costos Vehículo'!$G$19:$I$26,3,0)+J30/VLOOKUP(B30,'Costos Vehículo'!$G$19:$J$26,4,0))*I30),0) -> 1126367.127 | AD30: =IFERROR(IF(O30="Sí",N30*SUM(F30)*'Costos Vehículo'!$K$29,0),0) -> 19810.42014 | AE30: 400978.7032 | AF30: =SUM(Q30:AE30)*'Costos Vehículo'!$H$29 -> 116150.1644 | AG30: 2343809.627 | AH30: =IFERROR(G30*'Costos Vehículo'!$H$31*L30,0) -> 86300 | AI30: =IFERROR(N30*SUM(G30)*'Costos Vehículo'!$K$28,0) -> 13484.375 | AJ30: =IF(AND(H30="Sí",L30>1),'Costos Vehículo'!$I$13*SUM(G30)+'Costos Vehículo'!$I$15*(L30-1)*SUM(G30),IF(H30="Sí",'Costos Vehículo'!$I$13*SUM(G30),0)) -> 60000 | AK30: =IF(L30>1,'Costos Vehículo'!$I$14*SUM(G30)*(L30-1),0) -> 0 | AL30: 159784.375 | AM30: 2503594.002 | AN30: 568300.4789 | AO30: 3071894.481
A31: BOGOTA_SOGAMOSO | B31: Sencillo | C31: =VLOOKUP(A31,'peajes NACIONAL '!$B$2:$E$59,4,0) -> 03:16:00 | D31: No | E31: Sí | F31: 1 | G31: 1 | H31: Sí | I31: =VLOOKUP(A31,'[1]NACIONAL '!B$2:C$58,2,0) -> 209 | J31: 8871 | K31: =VLOOKUP(A31,'peajes NACIONAL '!$B$2:$I$59,8,0) -> 107300 | L31: 1 | M31: 0.18 | N31: 1 | O31: Sí | P31: 0.185 | Q31: =IFERROR(F31*'Costos Vehículo'!$H$30*L31,"") -> 149076.0852 | R31: =IF(OR(B31='Costos Vehículo'!$C$7,B31='Costos Vehículo'!$C$8,B31='Costos Vehículo'!$C$9,B31='Costos Vehículo'!$C$10,B31='Costos Vehículo'!$C$11),'Costos Vehículo'!$D$4/26,IF(B31='Costos Vehículo'!$C$14,'Costos Vehículo'!$D$5/26,0)) -> 3389.423077 | S31: =IFERROR(VLOOKUP(B31,'Costos Vehículo'!$C$7:$D$14,2,0)/26,0) -> 1104.266026 | T31: =IFERROR(VLOOKUP(B31,'Costos Vehículo'!$C$16:$D$23,2,0)/26,0) -> 23422.59822 | U31: =IF(B31<>"",'Costos Vehículo'!$D$25/26,0) -> 2051.282051 | V31: =IFERROR(VLOOKUP(B31,'Costos Vehículo'!$C$26:$D$33,2,0)/26,0) -> 3913.404 | W31: =IF(B31<>"",'Costos Vehículo'!$D$35/26,0) -> 3846.153846 | X31: =IF(E31="Sí",'Costos Vehículo'!$I$16,0) -> 50000 | Y31: =IF(D31="Sí",'Costos Vehículo'!$K$11/26,0) -> 0 | Z31: =IF(AND(H31="Sí",L31>1),'Costos Vehículo'!$I$13*SUM(F31)+'Costos Vehículo'!$I$15*(L31-1)*SUM(F31),IF(H31="Sí",'Costos Vehículo'!$I$13*SUM(F31),0)) -> 60000 | AA31: =IF(L31>1,'Costos Vehículo'!$I$14*SUM(F31)*(L31-1),0) -> 0 | AB31: 107300 | AC31: =IFERROR(IF(D31="Sí",(VLOOKUP(B31,'Costos Vehículo'!$G$19:$I$26,3,0)+J31/VLOOKUP(B31,'Costos Vehículo'!$G$19:$L$26,5,0))*I31,(VLOOKUP(B31,'Costos Vehículo'!$G$19:$I$26,3,0)+J31/VLOOKUP(B31,'Costos Vehículo'!$G$19:$J$26,4,0))*I31),0) -> 250436.9462 | AD31: =IFERROR(IF(O31="Sí",N31*SUM(F31)*'Costos Vehículo'!$K$29,0),0) -> 19810.42014 | AE31: 148028.1758 | AF31: =SUM(Q31:AE31)*'Costos Vehículo'!$H$29 -> 42878.82827 | AG31: 865257.5829 | AH31: =IFERROR(G31*'Costos Vehículo'!$H$31*L31,0) -> 86300 | AI31: =IFERROR(N31*SUM(G31)*'Costos Vehículo'!$K$28,0) -> 13484.375 | AJ31: =IF(AND(H31="Sí",L31>1),'Costos Vehículo'!$I$13*SUM(G31)+'Costos Vehículo'!$I$15*(L31-1)*SUM(G31),IF(H31="Sí",'Costos Vehículo'!$I$13*SUM(G31),0)) -> 60000 | AK31: =IF(L31>1,'Costos Vehículo'!$I$14*SUM(G31)*(L31-1),0) -> 0 | AL31: 159784.375 | AM31: 1025041.958 | AN31: 232678.2358 | AO31: 1257720.194
A32: BOGOTA_TIBASOSA | B32: Sencillo | C32: =VLOOKUP(A32,'peajes NACIONAL '!$B$2:$E$59,4,0) -> 03:11:00 | D32: No | E32: Sí | F32: 1 | G32: 1 | H32: Sí | I32: =VLOOKUP(A32,'[1]NACIONAL '!B$2:C$58,2,0) -> 201 | J32: 8871 | K32: =VLOOKUP(A32,'peajes NACIONAL '!$B$2:$I$59,8,0) -> 107300 | L32: 1 | M32: 0.18 | N32: 1 | O32: Sí | P32: 0.185 | Q32: =IFERROR(F32*'Costos Vehículo'!$H$30*L32,"") -> 149076.0852 | R32: =IF(OR(B32='Costos Vehículo'!$C$7,B32='Costos Vehículo'!$C$8,B32='Costos Vehículo'!$C$9,B32='Costos Vehículo'!$C$10,B32='Costos Vehículo'!$C$11),'Costos Vehículo'!$D$4/26,IF(B32='Costos Vehículo'!$C$14,'Costos Vehículo'!$D$5/26,0)) -> 3389.423077 | S32: =IFERROR(VLOOKUP(B32,'Costos Vehículo'!$C$7:$D$14,2,0)/26,0) -> 1104.266026 | T32: =IFERROR(VLOOKUP(B32,'Costos Vehículo'!$C$16:$D$23,2,0)/26,0) -> 23422.59822 | U32: =IF(B32<>"",'Costos Vehículo'!$D$25/26,0) -> 2051.282051 | V32: =IFERROR(VLOOKUP(B32,'Costos Vehículo'!$C$26:$D$33,2,0)/26,0) -> 3913.404 | W32: =IF(B32<>"",'Costos Vehículo'!$D$35/26,0) -> 3846.153846 | X32: =IF(E32="Sí",'Costos Vehículo'!$I$16,0) -> 50000 | Y32: =IF(D32="Sí",'Costos Vehículo'!$K$11/26,0) -> 0 | Z32: =IF(AND(H32="Sí",L32>1),'Costos Vehículo'!$I$13*SUM(F32)+'Costos Vehículo'!$I$15*(L32-1)*SUM(F32),IF(H32="Sí",'Costos Vehículo'!$I$13*SUM(F32),0)) -> 60000 | AA32: =IF(L32>1,'Costos Vehículo'!$I$14*SUM(F32)*(L32-1),0) -> 0 | AB32: 107300 | AC32: =IFERROR(IF(D32="Sí",(VLOOKUP(B32,'Costos Vehículo'!$G$19:$I$26,3,0)+J32/VLOOKUP(B32,'Costos Vehículo'!$G$19:$L$26,5,0))*I32,(VLOOKUP(B32,'Costos Vehículo'!$G$19:$I$26,3,0)+J32/VLOOKUP(B32,'Costos Vehículo'!$G$19:$J$26,4,0))*I32),0) -> 240850.843 | AD32: =IFERROR(IF(O32="Sí",N32*SUM(F32)*'Costos Vehículo'!$K$29,0),0) -> 19810.42014 | AE32: 145923.9093 | AF32: =SUM(Q32:AE32)*'Costos Vehículo'!$H$29 -> 42269.29239 | AG32: 852957.6772 | AH32: =IFERROR(G32*'Costos Vehículo'!$H$31*L32,0) -> 86300 | AI32: =IFERROR(N32*SUM(G32)*'Costos Vehículo'!$K$28,0) -> 13484.375 | AJ32: =IF(AND(H32="Sí",L32>1),'Costos Vehículo'!$I$13*SUM(G32)+'Costos Vehículo'!$I$15*(L32-1)*SUM(G32),IF(H32="Sí",'Costos Vehículo'!$I$13*SUM(G32),0)) -> 60000 | AK32: =IF(L32>1,'Costos Vehículo'!$I$14*SUM(G32)*(L32-1),0) -> 0 | AL32: 159784.375 | AM32: 1012742.052 | AN32: 229886.2327 | AO32: 1242628.285
A33: BOGOTA_TUNJA | B33: Sencillo | C33: =VLOOKUP(A33,'peajes NACIONAL '!$B$2:$E$59,4,0) -> 02:55:00 | D33: No | E33: Sí | F33: 1 | G33: 1 | H33: Sí | I33: =VLOOKUP(A33,'[1]NACIONAL '!B$2:C$58,2,0) -> 152 | J33: 8871 | K33: =VLOOKUP(A33,'peajes NACIONAL '!$B$2:$I$59,8,0) -> 87900 | L33: 1 | M33: 0.18 | N33: 1 | O33: Sí | P33: 0.185 | Q33: =IFERROR(F33*'Costos Vehículo'!$H$30*L33,"") -> 149076.0852 | R33: =IF(OR(B33='Costos Vehículo'!$C$7,B33='Costos Vehículo'!$C$8,B33='Costos Vehículo'!$C$9,B33='Costos Vehículo'!$C$10,B33='Costos Vehículo'!$C$11),'Costos Vehículo'!$D$4/26,IF(B33='Costos Vehículo'!$C$14,'Costos Vehículo'!$D$5/26,0)) -> 3389.423077 | S33: =IFERROR(VLOOKUP(B33,'Costos Vehículo'!$C$7:$D$14,2,0)/26,0) -> 1104.266026 | T33: =IFERROR(VLOOKUP(B33,'Costos Vehículo'!$C$16:$D$23,2,0)/26,0) -> 23422.59822 | U33: =IF(B33<>"",'Costos Vehículo'!$D$25/26,0) -> 2051.282051 | V33: =IFERROR(VLOOKUP(B33,'Costos Vehículo'!$C$26:$D$33,2,0)/26,0) -> 3913.404 | W33: =IF(B33<>"",'Costos Vehículo'!$D$35/26,0) -> 3846.153846 | X33: =IF(E33="Sí",'Costos Vehículo'!$I$16,0) -> 50000 | Y33: =IF(D33="Sí",'Costos Vehículo'!$K$11/26,0) -> 0 | Z33: =IF(AND(H33="Sí",L33>1),'Costos Vehículo'!$I$13*SUM(F33)+'Costos Vehículo'!$I$15*(L33-1)*SUM(F33),IF(H33="Sí",'Costos Vehículo'!$I$13*SUM(F33),0)) -> 60000 | AA33: =IF(L33>1,'Costos Vehículo'!$I$14*SUM(F33)*(L33-1),0) -> 0 | AB33: 87900 | AC33: =IFERROR(IF(D33="Sí",(VLOOKUP(B33,'Costos Vehículo'!$G$19:$I$26,3,0)+J33/VLOOKUP(B33,'Costos Vehículo'!$G$19:$L$26,5,0))*I33,(VLOOKUP(B33,'Costos Vehículo'!$G$19:$I$26,3,0)+J33/VLOOKUP(B33,'Costos Vehículo'!$G$19:$J$26,4,0))*I33),0) -> 182135.9609 | AD33: =IFERROR(IF(O33="Sí",N33*SUM(F33)*'Costos Vehículo'!$K$29,0),0) -> 19810.42014 | AE33: 128776.74 | AF33: =SUM(Q33:AE33)*'Costos Vehículo'!$H$29 -> 37302.32903 | AG33: 752728.6625 | AH33: =IFERROR(G33*'Costos Vehículo'!$H$31*L33,0) -> 86300 | AI33: =IFERROR(N33*SUM(G33)*'Costos Vehículo'!$K$28,0) -> 13484.375 | AJ33: =IF(AND(H33="Sí",L33>1),'Costos Vehículo'!$I$13*SUM(G33)+'Costos Vehículo'!$I$15*(L33-1)*SUM(G33),IF(H33="Sí",'Costos Vehículo'!$I$13*SUM(G33),0)) -> 60000 | AK33: =IF(L33>1,'Costos Vehículo'!$I$14*SUM(G33)*(L33-1),0) -> 0 | AL33: 159784.375 | AM33: 912513.0375 | AN33: 207134.8613 | AO33: 1119647.899
A34: BOGOTA_UBATE | B34: Sencillo | C34: =VLOOKUP(A34,'peajes NACIONAL '!$B$2:$E$59,4,0) -> 01:51:00 | D34: No | E34: Sí | F34: 1 | G34: 1 | H34: Sí | I34: =VLOOKUP(A34,'[1]NACIONAL '!B$2:C$58,2,0) -> 85.2 | J34: 8871 | K34: =VLOOKUP(A34,'peajes NACIONAL '!$B$2:$I$59,8,0) -> 51400 | L34: 1 | M34: 0.18 | N34: 1 | O34: Sí | P34: 0.185 | Q34: =IFERROR(F34*'Costos Vehículo'!$H$30*L34,"") -> 149076.0852 | R34: =IF(OR(B34='Costos Vehículo'!$C$7,B34='Costos Vehículo'!$C$8,B34='Costos Vehículo'!$C$9,B34='Costos Vehículo'!$C$10,B34='Costos Vehículo'!$C$11),'Costos Vehículo'!$D$4/26,IF(B34='Costos Vehículo'!$C$14,'Costos Vehículo'!$D$5/26,0)) -> 3389.423077 | S34: =IFERROR(VLOOKUP(B34,'Costos Vehículo'!$C$7:$D$14,2,0)/26,0) -> 1104.266026 | T34: =IFERROR(VLOOKUP(B34,'Costos Vehículo'!$C$16:$D$23,2,0)/26,0) -> 23422.59822 | U34: =IF(B34<>"",'Costos Vehículo'!$D$25/26,0) -> 2051.282051 | V34: =IFERROR(VLOOKUP(B34,'Costos Vehículo'!$C$26:$D$33,2,0)/26,0) -> 3913.404 | W34: =IF(B34<>"",'Costos Vehículo'!$D$35/26,0) -> 3846.153846 | X34: =IF(E34="Sí",'Costos Vehículo'!$I$16,0) -> 50000 | Y34: =IF(D34="Sí",'Costos Vehículo'!$K$11/26,0) -> 0 | Z34: =IF(AND(H34="Sí",L34>1),'Costos Vehículo'!$I$13*SUM(F34)+'Costos Vehículo'!$I$15*(L34-1)*SUM(F34),IF(H34="Sí",'Costos Vehículo'!$I$13*SUM(F34),0)) -> 60000 | AA34: =IF(L34>1,'Costos Vehículo'!$I$14*SUM(F34)*(L34-1),0) -> 0 | AB34: 51400 | AC34: =IFERROR(IF(D34="Sí",(VLOOKUP(B34,'Costos Vehículo'!$G$19:$I$26,3,0)+J34/VLOOKUP(B34,'Costos Vehículo'!$G$19:$L$26,5,0))*I34,(VLOOKUP(B34,'Costos Vehículo'!$G$19:$I$26,3,0)+J34/VLOOKUP(B34,'Costos Vehículo'!$G$19:$J$26,4,0))*I34),0) -> 102091.9991 | AD34: =IFERROR(IF(O34="Sí",N34*SUM(F34)*'Costos Vehículo'!$K$29,0),0) -> 19810.42014 | AE34: 103193.9192 | AF34: =SUM(Q34:AE34)*'Costos Vehículo'!$H$29 -> 29891.83858 | AG34: 603191.3894 | AH34: =IFERROR(G34*'Costos Vehículo'!$H$31*L34,0) -> 86300 | AI34: =IFERROR(N34*SUM(G34)*'Costos Vehículo'!$K$28,0) -> 13484.375 | AJ34: =IF(AND(H34="Sí",L34>1),'Costos Vehículo'!$I$13*SUM(G34)+'Costos Vehículo'!$I$15*(L34-1)*SUM(G34),IF(H34="Sí",'Costos Vehículo'!$I$13*SUM(G34),0)) -> 60000 | AK34: =IF(L34>1,'Costos Vehículo'!$I$14*SUM(G34)*(L34-1),0) -> 0 | AL34: 159784.375 | AM34: 762975.7644 | AN34: 173190.8177 | AO34: 936166.5821
A35: BOGOTA_VILLA DE LEYVA | B35: Sencillo | C35: =VLOOKUP(A35,'peajes NACIONAL '!$B$2:$E$59,4,0) -> 02:35:00 | D35: No | E35: Sí | F35: 1 | G35: 1 | H35: Sí | I35: =VLOOKUP(A35,'[1]NACIONAL '!B$2:C$58,2,0) -> 159 | J35: 8871 | K35: =VLOOKUP(A35,'peajes NACIONAL '!$B$2:$I$59,8,0) -> 115000 | L35: 1 | M35: 0.18 | N35: 1 | O35: Sí | P35: 0.185 | Q35: =IFERROR(F35*'Costos Vehículo'!$H$30*L35,"") -> 149076.0852 | R35: =IF(OR(B35='Costos Vehículo'!$C$7,B35='Costos Vehículo'!$C$8,B35='Costos Vehículo'!$C$9,B35='Costos Vehículo'!$C$10,B35='Costos Vehículo'!$C$11),'Costos Vehículo'!$D$4/26,IF(B35='Costos Vehículo'!$C$14,'Costos Vehículo'!$D$5/26,0)) -> 3389.423077 | S35: =IFERROR(VLOOKUP(B35,'Costos Vehículo'!$C$7:$D$14,2,0)/26,0) -> 1104.266026 | T35: =IFERROR(VLOOKUP(B35,'Costos Vehículo'!$C$16:$D$23,2,0)/26,0) -> 23422.59822 | U35: =IF(B35<>"",'Costos Vehículo'!$D$25/26,0) -> 2051.282051 | V35: =IFERROR(VLOOKUP(B35,'Costos Vehículo'!$C$26:$D$33,2,0)/26,0) -> 3913.404 | W35: =IF(B35<>"",'Costos Vehículo'!$D$35/26,0) -> 3846.153846 | X35: =IF(E35="Sí",'Costos Vehículo'!$I$16,0) -> 50000 | Y35: =IF(D35="Sí",'Costos Vehículo'!$K$11/26,0) -> 0 | Z35: =IF(AND(H35="Sí",L35>1),'Costos Vehículo'!$I$13*SUM(F35)+'Costos Vehículo'!$I$15*(L35-1)*SUM(F35),IF(H35="Sí",'Costos Vehículo'!$I$13*SUM(F35),0)) -> 60000 | AA35: =IF(L35>1,'Costos Vehículo'!$I$14*SUM(F35)*(L35-1),0) -> 0 | AB35: 115000 | AC35: =IFERROR(IF(D35="Sí",(VLOOKUP(B35,'Costos Vehículo'!$G$19:$I$26,3,0)+J35/VLOOKUP(B35,'Costos Vehículo'!$G$19:$L$26,5,0))*I35,(VLOOKUP(B35,'Costos Vehículo'!$G$19:$I$26,3,0)+J35/VLOOKUP(B35,'Costos Vehículo'!$G$19:$J$26,4,0))*I35),0) -> 190523.8012 | AD35: =IFERROR(IF(O35="Sí",N35*SUM(F35)*'Costos Vehículo'!$K$29,0),0) -> 19810.42014 | AE35: 136566.7538 | AF35: =SUM(Q35:AE35)*'Costos Vehículo'!$H$29 -> 39558.83634 | AG35: 798263.0238 | AH35: =IFERROR(G35*'Costos Vehículo'!$H$31*L35,0) -> 86300 | AI35: =IFERROR(N35*SUM(G35)*'Costos Vehículo'!$K$28,0) -> 13484.375 | AJ35: =IF(AND(H35="Sí",L35>1),'Costos Vehículo'!$I$13*SUM(G35)+'Costos Vehículo'!$I$15*(L35-1)*SUM(G35),IF(H35="Sí",'Costos Vehículo'!$I$13*SUM(G35),0)) -> 60000 | AK35: =IF(L35>1,'Costos Vehículo'!$I$14*SUM(G35)*(L35-1),0) -> 0 | AL35: 159784.375 | AM35: 958047.3988 | AN35: 217470.8819 | AO35: 1175518.281
A36: BOGOTA_VILLAVICENCIO | B36: Sencillo | C36: =VLOOKUP(A36,'peajes NACIONAL '!$B$2:$E$59,4,0) -> 02:29:00 | D36: No | E36: Sí | F36: 1 | G36: 1 | H36: Sí | I36: =VLOOKUP(A36,'[1]NACIONAL '!B$2:C$58,2,0) -> 117 | J36: 8871 | K36: =VLOOKUP(A36,'peajes NACIONAL '!$B$2:$I$59,8,0) -> 199600 | L36: 1 | M36: 0.18 | N36: 1 | O36: Sí | P36: 0.185 | Q36: =IFERROR(F36*'Costos Vehículo'!$H$30*L36,"") -> 149076.0852 | R36: =IF(OR(B36='Costos Vehículo'!$C$7,B36='Costos Vehículo'!$C$8,B36='Costos Vehículo'!$C$9,B36='Costos Vehículo'!$C$10,B36='Costos Vehículo'!$C$11),'Costos Vehículo'!$D$4/26,IF(B36='Costos Vehículo'!$C$14,'Costos Vehículo'!$D$5/26,0)) -> 3389.423077 | S36: =IFERROR(VLOOKUP(B36,'Costos Vehículo'!$C$7:$D$14,2,0)/26,0) -> 1104.266026 | T36: =IFERROR(VLOOKUP(B36,'Costos Vehículo'!$C$16:$D$23,2,0)/26,0) -> 23422.59822 | U36: =IF(B36<>"",'Costos Vehículo'!$D$25/26,0) -> 2051.282051 | V36: =IFERROR(VLOOKUP(B36,'Costos Vehículo'!$C$26:$D$33,2,0)/26,0) -> 3913.404 | W36: =IF(B36<>"",'Costos Vehículo'!$D$35/26,0) -> 3846.153846 | X36: =IF(E36="Sí",'Costos Vehículo'!$I$16,0) -> 50000 | Y36: =IF(D36="Sí",'Costos Vehículo'!$K$11/26,0) -> 0 | Z36: =IF(AND(H36="Sí",L36>1),'Costos Vehículo'!$I$13*SUM(F36)+'Costos Vehículo'!$I$15*(L36-1)*SUM(F36),IF(H36="Sí",'Costos Vehículo'!$I$13*SUM(F36),0)) -> 60000 | AA36: =IF(L36>1,'Costos Vehículo'!$I$14*SUM(F36)*(L36-1),0) -> 0 | AB36: 199600 | AC36: =IFERROR(IF(D36="Sí",(VLOOKUP(B36,'Costos Vehículo'!$G$19:$I$26,3,0)+J36/VLOOKUP(B36,'Costos Vehículo'!$G$19:$L$26,5,0))*I36,(VLOOKUP(B36,'Costos Vehículo'!$G$19:$I$26,3,0)+J36/VLOOKUP(B36,'Costos Vehículo'!$G$19:$J$26,4,0))*I36),0) -> 140196.7594 | AD36: =IFERROR(IF(O36="Sí",N36*SUM(F36)*'Costos Vehículo'!$K$29,0),0) -> 19810.42014 | AE36: 144090.086 | AF36: =SUM(Q36:AE36)*'Costos Vehículo'!$H$29 -> 41738.09492 | AG36: 842238.5729 | AH36: =IFERROR(G36*'Costos Vehículo'!$H$31*L36,0) -> 86300 | AI36: =IFERROR(N36*SUM(G36)*'Costos Vehículo'!$K$28,0) -> 13484.375 | AJ36: =IF(AND(H36="Sí",L36>1),'Costos Vehículo'!$I$13*SUM(G36)+'Costos Vehículo'!$I$15*(L36-1)*SUM(G36),IF(H36="Sí",'Costos Vehículo'!$I$13*SUM(G36),0)) -> 60000 | AK36: =IF(L36>1,'Costos Vehículo'!$I$14*SUM(G36)*(L36-1),0) -> 0 | AL36: 159784.375 | AM36: 1002022.948 | AN36: 227453.0618 | AO36: 1229476.01
A37: BOGOTA_YOPAL | B37: Sencillo | C37: =VLOOKUP(A37,'peajes NACIONAL '!$B$2:$E$59,4,0) -> 06:18:00 | D37: No | E37: Sí | F37: 1 | G37: 1 | H37: Sí | I37: =VLOOKUP(A37,'[1]NACIONAL '!B$2:C$58,2,0) -> 337 | J37: 8871 | K37: =VLOOKUP(A37,'peajes NACIONAL '!$B$2:$I$59,8,0) -> 255900 | L37: 1 | M37: 0.18 | N37: 1 | O37: Sí | P37: 0.185 | Q37: =IFERROR(F37*'Costos Vehículo'!$H$30*L37,"") -> 149076.0852 | R37: =IF(OR(B37='Costos Vehículo'!$C$7,B37='Costos Vehículo'!$C$8,B37='Costos Vehículo'!$C$9,B37='Costos Vehículo'!$C$10,B37='Costos Vehículo'!$C$11),'Costos Vehículo'!$D$4/26,IF(B37='Costos Vehículo'!$C$14,'Costos Vehículo'!$D$5/26,0)) -> 3389.423077 | S37: =IFERROR(VLOOKUP(B37,'Costos Vehículo'!$C$7:$D$14,2,0)/26,0) -> 1104.266026 | T37: =IFERROR(VLOOKUP(B37,'Costos Vehículo'!$C$16:$D$23,2,0)/26,0) -> 23422.59822 | U37: =IF(B37<>"",'Costos Vehículo'!$D$25/26,0) -> 2051.282051 | V37: =IFERROR(VLOOKUP(B37,'Costos Vehículo'!$C$26:$D$33,2,0)/26,0) -> 3913.404 | W37: =IF(B37<>"",'Costos Vehículo'!$D$35/26,0) -> 3846.153846 | X37: =IF(E37="Sí",'Costos Vehículo'!$I$16,0) -> 50000 | Y37: =IF(D37="Sí",'Costos Vehículo'!$K$11/26,0) -> 0 | Z37: =IF(AND(H37="Sí",L37>1),'Costos Vehículo'!$I$13*SUM(F37)+'Costos Vehículo'!$I$15*(L37-1)*SUM(F37),IF(H37="Sí",'Costos Vehículo'!$I$13*SUM(F37),0)) -> 60000 | AA37: =IF(L37>1,'Costos Vehículo'!$I$14*SUM(F37)*(L37-1),0) -> 0 | AB37: 255900 | AC37: =IFERROR(IF(D37="Sí",(VLOOKUP(B37,'Costos Vehículo'!$G$19:$I$26,3,0)+J37/VLOOKUP(B37,'Costos Vehículo'!$G$19:$L$26,5,0))*I37,(VLOOKUP(B37,'Costos Vehículo'!$G$19:$I$26,3,0)+J37/VLOOKUP(B37,'Costos Vehículo'!$G$19:$J$26,4,0))*I37),0) -> 403814.5975 | AD37: =IFERROR(IF(O37="Sí",N37*SUM(F37)*'Costos Vehículo'!$K$29,0),0) -> 19810.42014 | AE37: 214315.9529 | AF37: =SUM(Q37:AE37)*'Costos Vehículo'!$H$29 -> 62080.1877 | AG37: 1252724.371 | AH37: =IFERROR(G37*'Costos Vehículo'!$H$31*L37,0) -> 86300 | AI37: =IFERROR(N37*SUM(G37)*'Costos Vehículo'!$K$28,0) -> 13484.375 | AJ37: =IF(AND(H37="Sí",L37>1),'Costos Vehículo'!$I$13*SUM(G37)+'Costos Vehículo'!$I$15*(L37-1)*SUM(G37),IF(H37="Sí",'Costos Vehículo'!$I$13*SUM(G37),0)) -> 60000 | AK37: =IF(L37>1,'Costos Vehículo'!$I$14*SUM(G37)*(L37-1),0) -> 0 | AL37: 159784.375 | AM37: 1412508.746 | AN37: 320630.8196 | AO37: 1733139.565
A38: BOGOTA_ZIPAQUIRA | B38: Sencillo | C38: =VLOOKUP(A38,'peajes NACIONAL '!$B$2:$E$59,4,0) -> 55.03819444 | D38: No | E38: Sí | F38: 1 | G38: 1 | H38: Sí | I38: =VLOOKUP(A38,'[1]NACIONAL '!B$2:C$58,2,0) -> 42.9 | J38: 8871 | K38: =VLOOKUP(A38,'peajes NACIONAL '!$B$2:$I$59,8,0) -> 21800 | L38: 1 | M38: 0.18 | N38: 1 | O38: Sí | P38: 0.185 | Q38: =IFERROR(F38*'Costos Vehículo'!$H$30*L38,"") -> 149076.0852 | R38: =IF(OR(B38='Costos Vehículo'!$C$7,B38='Costos Vehículo'!$C$8,B38='Costos Vehículo'!$C$9,B38='Costos Vehículo'!$C$10,B38='Costos Vehículo'!$C$11),'Costos Vehículo'!$D$4/26,IF(B38='Costos Vehículo'!$C$14,'Costos Vehículo'!$D$5/26,0)) -> 3389.423077 | S38: =IFERROR(VLOOKUP(B38,'Costos Vehículo'!$C$7:$D$14,2,0)/26,0) -> 1104.266026 | T38: =IFERROR(VLOOKUP(B38,'Costos Vehículo'!$C$16:$D$23,2,0)/26,0) -> 23422.59822 | U38: =IF(B38<>"",'Costos Vehículo'!$D$25/26,0) -> 2051.282051 | V38: =IFERROR(VLOOKUP(B38,'Costos Vehículo'!$C$26:$D$33,2,0)/26,0) -> 3913.404 | W38: =IF(B38<>"",'Costos Vehículo'!$D$35/26,0) -> 3846.153846 | X38: =IF(E38="Sí",'Costos Vehículo'!$I$16,0) -> 50000 | Y38: =IF(D38="Sí",'Costos Vehículo'!$K$11/26,0) -> 0 | Z38: =IF(AND(H38="Sí",L38>1),'Costos Vehículo'!$I$13*SUM(F38)+'Costos Vehículo'!$I$15*(L38-1)*SUM(F38),IF(H38="Sí",'Costos Vehículo'!$I$13*SUM(F38),0)) -> 60000 | AA38: =IF(L38>1,'Costos Vehículo'!$I$14*SUM(F38)*(L38-1),0) -> 0 | AB38: 21800 | AC38: =IFERROR(IF(D38="Sí",(VLOOKUP(B38,'Costos Vehículo'!$G$19:$I$26,3,0)+J38/VLOOKUP(B38,'Costos Vehículo'!$G$19:$L$26,5,0))*I38,(VLOOKUP(B38,'Costos Vehículo'!$G$19:$I$26,3,0)+J38/VLOOKUP(B38,'Costos Vehículo'!$G$19:$J$26,4,0))*I38),0) -> 51405.47843 | AD38: =IFERROR(IF(O38="Sí",N38*SUM(F38)*'Costos Vehículo'!$K$29,0),0) -> 19810.42014 | AE38: 85570.04876 | AF38: =SUM(Q38:AE38)*'Costos Vehículo'!$H$29 -> 24786.79079 | AG38: 500175.9505 | AH38: =IFERROR(G38*'Costos Vehículo'!$H$31*L38,0) -> 86300 | AI38: =IFERROR(N38*SUM(G38)*'Costos Vehículo'!$K$28,0) -> 13484.375 | AJ38: =IF(AND(H38="Sí",L38>1),'Costos Vehículo'!$I$13*SUM(G38)+'Costos Vehículo'!$I$15*(L38-1)*SUM(G38),IF(H38="Sí",'Costos Vehículo'!$I$13*SUM(G38),0)) -> 60000 | AK38: =IF(L38>1,'Costos Vehículo'!$I$14*SUM(G38)*(L38-1),0) -> 0 | AL38: 159784.375 | AM38: 659960.3255 | AN38: 149806.9451 | AO38: 809767.2706
A39: BUCARAMANGA_BARRANCABERMEJA | B39: Sencillo | C39: =VLOOKUP(A39,'peajes NACIONAL '!$B$2:$E$59,4,0) -> 02:18:00 | D39: No | E39: Sí | F39: 1 | G39: 1 | H39: Sí | I39: =VLOOKUP(A39,'[1]NACIONAL '!B$2:C$58,2,0) -> 116 | J39: 8871 | K39: =VLOOKUP(A39,'peajes NACIONAL '!$B$2:$I$59,8,0) -> 53700 | L39: 1 | M39: 0.18 | N39: 1 | O39: Sí | P39: 0.185 | Q39: =IFERROR(F39*'Costos Vehículo'!$H$30*L39,"") -> 149076.0852 | R39: =IF(OR(B39='Costos Vehículo'!$C$7,B39='Costos Vehículo'!$C$8,B39='Costos Vehículo'!$C$9,B39='Costos Vehículo'!$C$10,B39='Costos Vehículo'!$C$11),'Costos Vehículo'!$D$4/26,IF(B39='Costos Vehículo'!$C$14,'Costos Vehículo'!$D$5/26,0)) -> 3389.423077 | S39: =IFERROR(VLOOKUP(B39,'Costos Vehículo'!$C$7:$D$14,2,0)/26,0) -> 1104.266026 | T39: =IFERROR(VLOOKUP(B39,'Costos Vehículo'!$C$16:$D$23,2,0)/26,0) -> 23422.59822 | U39: =IF(B39<>"",'Costos Vehículo'!$D$25/26,0) -> 2051.282051 | V39: =IFERROR(VLOOKUP(B39,'Costos Vehículo'!$C$26:$D$33,2,0)/26,0) -> 3913.404 | W39: =IF(B39<>"",'Costos Vehículo'!$D$35/26,0) -> 3846.153846 | X39: =IF(E39="Sí",'Costos Vehículo'!$I$16,0) -> 50000 | Y39: =IF(D39="Sí",'Costos Vehículo'!$K$11/26,0) -> 0 | Z39: =IF(AND(H39="Sí",L39>1),'Costos Vehículo'!$I$13*SUM(F39)+'Costos Vehículo'!$I$15*(L39-1)*SUM(F39),IF(H39="Sí",'Costos Vehículo'!$I$13*SUM(F39),0)) -> 60000 | AA39: =IF(L39>1,'Costos Vehículo'!$I$14*SUM(F39)*(L39-1),0) -> 0 | AB39: 53700 | AC39: =IFERROR(IF(D39="Sí",(VLOOKUP(B39,'Costos Vehículo'!$G$19:$I$26,3,0)+J39/VLOOKUP(B39,'Costos Vehículo'!$G$19:$L$26,5,0))*I39,(VLOOKUP(B39,'Costos Vehículo'!$G$19:$I$26,3,0)+J39/VLOOKUP(B39,'Costos Vehículo'!$G$19:$J$26,4,0))*I39),0) -> 138998.4965 | AD39: =IFERROR(IF(O39="Sí",N39*SUM(F39)*'Costos Vehículo'!$K$29,0),0) -> 19810.42014 | AE39: 111800.2234 | AF39: =SUM(Q39:AE39)*'Costos Vehículo'!$H$29 -> 32384.79806 | AG39: 653497.1505 | AH39: =IFERROR(G39*'Costos Vehículo'!$H$31*L39,0) -> 86300 | AI39: =IFERROR(N39*SUM(G39)*'Costos Vehículo'!$K$28,0) -> 13484.375 | AJ39: =IF(AND(H39="Sí",L39>1),'Costos Vehículo'!$I$13*SUM(G39)+'Costos Vehículo'!$I$15*(L39-1)*SUM(G39),IF(H39="Sí",'Costos Vehículo'!$I$13*SUM(G39),0)) -> 60000 | AK39: =IF(L39>1,'Costos Vehículo'!$I$14*SUM(G39)*(L39-1),0) -> 0 | AL39: 159784.375 | AM39: 813281.5255 | AN39: 184609.9168 | AO39: 997891.4424
A40: BUCARAMANGA_CUCUTA | B40: Sencillo | C40: =VLOOKUP(A40,'peajes NACIONAL '!$B$2:$E$59,4,0) -> 04:57:00 | D40: No | E40: Sí | F40: 1 | G40: 1 | H40: Sí | I40: =VLOOKUP(A40,'[1]NACIONAL '!B$2:C$58,2,0) -> 198 | J40: 8871 | K40: =VLOOKUP(A40,'peajes NACIONAL '!$B$2:$I$59,8,0) -> 51700 | L40: 1 | M40: 0.18 | N40: 1 | O40: Sí | P40: 0.185 | Q40: =IFERROR(F40*'Costos Vehículo'!$H$30*L40,"") -> 149076.0852 | R40: =IF(OR(B40='Costos Vehículo'!$C$7,B40='Costos Vehículo'!$C$8,B40='Costos Vehículo'!$C$9,B40='Costos Vehículo'!$C$10,B40='Costos Vehículo'!$C$11),'Costos Vehículo'!$D$4/26,IF(B40='Costos Vehículo'!$C$14,'Costos Vehículo'!$D$5/26,0)) -> 3389.423077 | S40: =IFERROR(VLOOKUP(B40,'Costos Vehículo'!$C$7:$D$14,2,0)/26,0) -> 1104.266026 | T40: =IFERROR(VLOOKUP(B40,'Costos Vehículo'!$C$16:$D$23,2,0)/26,0) -> 23422.59822 | U40: =IF(B40<>"",'Costos Vehículo'!$D$25/26,0) -> 2051.282051 | V40: =IFERROR(VLOOKUP(B40,'Costos Vehículo'!$C$26:$D$33,2,0)/26,0) -> 3913.404 | W40: =IF(B40<>"",'Costos Vehículo'!$D$35/26,0) -> 3846.153846 | X40: =IF(E40="Sí",'Costos Vehículo'!$I$16,0) -> 50000 | Y40: =IF(D40="Sí",'Costos Vehículo'!$K$11/26,0) -> 0 | Z40: =IF(AND(H40="Sí",L40>1),'Costos Vehículo'!$I$13*SUM(F40)+'Costos Vehículo'!$I$15*(L40-1)*SUM(F40),IF(H40="Sí",'Costos Vehículo'!$I$13*SUM(F40),0)) -> 60000 | AA40: =IF(L40>1,'Costos Vehículo'!$I$14*SUM(F40)*(L40-1),0) -> 0 | AB40: 51700 | AC40: =IFERROR(IF(D40="Sí",(VLOOKUP(B40,'Costos Vehículo'!$G$19:$I$26,3,0)+J40/VLOOKUP(B40,'Costos Vehículo'!$G$19:$L$26,5,0))*I40,(VLOOKUP(B40,'Costos Vehículo'!$G$19:$I$26,3,0)+J40/VLOOKUP(B40,'Costos Vehículo'!$G$19:$J$26,4,0))*I40),0) -> 237256.0543 | AD40: =IFERROR(IF(O40="Sí",N40*SUM(F40)*'Costos Vehículo'!$K$29,0),0) -> 19810.42014 | AE40: 132929.9313 | AF40: =SUM(Q40:AE40)*'Costos Vehículo'!$H$29 -> 38505.37009 | AG40: 777004.9882 | AH40: =IFERROR(G40*'Costos Vehículo'!$H$31*L40,0) -> 86300 | AI40: =IFERROR(N40*SUM(G40)*'Costos Vehículo'!$K$28,0) -> 13484.375 | AJ40: =IF(AND(H40="Sí",L40>1),'Costos Vehículo'!$I$13*SUM(G40)+'Costos Vehículo'!$I$15*(L40-1)*SUM(G40),IF(H40="Sí",'Costos Vehículo'!$I$13*SUM(G40),0)) -> 60000 | AK40: =IF(L40>1,'Costos Vehículo'!$I$14*SUM(G40)*(L40-1),0) -> 0 | AL40: 159784.375 | AM40: 936789.3632 | AN40: 212645.4383 | AO40: 1149434.802
A41: BUCARAMANGA_OCAÑA | B41: Sencillo | C41: =VLOOKUP(A41,'peajes NACIONAL '!$B$2:$E$59,4,0) -> 04:44:00 | D41: No | E41: Sí | F41: 1 | G41: 1 | H41: Sí | I41: =VLOOKUP(A41,'[1]NACIONAL '!B$2:C$58,2,0) -> 216 | J41: 8871 | K41: =VLOOKUP(A41,'peajes NACIONAL '!$B$2:$I$59,8,0) -> 107700 | L41: 1 | M41: 0.18 | N41: 1 | O41: Sí | P41: 0.185 | Q41: =IFERROR(F41*'Costos Vehículo'!$H$30*L41,"") -> 149076.0852 | R41: =IF(OR(B41='Costos Vehículo'!$C$7,B41='Costos Vehículo'!$C$8,B41='Costos Vehículo'!$C$9,B41='Costos Vehículo'!$C$10,B41='Costos Vehículo'!$C$11),'Costos Vehículo'!$D$4/26,IF(B41='Costos Vehículo'!$C$14,'Costos Vehículo'!$D$5/26,0)) -> 3389.423077 | S41: =IFERROR(VLOOKUP(B41,'Costos Vehículo'!$C$7:$D$14,2,0)/26,0) -> 1104.266026 | T41: =IFERROR(VLOOKUP(B41,'Costos Vehículo'!$C$16:$D$23,2,0)/26,0) -> 23422.59822 | U41: =IF(B41<>"",'Costos Vehículo'!$D$25/26,0) -> 2051.282051 | V41: =IFERROR(VLOOKUP(B41,'Costos Vehículo'!$C$26:$D$33,2,0)/26,0) -> 3913.404 | W41: =IF(B41<>"",'Costos Vehículo'!$D$35/26,0) -> 3846.153846 | X41: =IF(E41="Sí",'Costos Vehículo'!$I$16,0) -> 50000 | Y41: =IF(D41="Sí",'Costos Vehículo'!$K$11/26,0) -> 0 | Z41: =IF(AND(H41="Sí",L41>1),'Costos Vehículo'!$I$13*SUM(F41)+'Costos Vehículo'!$I$15*(L41-1)*SUM(F41),IF(H41="Sí",'Costos Vehículo'!$I$13*SUM(F41),0)) -> 60000 | AA41: =IF(L41>1,'Costos Vehículo'!$I$14*SUM(F41)*(L41-1),0) -> 0 | AB41: 107700 | AC41: =IFERROR(IF(D41="Sí",(VLOOKUP(B41,'Costos Vehículo'!$G$19:$I$26,3,0)+J41/VLOOKUP(B41,'Costos Vehículo'!$G$19:$L$26,5,0))*I41,(VLOOKUP(B41,'Costos Vehículo'!$G$19:$I$26,3,0)+J41/VLOOKUP(B41,'Costos Vehículo'!$G$19:$J$26,4,0))*I41),0) -> 258824.7865 | AD41: =IFERROR(IF(O41="Sí",N41*SUM(F41)*'Costos Vehículo'!$K$29,0),0) -> 19810.42014 | AE41: 149957.2139 | AF41: =SUM(Q41:AE41)*'Costos Vehículo'!$H$29 -> 43437.60631 | AG41: 876533.2393 | AH41: =IFERROR(G41*'Costos Vehículo'!$H$31*L41,0) -> 86300 | AI41: =IFERROR(N41*SUM(G41)*'Costos Vehículo'!$K$28,0) -> 13484.375 | AJ41: =IF(AND(H41="Sí",L41>1),'Costos Vehículo'!$I$13*SUM(G41)+'Costos Vehículo'!$I$15*(L41-1)*SUM(G41),IF(H41="Sí",'Costos Vehículo'!$I$13*SUM(G41),0)) -> 60000 | AK41: =IF(L41>1,'Costos Vehículo'!$I$14*SUM(G41)*(L41-1),0) -> 0 | AL41: 159784.375 | AM41: 1036317.614 | AN41: 235237.7407 | AO41: 1271555.355
A42: CALI_BUCARAMANGA | B42: Sencillo | C42: =VLOOKUP(A42,'peajes NACIONAL '!$B$2:$E$59,4,0) -> 14:05:00 | D42: No | E42: Sí | F42: 1 | G42: 1 | H42: Sí | I42: =VLOOKUP(A42,'[1]NACIONAL '!B$2:C$58,2,0) -> 769 | J42: 8871 | K42: =VLOOKUP(A42,'peajes NACIONAL '!$B$2:$I$59,8,0) -> 383600 | L42: 1 | M42: 0.18 | N42: 1 | O42: Sí | P42: 0.185 | Q42: =IFERROR(F42*'Costos Vehículo'!$H$30*L42,"") -> 149076.0852 | R42: =IF(OR(B42='Costos Vehículo'!$C$7,B42='Costos Vehículo'!$C$8,B42='Costos Vehículo'!$C$9,B42='Costos Vehículo'!$C$10,B42='Costos Vehículo'!$C$11),'Costos Vehículo'!$D$4/26,IF(B42='Costos Vehículo'!$C$14,'Costos Vehículo'!$D$5/26,0)) -> 3389.423077 | S42: =IFERROR(VLOOKUP(B42,'Costos Vehículo'!$C$7:$D$14,2,0)/26,0) -> 1104.266026 | T42: =IFERROR(VLOOKUP(B42,'Costos Vehículo'!$C$16:$D$23,2,0)/26,0) -> 23422.59822 | U42: =IF(B42<>"",'Costos Vehículo'!$D$25/26,0) -> 2051.282051 | V42: =IFERROR(VLOOKUP(B42,'Costos Vehículo'!$C$26:$D$33,2,0)/26,0) -> 3913.404 | W42: =IF(B42<>"",'Costos Vehículo'!$D$35/26,0) -> 3846.153846 | X42: =IF(E42="Sí",'Costos Vehículo'!$I$16,0) -> 50000 | Y42: =IF(D42="Sí",'Costos Vehículo'!$K$11/26,0) -> 0 | Z42: =IF(AND(H42="Sí",L42>1),'Costos Vehículo'!$I$13*SUM(F42)+'Costos Vehículo'!$I$15*(L42-1)*SUM(F42),IF(H42="Sí",'Costos Vehículo'!$I$13*SUM(F42),0)) -> 60000 | AA42: =IF(L42>1,'Costos Vehículo'!$I$14*SUM(F42)*(L42-1),0) -> 0 | AB42: 383600 | AC42: =IFERROR(IF(D42="Sí",(VLOOKUP(B42,'Costos Vehículo'!$G$19:$I$26,3,0)+J42/VLOOKUP(B42,'Costos Vehículo'!$G$19:$L$26,5,0))*I42,(VLOOKUP(B42,'Costos Vehículo'!$G$19:$I$26,3,0)+J42/VLOOKUP(B42,'Costos Vehículo'!$G$19:$J$26,4,0))*I42),0) -> 921464.1705 | AD42: =IFERROR(IF(O42="Sí",N42*SUM(F42)*'Costos Vehículo'!$K$29,0),0) -> 19810.42014 | AE42: 355978.0543 | AF42: =SUM(Q42:AE42)*'Costos Vehículo'!$H$29 -> 103114.9764 | AG42: 2080770.834 | AH42: =IFERROR(G42*'Costos Vehículo'!$H$31*L42,0) -> 86300 | AI42: =IFERROR(N42*SUM(G42)*'Costos Vehículo'!$K$28,0) -> 13484.375 | AJ42: =IF(AND(H42="Sí",L42>1),'Costos Vehículo'!$I$13*SUM(G42)+'Costos Vehículo'!$I$15*(L42-1)*SUM(G42),IF(H42="Sí",'Costos Vehículo'!$I$13*SUM(G42),0)) -> 60000 | AK42: =IF(L42>1,'Costos Vehículo'!$I$14*SUM(G42)*(L42-1),0) -> 0 | AL42: 159784.375 | AM42: 2240555.209 | AN42: 508592.2867 | AO42: 2749147.495
A43: CALI_IPIALES | B43: Sencillo | C43: =VLOOKUP(A43,'peajes NACIONAL '!$B$2:$E$59,4,0) -> 08:48:00 | D43: No | E43: Sí | F43: 1 | G43: 1 | H43: Sí | I43: =VLOOKUP(A43,'[1]NACIONAL '!B$2:C$58,2,0) -> 473 | J43: 8871 | K43: =VLOOKUP(A43,'peajes NACIONAL '!$B$2:$I$59,8,0) -> 166500 | L43: 1 | M43: 0.18 | N43: 1 | O43: Sí | P43: 0.185 | Q43: =IFERROR(F43*'Costos Vehículo'!$H$30*L43,"") -> 149076.0852 | R43: =IF(OR(B43='Costos Vehículo'!$C$7,B43='Costos Vehículo'!$C$8,B43='Costos Vehículo'!$C$9,B43='Costos Vehículo'!$C$10,B43='Costos Vehículo'!$C$11),'Costos Vehículo'!$D$4/26,IF(B43='Costos Vehículo'!$C$14,'Costos Vehículo'!$D$5/26,0)) -> 3389.423077 | S43: =IFERROR(VLOOKUP(B43,'Costos Vehículo'!$C$7:$D$14,2,0)/26,0) -> 1104.266026 | T43: =IFERROR(VLOOKUP(B43,'Costos Vehículo'!$C$16:$D$23,2,0)/26,0) -> 23422.59822 | U43: =IF(B43<>"",'Costos Vehículo'!$D$25/26,0) -> 2051.282051 | V43: =IFERROR(VLOOKUP(B43,'Costos Vehículo'!$C$26:$D$33,2,0)/26,0) -> 3913.404 | W43: =IF(B43<>"",'Costos Vehículo'!$D$35/26,0) -> 3846.153846 | X43: =IF(E43="Sí",'Costos Vehículo'!$I$16,0) -> 50000 | Y43: =IF(D43="Sí",'Costos Vehículo'!$K$11/26,0) -> 0 | Z43: =IF(AND(H43="Sí",L43>1),'Costos Vehículo'!$I$13*SUM(F43)+'Costos Vehículo'!$I$15*(L43-1)*SUM(F43),IF(H43="Sí",'Costos Vehículo'!$I$13*SUM(F43),0)) -> 60000 | AA43: =IF(L43>1,'Costos Vehículo'!$I$14*SUM(F43)*(L43-1),0) -> 0 | AB43: 166500 | AC43: =IFERROR(IF(D43="Sí",(VLOOKUP(B43,'Costos Vehículo'!$G$19:$I$26,3,0)+J43/VLOOKUP(B43,'Costos Vehículo'!$G$19:$L$26,5,0))*I43,(VLOOKUP(B43,'Costos Vehículo'!$G$19:$I$26,3,0)+J43/VLOOKUP(B43,'Costos Vehículo'!$G$19:$J$26,4,0))*I43),0) -> 566778.352 | AD43: =IFERROR(IF(O43="Sí",N43*SUM(F43)*'Costos Vehículo'!$K$29,0),0) -> 19810.42014 | AE43: 230464.0942 | AF43: =SUM(Q43:AE43)*'Costos Vehículo'!$H$29 -> 66757.76594 | AG43: 1347113.845 | AH43: =IFERROR(G43*'Costos Vehículo'!$H$31*L43,0) -> 86300 | AI43: =IFERROR(N43*SUM(G43)*'Costos Vehículo'!$K$28,0) -> 13484.375 | AJ43: =IF(AND(H43="Sí",L43>1),'Costos Vehículo'!$I$13*SUM(G43)+'Costos Vehículo'!$I$15*(L43-1)*SUM(G43),IF(H43="Sí",'Costos Vehículo'!$I$13*SUM(G43),0)) -> 60000 | AK43: =IF(L43>1,'Costos Vehículo'!$I$14*SUM(G43)*(L43-1),0) -> 0 | AL43: 159784.375 | AM43: 1506898.22 | AN43: 342056.6511 | AO43: 1848954.871
A44: CALI_PASTO | B44: Sencillo | C44: =VLOOKUP(A44,'peajes NACIONAL '!$B$2:$E$59,4,0) -> 07:16:00 | D44: No | E44: Sí | F44: 1 | G44: 1 | H44: Sí | I44: =VLOOKUP(A44,'[1]NACIONAL '!B$2:C$58,2,0) -> 388 | J44: 8871 | K44: =VLOOKUP(A44,'peajes NACIONAL '!$B$2:$I$59,8,0) -> 136600 | L44: 1 | M44: 0.18 | N44: 1 | O44: Sí | P44: 0.185 | Q44: =IFERROR(F44*'Costos Vehículo'!$H$30*L44,"") -> 149076.0852 | R44: =IF(OR(B44='Costos Vehículo'!$C$7,B44='Costos Vehículo'!$C$8,B44='Costos Vehículo'!$C$9,B44='Costos Vehículo'!$C$10,B44='Costos Vehículo'!$C$11),'Costos Vehículo'!$D$4/26,IF(B44='Costos Vehículo'!$C$14,'Costos Vehículo'!$D$5/26,0)) -> 3389.423077 | S44: =IFERROR(VLOOKUP(B44,'Costos Vehículo'!$C$7:$D$14,2,0)/26,0) -> 1104.266026 | T44: =IFERROR(VLOOKUP(B44,'Costos Vehículo'!$C$16:$D$23,2,0)/26,0) -> 23422.59822 | U44: =IF(B44<>"",'Costos Vehículo'!$D$25/26,0) -> 2051.282051 | V44: =IFERROR(VLOOKUP(B44,'Costos Vehículo'!$C$26:$D$33,2,0)/26,0) -> 3913.404 | W44: =IF(B44<>"",'Costos Vehículo'!$D$35/26,0) -> 3846.153846 | X44: =IF(E44="Sí",'Costos Vehículo'!$I$16,0) -> 50000 | Y44: =IF(D44="Sí",'Costos Vehículo'!$K$11/26,0) -> 0 | Z44: =IF(AND(H44="Sí",L44>1),'Costos Vehículo'!$I$13*SUM(F44)+'Costos Vehículo'!$I$15*(L44-1)*SUM(F44),IF(H44="Sí",'Costos Vehículo'!$I$13*SUM(F44),0)) -> 60000 | AA44: =IF(L44>1,'Costos Vehículo'!$I$14*SUM(F44)*(L44-1),0) -> 0 | AB44: 136600 | AC44: =IFERROR(IF(D44="Sí",(VLOOKUP(B44,'Costos Vehículo'!$G$19:$I$26,3,0)+J44/VLOOKUP(B44,'Costos Vehículo'!$G$19:$L$26,5,0))*I44,(VLOOKUP(B44,'Costos Vehículo'!$G$19:$I$26,3,0)+J44/VLOOKUP(B44,'Costos Vehículo'!$G$19:$J$26,4,0))*I44),0) -> 464926.0054 | AD44: =IFERROR(IF(O44="Sí",N44*SUM(F44)*'Costos Vehículo'!$K$29,0),0) -> 19810.42014 | AE44: 201542.8474 | AF44: =SUM(Q44:AE44)*'Costos Vehículo'!$H$29 -> 58380.24479 | AG44: 1178062.73 | AH44: =IFERROR(G44*'Costos Vehículo'!$H$31*L44,0) -> 86300 | AI44: =IFERROR(N44*SUM(G44)*'Costos Vehículo'!$K$28,0) -> 13484.375 | AJ44: =IF(AND(H44="Sí",L44>1),'Costos Vehículo'!$I$13*SUM(G44)+'Costos Vehículo'!$I$15*(L44-1)*SUM(G44),IF(H44="Sí",'Costos Vehículo'!$I$13*SUM(G44),0)) -> 60000 | AK44: =IF(L44>1,'Costos Vehículo'!$I$14*SUM(G44)*(L44-1),0) -> 0 | AL44: 159784.375 | AM44: 1337847.105 | AN44: 303683.0852 | AO44: 1641530.19
A45: CALI_POPAYAN | B45: Sencillo | C45: =VLOOKUP(A45,'peajes NACIONAL '!$B$2:$E$59,4,0) -> 02:25:00 | D45: No | E45: Sí | F45: 1 | G45: 1 | H45: Sí | I45: =VLOOKUP(A45,'[1]NACIONAL '!B$2:C$58,2,0) -> 138 | J45: 8871 | K45: =VLOOKUP(A45,'peajes NACIONAL '!$B$2:$I$59,8,0) -> 76600 | L45: 1 | M45: 0.18 | N45: 1 | O45: Sí | P45: 0.185 | Q45: =IFERROR(F45*'Costos Vehículo'!$H$30*L45,"") -> 149076.0852 | R45: =IF(OR(B45='Costos Vehículo'!$C$7,B45='Costos Vehículo'!$C$8,B45='Costos Vehículo'!$C$9,B45='Costos Vehículo'!$C$10,B45='Costos Vehículo'!$C$11),'Costos Vehículo'!$D$4/26,IF(B45='Costos Vehículo'!$C$14,'Costos Vehículo'!$D$5/26,0)) -> 3389.423077 | S45: =IFERROR(VLOOKUP(B45,'Costos Vehículo'!$C$7:$D$14,2,0)/26,0) -> 1104.266026 | T45: =IFERROR(VLOOKUP(B45,'Costos Vehículo'!$C$16:$D$23,2,0)/26,0) -> 23422.59822 | U45: =IF(B45<>"",'Costos Vehículo'!$D$25/26,0) -> 2051.282051 | V45: =IFERROR(VLOOKUP(B45,'Costos Vehículo'!$C$26:$D$33,2,0)/26,0) -> 3913.404 | W45: =IF(B45<>"",'Costos Vehículo'!$D$35/26,0) -> 3846.153846 | X45: =IF(E45="Sí",'Costos Vehículo'!$I$16,0) -> 50000 | Y45: =IF(D45="Sí",'Costos Vehículo'!$K$11/26,0) -> 0 | Z45: =IF(AND(H45="Sí",L45>1),'Costos Vehículo'!$I$13*SUM(F45)+'Costos Vehículo'!$I$15*(L45-1)*SUM(F45),IF(H45="Sí",'Costos Vehículo'!$I$13*SUM(F45),0)) -> 60000 | AA45: =IF(L45>1,'Costos Vehículo'!$I$14*SUM(F45)*(L45-1),0) -> 0 | AB45: 76600 | AC45: =IFERROR(IF(D45="Sí",(VLOOKUP(B45,'Costos Vehículo'!$G$19:$I$26,3,0)+J45/VLOOKUP(B45,'Costos Vehículo'!$G$19:$L$26,5,0))*I45,(VLOOKUP(B45,'Costos Vehículo'!$G$19:$I$26,3,0)+J45/VLOOKUP(B45,'Costos Vehículo'!$G$19:$J$26,4,0))*I45),0) -> 165360.2803 | AD45: =IFERROR(IF(O45="Sí",N45*SUM(F45)*'Costos Vehículo'!$K$29,0),0) -> 19810.42014 | AE45: 122613.7857 | AF45: =SUM(Q45:AE45)*'Costos Vehículo'!$H$29 -> 35517.1266 | AG45: 716704.8252 | AH45: =IFERROR(G45*'Costos Vehículo'!$H$31*L45,0) -> 86300 | AI45: =IFERROR(N45*SUM(G45)*'Costos Vehículo'!$K$28,0) -> 13484.375 | AJ45: =IF(AND(H45="Sí",L45>1),'Costos Vehículo'!$I$13*SUM(G45)+'Costos Vehículo'!$I$15*(L45-1)*SUM(G45),IF(H45="Sí",'Costos Vehículo'!$I$13*SUM(G45),0)) -> 60000 | AK45: =IF(L45>1,'Costos Vehículo'!$I$14*SUM(G45)*(L45-1),0) -> 0 | AL45: 159784.375 | AM45: 876489.2002 | AN45: 198957.6712 | AO45: 1075446.871
A46: FUNZA_BARRANQUILLA | B46: Sencillo | C46: =VLOOKUP(A46,'peajes NACIONAL '!$B$2:$E$59,4,0) -> 17:57:00 | D46: No | E46: Sí | F46: 1 | G46: 1 | H46: Sí | I46: =VLOOKUP(A46,'[1]NACIONAL '!B$2:C$58,2,0) -> 979 | J46: 8871 | K46: =VLOOKUP(A46,'peajes NACIONAL '!$B$2:$I$59,8,0) -> 426500 | L46: 1 | M46: 0.18 | N46: 1 | O46: Sí | P46: 0.185 | Q46: =IFERROR(F46*'Costos Vehículo'!$H$30*L46,"") -> 149076.0852 | R46: =IF(OR(B46='Costos Vehículo'!$C$7,B46='Costos Vehículo'!$C$8,B46='Costos Vehículo'!$C$9,B46='Costos Vehículo'!$C$10,B46='Costos Vehículo'!$C$11),'Costos Vehículo'!$D$4/26,IF(B46='Costos Vehículo'!$C$14,'Costos Vehículo'!$D$5/26,0)) -> 3389.423077 | S46: =IFERROR(VLOOKUP(B46,'Costos Vehículo'!$C$7:$D$14,2,0)/26,0) -> 1104.266026 | T46: =IFERROR(VLOOKUP(B46,'Costos Vehículo'!$C$16:$D$23,2,0)/26,0) -> 23422.59822 | U46: =IF(B46<>"",'Costos Vehículo'!$D$25/26,0) -> 2051.282051 | V46: =IFERROR(VLOOKUP(B46,'Costos Vehículo'!$C$26:$D$33,2,0)/26,0) -> 3913.404 | W46: =IF(B46<>"",'Costos Vehículo'!$D$35/26,0) -> 3846.153846 | X46: =IF(E46="Sí",'Costos Vehículo'!$I$16,0) -> 50000 | Y46: =IF(D46="Sí",'Costos Vehículo'!$K$11/26,0) -> 0 | Z46: =IF(AND(H46="Sí",L46>1),'Costos Vehículo'!$I$13*SUM(F46)+'Costos Vehículo'!$I$15*(L46-1)*SUM(F46),IF(H46="Sí",'Costos Vehículo'!$I$13*SUM(F46),0)) -> 60000 | AA46: =IF(L46>1,'Costos Vehículo'!$I$14*SUM(F46)*(L46-1),0) -> 0 | AB46: 426500 | AC46: =IFERROR(IF(D46="Sí",(VLOOKUP(B46,'Costos Vehículo'!$G$19:$I$26,3,0)+J46/VLOOKUP(B46,'Costos Vehículo'!$G$19:$L$26,5,0))*I46,(VLOOKUP(B46,'Costos Vehículo'!$G$19:$I$26,3,0)+J46/VLOOKUP(B46,'Costos Vehículo'!$G$19:$J$26,4,0))*I46),0) -> 1173099.38 | AD46: =IFERROR(IF(O46="Sí",N46*SUM(F46)*'Costos Vehículo'!$K$29,0),0) -> 19810.42014 | AE46: 420632.1246 | AF46: =SUM(Q46:AE46)*'Costos Vehículo'!$H$29 -> 121843.1054 | AG46: 2458688.242 | AH46: =IFERROR(G46*'Costos Vehículo'!$H$31*L46,0) -> 86300 | AI46: =IFERROR(N46*SUM(G46)*'Costos Vehículo'!$K$28,0) -> 13484.375 | AJ46: =IF(AND(H46="Sí",L46>1),'Costos Vehículo'!$I$13*SUM(G46)+'Costos Vehículo'!$I$15*(L46-1)*SUM(G46),IF(H46="Sí",'Costos Vehículo'!$I$13*SUM(G46),0)) -> 60000 | AK46: =IF(L46>1,'Costos Vehículo'!$I$14*SUM(G46)*(L46-1),0) -> 0 | AL46: 159784.375 | AM46: 2618472.617 | AN46: 594377.2199 | AO46: 3212849.837
A47: FUNZA_CARTAGENA | B47: Sencillo | C47: =VLOOKUP(A47,'peajes NACIONAL '!$B$2:$E$59,4,0) -> 19:10:00 | D47: No | E47: Sí | F47: 1 | G47: 1 | H47: Sí | I47: =VLOOKUP(A47,'[1]NACIONAL '!B$2:C$58,2,0) -> 1050 | J47: 8871 | K47: =VLOOKUP(A47,'peajes NACIONAL '!$B$2:$I$59,8,0) -> 425100 | L47: 1 | M47: 0.18 | N47: 1 | O47: Sí | P47: 0.185 | Q47: =IFERROR(F47*'Costos Vehículo'!$H$30*L47,"") -> 149076.0852 | R47: =IF(OR(B47='Costos Vehículo'!$C$7,B47='Costos Vehículo'!$C$8,B47='Costos Vehículo'!$C$9,B47='Costos Vehículo'!$C$10,B47='Costos Vehículo'!$C$11),'Costos Vehículo'!$D$4/26,IF(B47='Costos Vehículo'!$C$14,'Costos Vehículo'!$D$5/26,0)) -> 3389.423077 | S47: =IFERROR(VLOOKUP(B47,'Costos Vehículo'!$C$7:$D$14,2,0)/26,0) -> 1104.266026 | T47: =IFERROR(VLOOKUP(B47,'Costos Vehículo'!$C$16:$D$23,2,0)/26,0) -> 23422.59822 | U47: =IF(B47<>"",'Costos Vehículo'!$D$25/26,0) -> 2051.282051 | V47: =IFERROR(VLOOKUP(B47,'Costos Vehículo'!$C$26:$D$33,2,0)/26,0) -> 3913.404 | W47: =IF(B47<>"",'Costos Vehículo'!$D$35/26,0) -> 3846.153846 | X47: =IF(E47="Sí",'Costos Vehículo'!$I$16,0) -> 50000 | Y47: =IF(D47="Sí",'Costos Vehículo'!$K$11/26,0) -> 0 | Z47: =IF(AND(H47="Sí",L47>1),'Costos Vehículo'!$I$13*SUM(F47)+'Costos Vehículo'!$I$15*(L47-1)*SUM(F47),IF(H47="Sí",'Costos Vehículo'!$I$13*SUM(F47),0)) -> 60000 | AA47: =IF(L47>1,'Costos Vehículo'!$I$14*SUM(F47)*(L47-1),0) -> 0 | AB47: 425100 | AC47: =IFERROR(IF(D47="Sí",(VLOOKUP(B47,'Costos Vehículo'!$G$19:$I$26,3,0)+J47/VLOOKUP(B47,'Costos Vehículo'!$G$19:$L$26,5,0))*I47,(VLOOKUP(B47,'Costos Vehículo'!$G$19:$I$26,3,0)+J47/VLOOKUP(B47,'Costos Vehículo'!$G$19:$J$26,4,0))*I47),0) -> 1258176.046 | AD47: =IFERROR(IF(O47="Sí",N47*SUM(F47)*'Costos Vehículo'!$K$29,0),0) -> 19810.42014 | AE47: 439000.1732 | AF47: =SUM(Q47:AE47)*'Costos Vehículo'!$H$29 -> 127163.7169 | AG47: 2566053.568 | AH47: =IFERROR(G47*'Costos Vehículo'!$H$31*L47,0) -> 86300 | AI47: =IFERROR(N47*SUM(G47)*'Costos Vehículo'!$K$28,0) -> 13484.375 | AJ47: =IF(AND(H47="Sí",L47>1),'Costos Vehículo'!$I$13*SUM(G47)+'Costos Vehículo'!$I$15*(L47-1)*SUM(G47),IF(H47="Sí",'Costos Vehículo'!$I$13*SUM(G47),0)) -> 60000 | AK47: =IF(L47>1,'Costos Vehículo'!$I$14*SUM(G47)*(L47-1),0) -> 0 | AL47: 159784.375 | AM47: 2725837.943 | AN47: 618748.4902 | AO47: 3344586.433
A48: FUNZA_MEDELLIN | B48: Sencillo | C48: =VLOOKUP(A48,'peajes NACIONAL '!$B$2:$E$59,4,0) -> 08:11:00 | D48: No | E48: Sí | F48: 1 | G48: 1 | H48: Sí | I48: =VLOOKUP(A48,'[1]NACIONAL '!B$2:C$58,2,0) -> 408 | J48: 8871 | K48: =VLOOKUP(A48,'peajes NACIONAL '!$B$2:$I$59,8,0) -> 190000 | L48: 1 | M48: 0.18 | N48: 1 | O48: Sí | P48: 0.185 | Q48: =IFERROR(F48*'Costos Vehículo'!$H$30*L48,"") -> 149076.0852 | R48: =IF(OR(B48='Costos Vehículo'!$C$7,B48='Costos Vehículo'!$C$8,B48='Costos Vehículo'!$C$9,B48='Costos Vehículo'!$C$10,B48='Costos Vehículo'!$C$11),'Costos Vehículo'!$D$4/26,IF(B48='Costos Vehículo'!$C$14,'Costos Vehículo'!$D$5/26,0)) -> 3389.423077 | S48: =IFERROR(VLOOKUP(B48,'Costos Vehículo'!$C$7:$D$14,2,0)/26,0) -> 1104.266026 | T48: =IFERROR(VLOOKUP(B48,'Costos Vehículo'!$C$16:$D$23,2,0)/26,0) -> 23422.59822 | U48: =IF(B48<>"",'Costos Vehículo'!$D$25/26,0) -> 2051.282051 | V48: =IFERROR(VLOOKUP(B48,'Costos Vehículo'!$C$26:$D$33,2,0)/26,0) -> 3913.404 | W48: =IF(B48<>"",'Costos Vehículo'!$D$35/26,0) -> 3846.153846 | X48: =IF(E48="Sí",'Costos Vehículo'!$I$16,0) -> 50000 | Y48: =IF(D48="Sí",'Costos Vehículo'!$K$11/26,0) -> 0 | Z48: =IF(AND(H48="Sí",L48>1),'Costos Vehículo'!$I$13*SUM(F48)+'Costos Vehículo'!$I$15*(L48-1)*SUM(F48),IF(H48="Sí",'Costos Vehículo'!$I$13*SUM(F48),0)) -> 60000 | AA48: =IF(L48>1,'Costos Vehículo'!$I$14*SUM(F48)*(L48-1),0) -> 0 | AB48: 190000 | AC48: =IFERROR(IF(D48="Sí",(VLOOKUP(B48,'Costos Vehículo'!$G$19:$I$26,3,0)+J48/VLOOKUP(B48,'Costos Vehículo'!$G$19:$L$26,5,0))*I48,(VLOOKUP(B48,'Costos Vehículo'!$G$19:$I$26,3,0)+J48/VLOOKUP(B48,'Costos Vehículo'!$G$19:$J$26,4,0))*I48),0) -> 488891.2634 | AD48: =IFERROR(IF(O48="Sí",N48*SUM(F48)*'Costos Vehículo'!$K$29,0),0) -> 19810.42014 | AE48: 218525.465 | AF48: =SUM(Q48:AE48)*'Costos Vehículo'!$H$29 -> 63299.54302 | AG48: 1277329.904 | AH48: =IFERROR(G48*'Costos Vehículo'!$H$31*L48,0) -> 86300 | AI48: =IFERROR(N48*SUM(G48)*'Costos Vehículo'!$K$28,0) -> 13484.375 | AJ48: =IF(AND(H48="Sí",L48>1),'Costos Vehículo'!$I$13*SUM(G48)+'Costos Vehículo'!$I$15*(L48-1)*SUM(G48),IF(H48="Sí",'Costos Vehículo'!$I$13*SUM(G48),0)) -> 60000 | AK48: =IF(L48>1,'Costos Vehículo'!$I$14*SUM(G48)*(L48-1),0) -> 0 | AL48: 159784.375 | AM48: 1437114.279 | AN48: 326216.1247 | AO48: 1763330.404
A49: IBAGUE_MEDELLIN | B49: Sencillo | C49: =VLOOKUP(A49,'peajes NACIONAL '!$B$2:$E$59,4,0) -> 06:40:00 | D49: No | E49: Sí | F49: 1 | G49: 1 | H49: Sí | I49: =VLOOKUP(A49,'[1]NACIONAL '!B$2:C$58,2,0) -> 413 | J49: 8871 | K49: =VLOOKUP(A49,'peajes NACIONAL '!$B$2:$I$59,8,0) -> 85400 | L49: 1 | M49: 0.18 | N49: 1 | O49: Sí | P49: 0.185 | Q49: =IFERROR(F49*'Costos Vehículo'!$H$30*L49,"") -> 149076.0852 | R49: =IF(OR(B49='Costos Vehículo'!$C$7,B49='Costos Vehículo'!$C$8,B49='Costos Vehículo'!$C$9,B49='Costos Vehículo'!$C$10,B49='Costos Vehículo'!$C$11),'Costos Vehículo'!$D$4/26,IF(B49='Costos Vehículo'!$C$14,'Costos Vehículo'!$D$5/26,0)) -> 3389.423077 | S49: =IFERROR(VLOOKUP(B49,'Costos Vehículo'!$C$7:$D$14,2,0)/26,0) -> 1104.266026 | T49: =IFERROR(VLOOKUP(B49,'Costos Vehículo'!$C$16:$D$23,2,0)/26,0) -> 23422.59822 | U49: =IF(B49<>"",'Costos Vehículo'!$D$25/26,0) -> 2051.282051 | V49: =IFERROR(VLOOKUP(B49,'Costos Vehículo'!$C$26:$D$33,2,0)/26,0) -> 3913.404 | W49: =IF(B49<>"",'Costos Vehículo'!$D$35/26,0) -> 3846.153846 | X49: =IF(E49="Sí",'Costos Vehículo'!$I$16,0) -> 50000 | Y49: =IF(D49="Sí",'Costos Vehículo'!$K$11/26,0) -> 0 | Z49: =IF(AND(H49="Sí",L49>1),'Costos Vehículo'!$I$13*SUM(F49)+'Costos Vehículo'!$I$15*(L49-1)*SUM(F49),IF(H49="Sí",'Costos Vehículo'!$I$13*SUM(F49),0)) -> 60000 | AA49: =IF(L49>1,'Costos Vehículo'!$I$14*SUM(F49)*(L49-1),0) -> 0 | AB49: 85400 | AC49: =IFERROR(IF(D49="Sí",(VLOOKUP(B49,'Costos Vehículo'!$G$19:$I$26,3,0)+J49/VLOOKUP(B49,'Costos Vehículo'!$G$19:$L$26,5,0))*I49,(VLOOKUP(B49,'Costos Vehículo'!$G$19:$I$26,3,0)+J49/VLOOKUP(B49,'Costos Vehículo'!$G$19:$J$26,4,0))*I49),0) -> 494882.5779 | AD49: =IFERROR(IF(O49="Sí",N49*SUM(F49)*'Costos Vehículo'!$K$29,0),0) -> 19810.42014 | AE49: 196879.656 | AF49: =SUM(Q49:AE49)*'Costos Vehículo'!$H$29 -> 57029.47368 | AG49: 1150805.34 | AH49: =IFERROR(G49*'Costos Vehículo'!$H$31*L49,0) -> 86300 | AI49: =IFERROR(N49*SUM(G49)*'Costos Vehículo'!$K$28,0) -> 13484.375 | AJ49: =IF(AND(H49="Sí",L49>1),'Costos Vehículo'!$I$13*SUM(G49)+'Costos Vehículo'!$I$15*(L49-1)*SUM(G49),IF(H49="Sí",'Costos Vehículo'!$I$13*SUM(G49),0)) -> 60000 | AK49: =IF(L49>1,'Costos Vehículo'!$I$14*SUM(G49)*(L49-1),0) -> 0 | AL49: 159784.375 | AM49: 1310589.715 | AN49: 297495.8249 | AO49: 1608085.54
A50: MEDELLIN_BARRANQUILLA | B50: Sencillo | C50: =VLOOKUP(A50,'peajes NACIONAL '!$B$2:$E$59,4,0) -> 12:02:00 | D50: No | E50: Sí | F50: 1 | G50: 1 | H50: Sí | I50: =VLOOKUP(A50,'[1]NACIONAL '!B$2:C$58,2,0) -> 702 | J50: 8871 | K50: =VLOOKUP(A50,'peajes NACIONAL '!$B$2:$I$59,8,0) -> 243600 | L50: 1 | M50: 0.18 | N50: 1 | O50: Sí | P50: 0.185 | Q50: =IFERROR(F50*'Costos Vehículo'!$H$30*L50,"") -> 149076.0852 | R50: =IF(OR(B50='Costos Vehículo'!$C$7,B50='Costos Vehículo'!$C$8,B50='Costos Vehículo'!$C$9,B50='Costos Vehículo'!$C$10,B50='Costos Vehículo'!$C$11),'Costos Vehículo'!$D$4/26,IF(B50='Costos Vehículo'!$C$14,'Costos Vehículo'!$D$5/26,0)) -> 3389.423077 | S50: =IFERROR(VLOOKUP(B50,'Costos Vehículo'!$C$7:$D$14,2,0)/26,0) -> 1104.266026 | T50: =IFERROR(VLOOKUP(B50,'Costos Vehículo'!$C$16:$D$23,2,0)/26,0) -> 23422.59822 | U50: =IF(B50<>"",'Costos Vehículo'!$D$25/26,0) -> 2051.282051 | V50: =IFERROR(VLOOKUP(B50,'Costos Vehículo'!$C$26:$D$33,2,0)/26,0) -> 3913.404 | W50: =IF(B50<>"",'Costos Vehículo'!$D$35/26,0) -> 3846.153846 | X50: =IF(E50="Sí",'Costos Vehículo'!$I$16,0) -> 50000 | Y50: =IF(D50="Sí",'Costos Vehículo'!$K$11/26,0) -> 0 | Z50: =IF(AND(H50="Sí",L50>1),'Costos Vehículo'!$I$13*SUM(F50)+'Costos Vehículo'!$I$15*(L50-1)*SUM(F50),IF(H50="Sí",'Costos Vehículo'!$I$13*SUM(F50),0)) -> 60000 | AA50: =IF(L50>1,'Costos Vehículo'!$I$14*SUM(F50)*(L50-1),0) -> 0 | AB50: 243600 | AC50: =IFERROR(IF(D50="Sí",(VLOOKUP(B50,'Costos Vehículo'!$G$19:$I$26,3,0)+J50/VLOOKUP(B50,'Costos Vehículo'!$G$19:$L$26,5,0))*I50,(VLOOKUP(B50,'Costos Vehículo'!$G$19:$I$26,3,0)+J50/VLOOKUP(B50,'Costos Vehículo'!$G$19:$J$26,4,0))*I50),0) -> 841180.5562 | AD50: =IFERROR(IF(O50="Sí",N50*SUM(F50)*'Costos Vehículo'!$K$29,0),0) -> 19810.42014 | AE50: 307623.1146 | AF50: =SUM(Q50:AE50)*'Costos Vehículo'!$H$29 -> 89108.1622 | AG50: 1798125.466 | AH50: =IFERROR(G50*'Costos Vehículo'!$H$31*L50,0) -> 86300 | AI50: =IFERROR(N50*SUM(G50)*'Costos Vehículo'!$K$28,0) -> 13484.375 | AJ50: =IF(AND(H50="Sí",L50>1),'Costos Vehículo'!$I$13*SUM(G50)+'Costos Vehículo'!$I$15*(L50-1)*SUM(G50),IF(H50="Sí",'Costos Vehículo'!$I$13*SUM(G50),0)) -> 60000 | AK50: =IF(L50>1,'Costos Vehículo'!$I$14*SUM(G50)*(L50-1),0) -> 0 | AL50: 159784.375 | AM50: 1957909.841 | AN50: 444433.5221 | AO50: 2402343.363
A51: MEDELLIN_BUCARAMANGA | B51: Sencillo | C51: =VLOOKUP(A51,'peajes NACIONAL '!$B$2:$E$59,4,0) -> 08:12:00 | D51: No | E51: Sí | F51: 1 | G51: 1 | H51: Sí | I51: =VLOOKUP(A51,'[1]NACIONAL '!B$2:C$58,2,0) -> 404 | J51: 8871 | K51: =VLOOKUP(A51,'peajes NACIONAL '!$B$2:$I$59,8,0) -> 166800 | L51: 1 | M51: 0.18 | N51: 1 | O51: Sí | P51: 0.185 | Q51: =IFERROR(F51*'Costos Vehículo'!$H$30*L51,"") -> 149076.0852 | R51: =IF(OR(B51='Costos Vehículo'!$C$7,B51='Costos Vehículo'!$C$8,B51='Costos Vehículo'!$C$9,B51='Costos Vehículo'!$C$10,B51='Costos Vehículo'!$C$11),'Costos Vehículo'!$D$4/26,IF(B51='Costos Vehículo'!$C$14,'Costos Vehículo'!$D$5/26,0)) -> 3389.423077 | S51: =IFERROR(VLOOKUP(B51,'Costos Vehículo'!$C$7:$D$14,2,0)/26,0) -> 1104.266026 | T51: =IFERROR(VLOOKUP(B51,'Costos Vehículo'!$C$16:$D$23,2,0)/26,0) -> 23422.59822 | U51: =IF(B51<>"",'Costos Vehículo'!$D$25/26,0) -> 2051.282051 | V51: =IFERROR(VLOOKUP(B51,'Costos Vehículo'!$C$26:$D$33,2,0)/26,0) -> 3913.404 | W51: =IF(B51<>"",'Costos Vehículo'!$D$35/26,0) -> 3846.153846 | X51: =IF(E51="Sí",'Costos Vehículo'!$I$16,0) -> 50000 | Y51: =IF(D51="Sí",'Costos Vehículo'!$K$11/26,0) -> 0 | Z51: =IF(AND(H51="Sí",L51>1),'Costos Vehículo'!$I$13*SUM(F51)+'Costos Vehículo'!$I$15*(L51-1)*SUM(F51),IF(H51="Sí",'Costos Vehículo'!$I$13*SUM(F51),0)) -> 60000 | AA51: =IF(L51>1,'Costos Vehículo'!$I$14*SUM(F51)*(L51-1),0) -> 0 | AB51: 166800 | AC51: =IFERROR(IF(D51="Sí",(VLOOKUP(B51,'Costos Vehículo'!$G$19:$I$26,3,0)+J51/VLOOKUP(B51,'Costos Vehículo'!$G$19:$L$26,5,0))*I51,(VLOOKUP(B51,'Costos Vehículo'!$G$19:$I$26,3,0)+J51/VLOOKUP(B51,'Costos Vehículo'!$G$19:$J$26,4,0))*I51),0) -> 484098.2118 | AD51: =IFERROR(IF(O51="Sí",N51*SUM(F51)*'Costos Vehículo'!$K$29,0),0) -> 19810.42014 | AE51: 212380.6488 | AF51: =SUM(Q51:AE51)*'Costos Vehículo'!$H$29 -> 61519.59459 | AG51: 1241412.088 | AH51: =IFERROR(G51*'Costos Vehículo'!$H$31*L51,0) -> 86300 | AI51: =IFERROR(N51*SUM(G51)*'Costos Vehículo'!$K$28,0) -> 13484.375 | AJ51: =IF(AND(H51="Sí",L51>1),'Costos Vehículo'!$I$13*SUM(G51)+'Costos Vehículo'!$I$15*(L51-1)*SUM(G51),IF(H51="Sí",'Costos Vehículo'!$I$13*SUM(G51),0)) -> 60000 | AK51: =IF(L51>1,'Costos Vehículo'!$I$14*SUM(G51)*(L51-1),0) -> 0 | AL51: 159784.375 | AM51: 1401196.463 | AN51: 318063.0007 | AO51: 1719259.463
A52: MEDELLIN_IPIALES | B52: Sencillo | C52: =VLOOKUP(A52,'peajes NACIONAL '!$B$2:$E$59,4,0) -> 18:12:00 | D52: No | E52: Sí | F52: 1 | G52: 1 | H52: Sí | I52: =VLOOKUP(A52,'[1]NACIONAL '!B$2:C$58,2,0) -> 877 | J52: 8871 | K52: =VLOOKUP(A52,'peajes NACIONAL '!$B$2:$I$59,8,0) -> 425700 | L52: 1 | M52: 0.18 | N52: 1 | O52: Sí | P52: 0.185 | Q52: =IFERROR(F52*'Costos Vehículo'!$H$30*L52,"") -> 149076.0852 | R52: =IF(OR(B52='Costos Vehículo'!$C$7,B52='Costos Vehículo'!$C$8,B52='Costos Vehículo'!$C$9,B52='Costos Vehículo'!$C$10,B52='Costos Vehículo'!$C$11),'Costos Vehículo'!$D$4/26,IF(B52='Costos Vehículo'!$C$14,'Costos Vehículo'!$D$5/26,0)) -> 3389.423077 | S52: =IFERROR(VLOOKUP(B52,'Costos Vehículo'!$C$7:$D$14,2,0)/26,0) -> 1104.266026 | T52: =IFERROR(VLOOKUP(B52,'Costos Vehículo'!$C$16:$D$23,2,0)/26,0) -> 23422.59822 | U52: =IF(B52<>"",'Costos Vehículo'!$D$25/26,0) -> 2051.282051 | V52: =IFERROR(VLOOKUP(B52,'Costos Vehículo'!$C$26:$D$33,2,0)/26,0) -> 3913.404 | W52: =IF(B52<>"",'Costos Vehículo'!$D$35/26,0) -> 3846.153846 | X52: =IF(E52="Sí",'Costos Vehículo'!$I$16,0) -> 50000 | Y52: =IF(D52="Sí",'Costos Vehículo'!$K$11/26,0) -> 0 | Z52: =IF(AND(H52="Sí",L52>1),'Costos Vehículo'!$I$13*SUM(F52)+'Costos Vehículo'!$I$15*(L52-1)*SUM(F52),IF(H52="Sí",'Costos Vehículo'!$I$13*SUM(F52),0)) -> 60000 | AA52: =IF(L52>1,'Costos Vehículo'!$I$14*SUM(F52)*(L52-1),0) -> 0 | AB52: 425700 | AC52: =IFERROR(IF(D52="Sí",(VLOOKUP(B52,'Costos Vehículo'!$G$19:$I$26,3,0)+J52/VLOOKUP(B52,'Costos Vehículo'!$G$19:$L$26,5,0))*I52,(VLOOKUP(B52,'Costos Vehículo'!$G$19:$I$26,3,0)+J52/VLOOKUP(B52,'Costos Vehículo'!$G$19:$J$26,4,0))*I52),0) -> 1050876.564 | AD52: =IFERROR(IF(O52="Sí",N52*SUM(F52)*'Costos Vehículo'!$K$29,0),0) -> 19810.42014 | AE52: 393627.1163 | AF52: =SUM(Q52:AE52)*'Costos Vehículo'!$H$29 -> 114020.6547 | AG52: 2300837.967 | AH52: =IFERROR(G52*'Costos Vehículo'!$H$31*L52,0) -> 86300 | AI52: =IFERROR(N52*SUM(G52)*'Costos Vehículo'!$K$28,0) -> 13484.375 | AJ52: =IF(AND(H52="Sí",L52>1),'Costos Vehículo'!$I$13*SUM(G52)+'Costos Vehículo'!$I$15*(L52-1)*SUM(G52),IF(H52="Sí",'Costos Vehículo'!$I$13*SUM(G52),0)) -> 60000 | AK52: =IF(L52>1,'Costos Vehículo'!$I$14*SUM(G52)*(L52-1),0) -> 0 | AL52: 159784.375 | AM52: 2460622.342 | AN52: 558546.1759 | AO52: 3019168.518
A53: MEDELLIN_LA APARTADA | B53: Sencillo | C53: =VLOOKUP(A53,'peajes NACIONAL '!$B$2:$E$59,4,0) -> 06:26:00 | D53: No | E53: Sí | F53: 1 | G53: 1 | H53: Sí | I53: =VLOOKUP(A53,'[1]NACIONAL '!B$2:C$58,2,0) -> 301 | J53: 8871 | K53: =VLOOKUP(A53,'peajes NACIONAL '!$B$2:$I$59,8,0) -> 120400 | L53: 1 | M53: 0.18 | N53: 1 | O53: Sí | P53: 0.185 | Q53: =IFERROR(F53*'Costos Vehículo'!$H$30*L53,"") -> 149076.0852 | R53: =IF(OR(B53='Costos Vehículo'!$C$7,B53='Costos Vehículo'!$C$8,B53='Costos Vehículo'!$C$9,B53='Costos Vehículo'!$C$10,B53='Costos Vehículo'!$C$11),'Costos Vehículo'!$D$4/26,IF(B53='Costos Vehículo'!$C$14,'Costos Vehículo'!$D$5/26,0)) -> 3389.423077 | S53: =IFERROR(VLOOKUP(B53,'Costos Vehículo'!$C$7:$D$14,2,0)/26,0) -> 1104.266026 | T53: =IFERROR(VLOOKUP(B53,'Costos Vehículo'!$C$16:$D$23,2,0)/26,0) -> 23422.59822 | U53: =IF(B53<>"",'Costos Vehículo'!$D$25/26,0) -> 2051.282051 | V53: =IFERROR(VLOOKUP(B53,'Costos Vehículo'!$C$26:$D$33,2,0)/26,0) -> 3913.404 | W53: =IF(B53<>"",'Costos Vehículo'!$D$35/26,0) -> 3846.153846 | X53: =IF(E53="Sí",'Costos Vehículo'!$I$16,0) -> 50000 | Y53: =IF(D53="Sí",'Costos Vehículo'!$K$11/26,0) -> 0 | Z53: =IF(AND(H53="Sí",L53>1),'Costos Vehículo'!$I$13*SUM(F53)+'Costos Vehículo'!$I$15*(L53-1)*SUM(F53),IF(H53="Sí",'Costos Vehículo'!$I$13*SUM(F53),0)) -> 60000 | AA53: =IF(L53>1,'Costos Vehículo'!$I$14*SUM(F53)*(L53-1),0) -> 0 | AB53: 120400 | AC53: =IFERROR(IF(D53="Sí",(VLOOKUP(B53,'Costos Vehículo'!$G$19:$I$26,3,0)+J53/VLOOKUP(B53,'Costos Vehículo'!$G$19:$L$26,5,0))*I53,(VLOOKUP(B53,'Costos Vehículo'!$G$19:$I$26,3,0)+J53/VLOOKUP(B53,'Costos Vehículo'!$G$19:$J$26,4,0))*I53),0) -> 360677.1331 | AD53: =IFERROR(IF(O53="Sí",N53*SUM(F53)*'Costos Vehículo'!$K$29,0),0) -> 19810.42014 | AE53: 175102.851 | AF53: =SUM(Q53:AE53)*'Costos Vehículo'!$H$29 -> 50721.45917 | AG53: 1023515.076 | AH53: =IFERROR(G53*'Costos Vehículo'!$H$31*L53,0) -> 86300 | AI53: =IFERROR(N53*SUM(G53)*'Costos Vehículo'!$K$28,0) -> 13484.375 | AJ53: =IF(AND(H53="Sí",L53>1),'Costos Vehículo'!$I$13*SUM(G53)+'Costos Vehículo'!$I$15*(L53-1)*SUM(G53),IF(H53="Sí",'Costos Vehículo'!$I$13*SUM(G53),0)) -> 60000 | AK53: =IF(L53>1,'Costos Vehículo'!$I$14*SUM(G53)*(L53-1),0) -> 0 | AL53: 159784.375 | AM53: 1183299.451 | AN53: 268601.7158 | AO53: 1451901.167
A54: MEDELLIN_NEIVA | B54: Sencillo | C54: =VLOOKUP(A54,'peajes NACIONAL '!$B$2:$E$59,4,0) -> 10:11:00 | D54: No | E54: Sí | F54: 1 | G54: 1 | H54: Sí | I54: =VLOOKUP(A54,'[1]NACIONAL '!B$2:C$58,2,0) -> 556 | J54: 8871 | K54: =VLOOKUP(A54,'peajes NACIONAL '!$B$2:$I$59,8,0) -> 176900 | L54: 1 | M54: 0.18 | N54: 1 | O54: Sí | P54: 0.185 | Q54: =IFERROR(F54*'Costos Vehículo'!$H$30*L54,"") -> 149076.0852 | R54: =IF(OR(B54='Costos Vehículo'!$C$7,B54='Costos Vehículo'!$C$8,B54='Costos Vehículo'!$C$9,B54='Costos Vehículo'!$C$10,B54='Costos Vehículo'!$C$11),'Costos Vehículo'!$D$4/26,IF(B54='Costos Vehículo'!$C$14,'Costos Vehículo'!$D$5/26,0)) -> 3389.423077 | S54: =IFERROR(VLOOKUP(B54,'Costos Vehículo'!$C$7:$D$14,2,0)/26,0) -> 1104.266026 | T54: =IFERROR(VLOOKUP(B54,'Costos Vehículo'!$C$16:$D$23,2,0)/26,0) -> 23422.59822 | U54: =IF(B54<>"",'Costos Vehículo'!$D$25/26,0) -> 2051.282051 | V54: =IFERROR(VLOOKUP(B54,'Costos Vehículo'!$C$26:$D$33,2,0)/26,0) -> 3913.404 | W54: =IF(B54<>"",'Costos Vehículo'!$D$35/26,0) -> 3846.153846 | X54: =IF(E54="Sí",'Costos Vehículo'!$I$16,0) -> 50000 | Y54: =IF(D54="Sí",'Costos Vehículo'!$K$11/26,0) -> 0 | Z54: =IF(AND(H54="Sí",L54>1),'Costos Vehículo'!$I$13*SUM(F54)+'Costos Vehículo'!$I$15*(L54-1)*SUM(F54),IF(H54="Sí",'Costos Vehículo'!$I$13*SUM(F54),0)) -> 60000 | AA54: =IF(L54>1,'Costos Vehículo'!$I$14*SUM(F54)*(L54-1),0) -> 0 | AB54: 176900 | AC54: =IFERROR(IF(D54="Sí",(VLOOKUP(B54,'Costos Vehículo'!$G$19:$I$26,3,0)+J54/VLOOKUP(B54,'Costos Vehículo'!$G$19:$L$26,5,0))*I54,(VLOOKUP(B54,'Costos Vehículo'!$G$19:$I$26,3,0)+J54/VLOOKUP(B54,'Costos Vehículo'!$G$19:$J$26,4,0))*I54),0) -> 666234.1727 | AD54: =IFERROR(IF(O54="Sí",N54*SUM(F54)*'Costos Vehículo'!$K$29,0),0) -> 19810.42014 | AE54: 254578.7865 | AF54: =SUM(Q54:AE54)*'Costos Vehículo'!$H$29 -> 73742.9885 | AG54: 1488069.58 | AH54: =IFERROR(G54*'Costos Vehículo'!$H$31*L54,0) -> 86300 | AI54: =IFERROR(N54*SUM(G54)*'Costos Vehículo'!$K$28,0) -> 13484.375 | AJ54: =IF(AND(H54="Sí",L54>1),'Costos Vehículo'!$I$13*SUM(G54)+'Costos Vehículo'!$I$15*(L54-1)*SUM(G54),IF(H54="Sí",'Costos Vehículo'!$I$13*SUM(G54),0)) -> 60000 | AK54: =IF(L54>1,'Costos Vehículo'!$I$14*SUM(G54)*(L54-1),0) -> 0 | AL54: 159784.375 | AM54: 1647853.955 | AN54: 374052.7383 | AO54: 2021906.694
A55: MEDELLIN_PEREIRA | B55: Sencillo | C55: =VLOOKUP(A55,'peajes NACIONAL '!$B$2:$E$59,4,0) -> 04:05:00 | D55: No | E55: Sí | F55: 1 | G55: 1 | H55: Sí | I55: =VLOOKUP(A55,'[1]NACIONAL '!B$2:C$58,2,0) -> 215 | J55: 8871 | K55: =VLOOKUP(A55,'peajes NACIONAL '!$B$2:$I$59,8,0) -> 83400 | L55: 1 | M55: 0.18 | N55: 1 | O55: Sí | P55: 0.185 | Q55: =IFERROR(F55*'Costos Vehículo'!$H$30*L55,"") -> 149076.0852 | R55: =IF(OR(B55='Costos Vehículo'!$C$7,B55='Costos Vehículo'!$C$8,B55='Costos Vehículo'!$C$9,B55='Costos Vehículo'!$C$10,B55='Costos Vehículo'!$C$11),'Costos Vehículo'!$D$4/26,IF(B55='Costos Vehículo'!$C$14,'Costos Vehículo'!$D$5/26,0)) -> 3389.423077 | S55: =IFERROR(VLOOKUP(B55,'Costos Vehículo'!$C$7:$D$14,2,0)/26,0) -> 1104.266026 | T55: =IFERROR(VLOOKUP(B55,'Costos Vehículo'!$C$16:$D$23,2,0)/26,0) -> 23422.59822 | U55: =IF(B55<>"",'Costos Vehículo'!$D$25/26,0) -> 2051.282051 | V55: =IFERROR(VLOOKUP(B55,'Costos Vehículo'!$C$26:$D$33,2,0)/26,0) -> 3913.404 | W55: =IF(B55<>"",'Costos Vehículo'!$D$35/26,0) -> 3846.153846 | X55: =IF(E55="Sí",'Costos Vehículo'!$I$16,0) -> 50000 | Y55: =IF(D55="Sí",'Costos Vehículo'!$K$11/26,0) -> 0 | Z55: =IF(AND(H55="Sí",L55>1),'Costos Vehículo'!$I$13*SUM(F55)+'Costos Vehículo'!$I$15*(L55-1)*SUM(F55),IF(H55="Sí",'Costos Vehículo'!$I$13*SUM(F55),0)) -> 60000 | AA55: =IF(L55>1,'Costos Vehículo'!$I$14*SUM(F55)*(L55-1),0) -> 0 | AB55: 83400 | AC55: =IFERROR(IF(D55="Sí",(VLOOKUP(B55,'Costos Vehículo'!$G$19:$I$26,3,0)+J55/VLOOKUP(B55,'Costos Vehículo'!$G$19:$L$26,5,0))*I55,(VLOOKUP(B55,'Costos Vehículo'!$G$19:$I$26,3,0)+J55/VLOOKUP(B55,'Costos Vehículo'!$G$19:$J$26,4,0))*I55),0) -> 257626.5236 | AD55: =IFERROR(IF(O55="Sí",N55*SUM(F55)*'Costos Vehículo'!$K$29,0),0) -> 19810.42014 | AE55: 144360.0343 | AF55: =SUM(Q55:AE55)*'Costos Vehículo'!$H$29 -> 41816.28993 | AG55: 843816.4804 | AH55: =IFERROR(G55*'Costos Vehículo'!$H$31*L55,0) -> 86300 | AI55: =IFERROR(N55*SUM(G55)*'Costos Vehículo'!$K$28,0) -> 13484.375 | AJ55: =IF(AND(H55="Sí",L55>1),'Costos Vehículo'!$I$13*SUM(G55)+'Costos Vehículo'!$I$15*(L55-1)*SUM(G55),IF(H55="Sí",'Costos Vehículo'!$I$13*SUM(G55),0)) -> 60000 | AK55: =IF(L55>1,'Costos Vehículo'!$I$14*SUM(G55)*(L55-1),0) -> 0 | AL55: 159784.375 | AM55: 1003600.855 | AN55: 227811.2371 | AO55: 1231412.093
A56: MEDELLIN_SINCELEJO | B56: Sencillo | C56: =VLOOKUP(A56,'peajes NACIONAL '!$B$2:$E$59,4,0) -> 08:41:00 | D56: No | E56: Sí | F56: 1 | G56: 1 | H56: Sí | I56: =VLOOKUP(A56,'[1]NACIONAL '!B$2:C$58,2,0) -> 471 | J56: 8871 | K56: =VLOOKUP(A56,'peajes NACIONAL '!$B$2:$I$59,8,0) -> 138100 | L56: 1 | M56: 0.18 | N56: 1 | O56: Sí | P56: 0.185 | Q56: =IFERROR(F56*'Costos Vehículo'!$H$30*L56,"") -> 149076.0852 | R56: =IF(OR(B56='Costos Vehículo'!$C$7,B56='Costos Vehículo'!$C$8,B56='Costos Vehículo'!$C$9,B56='Costos Vehículo'!$C$10,B56='Costos Vehículo'!$C$11),'Costos Vehículo'!$D$4/26,IF(B56='Costos Vehículo'!$C$14,'Costos Vehículo'!$D$5/26,0)) -> 3389.423077 | S56: =IFERROR(VLOOKUP(B56,'Costos Vehículo'!$C$7:$D$14,2,0)/26,0) -> 1104.266026 | T56: =IFERROR(VLOOKUP(B56,'Costos Vehículo'!$C$16:$D$23,2,0)/26,0) -> 23422.59822 | U56: =IF(B56<>"",'Costos Vehículo'!$D$25/26,0) -> 2051.282051 | V56: =IFERROR(VLOOKUP(B56,'Costos Vehículo'!$C$26:$D$33,2,0)/26,0) -> 3913.404 | W56: =IF(B56<>"",'Costos Vehículo'!$D$35/26,0) -> 3846.153846 | X56: =IF(E56="Sí",'Costos Vehículo'!$I$16,0) -> 50000 | Y56: =IF(D56="Sí",'Costos Vehículo'!$K$11/26,0) -> 0 | Z56: =IF(AND(H56="Sí",L56>1),'Costos Vehículo'!$I$13*SUM(F56)+'Costos Vehículo'!$I$15*(L56-1)*SUM(F56),IF(H56="Sí",'Costos Vehículo'!$I$13*SUM(F56),0)) -> 60000 | AA56: =IF(L56>1,'Costos Vehículo'!$I$14*SUM(F56)*(L56-1),0) -> 0 | AB56: 138100 | AC56: =IFERROR(IF(D56="Sí",(VLOOKUP(B56,'Costos Vehículo'!$G$19:$I$26,3,0)+J56/VLOOKUP(B56,'Costos Vehículo'!$G$19:$L$26,5,0))*I56,(VLOOKUP(B56,'Costos Vehículo'!$G$19:$I$26,3,0)+J56/VLOOKUP(B56,'Costos Vehículo'!$G$19:$J$26,4,0))*I56),0) -> 564381.8262 | AD56: =IFERROR(IF(O56="Sí",N56*SUM(F56)*'Costos Vehículo'!$K$29,0),0) -> 19810.42014 | AE56: 223703.8812 | AF56: =SUM(Q56:AE56)*'Costos Vehículo'!$H$29 -> 64799.55758 | AG56: 1307598.897 | AH56: =IFERROR(G56*'Costos Vehículo'!$H$31*L56,0) -> 86300 | AI56: =IFERROR(N56*SUM(G56)*'Costos Vehículo'!$K$28,0) -> 13484.375 | AJ56: =IF(AND(H56="Sí",L56>1),'Costos Vehículo'!$I$13*SUM(G56)+'Costos Vehículo'!$I$15*(L56-1)*SUM(G56),IF(H56="Sí",'Costos Vehículo'!$I$13*SUM(G56),0)) -> 60000 | AK56: =IF(L56>1,'Costos Vehículo'!$I$14*SUM(G56)*(L56-1),0) -> 0 | AL56: 159784.375 | AM56: 1467383.272 | AN56: 333087.0005 | AO56: 1800470.273
A57: PEREIRA_CAJICA | B57: Sencillo | C57: =VLOOKUP(A57,'peajes NACIONAL '!$B$2:$E$59,4,0) -> 07:31:00 | D57: No | E57: Sí | F57: 1 | G57: 1 | H57: Sí | I57: =VLOOKUP(A57,'[1]NACIONAL '!B$2:C$58,2,0) -> 339 | J57: 8871 | K57: =VLOOKUP(A57,'peajes NACIONAL '!$B$2:$I$59,8,0) -> 202900 | L57: 1 | M57: 0.18 | N57: 1 | O57: Sí | P57: 0.185 | Q57: =IFERROR(F57*'Costos Vehículo'!$H$30*L57,"") -> 149076.0852 | R57: =IF(OR(B57='Costos Vehículo'!$C$7,B57='Costos Vehículo'!$C$8,B57='Costos Vehículo'!$C$9,B57='Costos Vehículo'!$C$10,B57='Costos Vehículo'!$C$11),'Costos Vehículo'!$D$4/26,IF(B57='Costos Vehículo'!$C$14,'Costos Vehículo'!$D$5/26,0)) -> 3389.423077 | S57: =IFERROR(VLOOKUP(B57,'Costos Vehículo'!$C$7:$D$14,2,0)/26,0) -> 1104.266026 | T57: =IFERROR(VLOOKUP(B57,'Costos Vehículo'!$C$16:$D$23,2,0)/26,0) -> 23422.59822 | U57: =IF(B57<>"",'Costos Vehículo'!$D$25/26,0) -> 2051.282051 | V57: =IFERROR(VLOOKUP(B57,'Costos Vehículo'!$C$26:$D$33,2,0)/26,0) -> 3913.404 | W57: =IF(B57<>"",'Costos Vehículo'!$D$35/26,0) -> 3846.153846 | X57: =IF(E57="Sí",'Costos Vehículo'!$I$16,0) -> 50000 | Y57: =IF(D57="Sí",'Costos Vehículo'!$K$11/26,0) -> 0 | Z57: =IF(AND(H57="Sí",L57>1),'Costos Vehículo'!$I$13*SUM(F57)+'Costos Vehículo'!$I$15*(L57-1)*SUM(F57),IF(H57="Sí",'Costos Vehículo'!$I$13*SUM(F57),0)) -> 60000 | AA57: =IF(L57>1,'Costos Vehículo'!$I$14*SUM(F57)*(L57-1),0) -> 0 | AB57: 202900 | AC57: =IFERROR(IF(D57="Sí",(VLOOKUP(B57,'Costos Vehículo'!$G$19:$I$26,3,0)+J57/VLOOKUP(B57,'Costos Vehículo'!$G$19:$L$26,5,0))*I57,(VLOOKUP(B57,'Costos Vehículo'!$G$19:$I$26,3,0)+J57/VLOOKUP(B57,'Costos Vehículo'!$G$19:$J$26,4,0))*I57),0) -> 406211.1233 | AD57: =IFERROR(IF(O57="Sí",N57*SUM(F57)*'Costos Vehículo'!$K$29,0),0) -> 19810.42014 | AE57: 203207.8732 | AF57: =SUM(Q57:AE57)*'Costos Vehículo'!$H$29 -> 58862.54728 | AG57: 1187795.176 | AH57: =IFERROR(G57*'Costos Vehículo'!$H$31*L57,0) -> 86300 | AI57: =IFERROR(N57*SUM(G57)*'Costos Vehículo'!$K$28,0) -> 13484.375 | AJ57: =IF(AND(H57="Sí",L57>1),'Costos Vehículo'!$I$13*SUM(G57)+'Costos Vehículo'!$I$15*(L57-1)*SUM(G57),IF(H57="Sí",'Costos Vehículo'!$I$13*SUM(G57),0)) -> 60000 | AK57: =IF(L57>1,'Costos Vehículo'!$I$14*SUM(G57)*(L57-1),0) -> 0 | AL57: 159784.375 | AM57: 1347579.551 | AN57: 305892.2908 | AO57: 1653471.842
A58: PEREIRA_YUMBO | B58: Sencillo | C58: =VLOOKUP(A58,'peajes NACIONAL '!$B$2:$E$59,4,0) -> 03:08:00 | D58: No | E58: Sí | F58: 1 | G58: 1 | H58: Sí | I58: =VLOOKUP(A58,'[1]NACIONAL '!B$2:C$58,2,0) -> 199 | J58: 8871 | K58: =VLOOKUP(A58,'peajes NACIONAL '!$B$2:$I$59,8,0) -> 199400 | L58: 1 | M58: 0.18 | N58: 1 | O58: Sí | P58: 0.185 | Q58: =IFERROR(F58*'Costos Vehículo'!$H$30*L58,"") -> 149076.0852 | R58: =IF(OR(B58='Costos Vehículo'!$C$7,B58='Costos Vehículo'!$C$8,B58='Costos Vehículo'!$C$9,B58='Costos Vehículo'!$C$10,B58='Costos Vehículo'!$C$11),'Costos Vehículo'!$D$4/26,IF(B58='Costos Vehículo'!$C$14,'Costos Vehículo'!$D$5/26,0)) -> 3389.423077 | S58: =IFERROR(VLOOKUP(B58,'Costos Vehículo'!$C$7:$D$14,2,0)/26,0) -> 1104.266026 | T58: =IFERROR(VLOOKUP(B58,'Costos Vehículo'!$C$16:$D$23,2,0)/26,0) -> 23422.59822 | U58: =IF(B58<>"",'Costos Vehículo'!$D$25/26,0) -> 2051.282051 | V58: =IFERROR(VLOOKUP(B58,'Costos Vehículo'!$C$26:$D$33,2,0)/26,0) -> 3913.404 | W58: =IF(B58<>"",'Costos Vehículo'!$D$35/26,0) -> 3846.153846 | X58: =IF(E58="Sí",'Costos Vehículo'!$I$16,0) -> 50000 | Y58: =IF(D58="Sí",'Costos Vehículo'!$K$11/26,0) -> 0 | Z58: =IF(AND(H58="Sí",L58>1),'Costos Vehículo'!$I$13*SUM(F58)+'Costos Vehículo'!$I$15*(L58-1)*SUM(F58),IF(H58="Sí",'Costos Vehículo'!$I$13*SUM(F58),0)) -> 60000 | AA58: =IF(L58>1,'Costos Vehículo'!$I$14*SUM(F58)*(L58-1),0) -> 0 | AB58: 199400 | AC58: =IFERROR(IF(D58="Sí",(VLOOKUP(B58,'Costos Vehículo'!$G$19:$I$26,3,0)+J58/VLOOKUP(B58,'Costos Vehículo'!$G$19:$L$26,5,0))*I58,(VLOOKUP(B58,'Costos Vehículo'!$G$19:$I$26,3,0)+J58/VLOOKUP(B58,'Costos Vehículo'!$G$19:$J$26,4,0))*I58),0) -> 238454.3172 | AD58: =IFERROR(IF(O58="Sí",N58*SUM(F58)*'Costos Vehículo'!$K$29,0),0) -> 19810.42014 | AE58: 165614.9158 | AF58: =SUM(Q58:AE58)*'Costos Vehículo'!$H$29 -> 47973.12061 | AG58: 968055.9862 | AH58: =IFERROR(G58*'Costos Vehículo'!$H$31*L58,0) -> 86300 | AI58: =IFERROR(N58*SUM(G58)*'Costos Vehículo'!$K$28,0) -> 13484.375 | AJ58: =IF(AND(H58="Sí",L58>1),'Costos Vehículo'!$I$13*SUM(G58)+'Costos Vehículo'!$I$15*(L58-1)*SUM(G58),IF(H58="Sí",'Costos Vehículo'!$I$13*SUM(G58),0)) -> 60000 | AK58: =IF(L58>1,'Costos Vehículo'!$I$14*SUM(G58)*(L58-1),0) -> 0 | AL58: 159784.375 | AM58: 1127840.361 | AN58: 256012.8427 | AO58: 1383853.204
A59: SINCELEJO_BARRANQUILLA | B59: Sencillo | C59: =VLOOKUP(A59,'peajes NACIONAL '!$B$2:$E$59,4,0) -> 04:13:00 | D59: No | E59: Sí | F59: 1 | G59: 1 | H59: Sí | I59: =VLOOKUP(A59,'[1]NACIONAL '!B$2:C$58,2,0) -> 236 | J59: 8871 | K59: =VLOOKUP(A59,'peajes NACIONAL '!$B$2:$I$59,8,0) -> 105500 | L59: 1 | M59: 0.18 | N59: 1 | O59: Sí | P59: 0.185 | Q59: =IFERROR(F59*'Costos Vehículo'!$H$30*L59,"") -> 149076.0852 | R59: =IF(OR(B59='Costos Vehículo'!$C$7,B59='Costos Vehículo'!$C$8,B59='Costos Vehículo'!$C$9,B59='Costos Vehículo'!$C$10,B59='Costos Vehículo'!$C$11),'Costos Vehículo'!$D$4/26,IF(B59='Costos Vehículo'!$C$14,'Costos Vehículo'!$D$5/26,0)) -> 3389.423077 | S59: =IFERROR(VLOOKUP(B59,'Costos Vehículo'!$C$7:$D$14,2,0)/26,0) -> 1104.266026 | T59: =IFERROR(VLOOKUP(B59,'Costos Vehículo'!$C$16:$D$23,2,0)/26,0) -> 23422.59822 | U59: =IF(B59<>"",'Costos Vehículo'!$D$25/26,0) -> 2051.282051 | V59: =IFERROR(VLOOKUP(B59,'Costos Vehículo'!$C$26:$D$33,2,0)/26,0) -> 3913.404 | W59: =IF(B59<>"",'Costos Vehículo'!$D$35/26,0) -> 3846.153846 | X59: =IF(E59="Sí",'Costos Vehículo'!$I$16,0) -> 50000 | Y59: =IF(D59="Sí",'Costos Vehículo'!$K$11/26,0) -> 0 | Z59: =IF(AND(H59="Sí",L59>1),'Costos Vehículo'!$I$13*SUM(F59)+'Costos Vehículo'!$I$15*(L59-1)*SUM(F59),IF(H59="Sí",'Costos Vehículo'!$I$13*SUM(F59),0)) -> 60000 | AA59: =IF(L59>1,'Costos Vehículo'!$I$14*SUM(F59)*(L59-1),0) -> 0 | AB59: 105500 | AC59: =IFERROR(IF(D59="Sí",(VLOOKUP(B59,'Costos Vehículo'!$G$19:$I$26,3,0)+J59/VLOOKUP(B59,'Costos Vehículo'!$G$19:$L$26,5,0))*I59,(VLOOKUP(B59,'Costos Vehículo'!$G$19:$I$26,3,0)+J59/VLOOKUP(B59,'Costos Vehículo'!$G$19:$J$26,4,0))*I59),0) -> 282790.0445 | AD59: =IFERROR(IF(O59="Sí",N59*SUM(F59)*'Costos Vehículo'!$K$29,0),0) -> 19810.42014 | AE59: 154734.9535 | AF59: =SUM(Q59:AE59)*'Costos Vehículo'!$H$29 -> 44821.5582 | AG59: 904460.1888 | AH59: =IFERROR(G59*'Costos Vehículo'!$H$31*L59,0) -> 86300 | AI59: =IFERROR(N59*SUM(G59)*'Costos Vehículo'!$K$28,0) -> 13484.375 | AJ59: =IF(AND(H59="Sí",L59>1),'Costos Vehículo'!$I$13*SUM(G59)+'Costos Vehículo'!$I$15*(L59-1)*SUM(G59),IF(H59="Sí",'Costos Vehículo'!$I$13*SUM(G59),0)) -> 60000 | AK59: =IF(L59>1,'Costos Vehículo'!$I$14*SUM(G59)*(L59-1),0) -> 0 | AL59: 159784.375 | AM59: 1064244.564 | AN59: 241576.9869 | AO59: 1305821.551

Sheet peajes NACIONAL (hidden)
B1: RUTA | C1: DISTANCIA | D1: NUMERO DE PEAJES | E1: TIEMPO APROX | F1: Categoría I: | G1: Categoría II: | H1: Categoría III: | I1: Categoría IV: | J1: Categoría V: | K1: Categoría VI: | L1: Categoría VII:
B2: BARRANQUILLA_BOSCONIA | C2: 207 | D2: 5 | E2: 03:38:00 | F2: 48000 | G2: 51000 | H2: 89200 | I2: 136200 | J2: 162000 | K2: 41000 | L2: 46300
B3: BARRANQUILLA_SANTA MARTA | C3: 105 | D3: 2 | E3: 01:56:00 | F3: 22200 | G3: 26400 | H3: 34400 | I3: 42800 | J3: 61800 | K3: 82000 | L3: 92600
B4: BARRANQUILLA_VALLEDUPAR | C4: 295 | D4: 5 | E4: 05:35:00 | F4: 47900 | G4: 54700 | H4: 99400 | I4: 127600 | J4: 159700 | K4: 82000 | L4: 92600
B5: BOGOTA_AQUITANIA | C5: 244 | D5: 6 | E5: 04:15:00 | F5: 43000 | G5: 51000 | H5: 98500 | I5: 132600 | J5: 195100 | K5: 85400 | L5: 94600
B6: BOGOTA_ARMENIA | C6: 282 | D6: 5 | E6: 05:37:00 | F6: 55400 | G6: 62300 | H6: 119600 | I6: 174300 | J6: 211600 | K6: 42200 | L6: 46600
B7: BOGOTA_BARBOSA | C7: 185 | D7: 4 | E7: 03:41:00 | F7: 27000 | G7: 33400 | H7: 57200 | I7: 81000 | J7: 135400 | K7: 85400 | L7: 94600
B8: BOGOTÁ_BARRANQUILLA | C8: 979 | D8: 13 | E8: 17:57:00 | F8: 138900 | G8: 170100 | H8: 324500 | I8: 426500 | J8: 521900 | K8: 205200 | L8: 138700
B9: BOGOTÁ_BUCARAMANGA | C9: 407 | D9: 6 | E9: 07:36:00 | F9: 55100 | G9: 65700 | H9: 138800 | I9: 183300 | J9: 223000 | K9: 47500 | L9: 52700
B10: BOGOTA_CALI | C10: 464 | D10: 10 | E10: 08:39:00 | F10: 103800 | G10: 122300 | H10: 249400 | I10: 342500 | J10: 419800 | K10: 85000 | L10: 96200
B11: BOGOTA_CARTAGENA | C11: 1050 | D11: 12 | E11: 19:10:00 | F11: 126700 | G11: 158100 | H11: 317200 | I11: 425100 | J11: 501300 | K11: 123200 | L11: 46100
B12: BOGOTA_CHIQUINQUIRA | C12: 134 | D12: 1 | E12: 02:43:00 | F12: 9100 | G12: 9800 | H12: 25600 | I12: 31800 | J12: 37200 | K12: 0 | L12: 0
B13: BOGOTA_CUCUTA | C13: 557 | D13: 5 | E13: 11:35:00 | F13: 42600 | G13: 55100 | H13: 108100 | I13: 145700 | J13: 178800 | K13: 47500 | L13: 52700
B14: BOGOTA_DORADA | C14: 204 | D14: 3 | E14: 04:37:00 | F14: 33800 | G14: 44400 | H14: 67400 | I14: 105200 | J14: 135600 | K14: 116000 | L14: 41400
B15: BOGOTA_DUITAMA | C15: 195 | D15: 5 | E15: 03:02:00 | F15: 34300 | G15: 41700 | H15: 78600 | I15: 107300 | J15: 166700 | K15: 85400 | L15: 94600
B16: BOGOTA_FLORENCIA | C16: 534 | D16: 7 | E16: 10:01:00 | F16: 79100 | G16: 92800 | H16: 154700 | I16: 216100 | J16: 276100 | K16: 144900 | L16: 168000
B17: BOGOTA_FUSA | C17: 82.4 | D17: 1 | E17: 02:02:00 | F17: 11200 | G17: 13500 | H17: 13500 | I17: 15600 | J17: 34500 | K17: 42400 | L17: 44800
B18: BOGOTA_GARAGOA | C18: 137 | D18: 4 | E18: 02:58:00 | F18: 26000 | G18: 33100 | H18: 52100 | I18: 75000 | J18: 127400 | K18: 85400 | L18: 94600
B19: BOGOTÁ_GARZON | C19: 425 | D19: 6 | E19: 07:51:00 | F19: 67200 | G19: 78700 | H19: 125100 | I19: 177100 | J19: 233800 | K19: 144900 | L19: 168000
B20: BOGOTA_GIRARDOT | C20: 135 | D20: 2 | E20: 02:43:00 | F20: 23000 | G20: 25800 | H20: 55200 | I20: 89800 | J20: 103200 | K20: 0 | L20: 0
B21: BOGOTA_GUATEQUE | C21: 113 | D21: 4 | E21: 02:14:00 | F21: 26000 | G21: 33100 | H21: 52100 | I21: 75000 | J21: 127400 | K21: 85400 | L21: 94600
B22: BOGOTA_IBAGUE | C22: 191 | D22: 4 | E22: 03:11:00 | F22: 46000 | G22: 51800 | H22: 97900 | I22: 146700 | J22: 180400 | K22: 42200 | L22: 46600
B23: BOGOTA_MEDELLIN | C23: 443 | D23: 6 | E23: 08:12:00 | F23: 71400 | G23: 102000 | H23: 122000 | I23: 170900 | J23: 264700 | K23: 290100 | L23: 217200
B24: BOGOTÁ_NEIVA | C24: 292 | D24: 5 | E24: 05:29:00 | F24: 61700 | G24: 73800 | H24: 114600 | I24: 165100 | J24: 218700 | K24: 144900 | L24: 168000
B25: BOGOTA_PAIPA | C25: 191 | D25: 4 | E25: 03:41:00 | F25: 36300 | G25: 46100 | H25: 87900 | I25: 119700 | J25: 149200 | K25: 47500 | L25: 52700
B26: BOGOTA_PEREIRA | C26: 318 | D26: 6 | E26: 06:06:00 | F26: 70700 | G26: 81900 | H26: 138200 | I26: 193900 | J26: 259300 | K26: 100800 | L26: 111900
B27: BOGOTA_PITALITO | C27: 504 | D27: 7 | E27: 09:22:00 | F27: 76000 | G27: 88400 | H27: 145300 | I27: 202800 | J27: 262800 | K27: 138700 | L27: 159200
B28: BOGOTA_SANGIL | C28: 300 | D28: 5 | E28: 06:10:00 | F28: 35600 | G28: 42600 | H28: 81000 | I28: 110600 | J28: 170000 | K28: 85400 | L28: 94600
B29: BOGOTA_SANTA MARTA | C29: 940 | D29: 11 | E29: 17:14:00 | F29: 116700 | G29: 143700 | H29: 290100 | I29: 383700 | J29: 460100 | K29: 123200 | L29: 46100
B30: BOGOTA_SOGAMOSO | C30: 209 | D30: 5 | E30: 03:16:00 | F30: 34300 | G30: 41700 | H30: 78600 | I30: 107300 | J30: 166700 | K30: 85400 | L30: 94600
B31: BOGOTA_TIBASOSA | C31: 201 | D31: 5 | E31: 03:11:00 | F31: 34300 | G31: 41700 | H31: 78600 | I31: 107300 | J31: 166700 | K31: 85400 | L31: 94600
B32: BOGOTA_TUNJA | C32: 152 | D32: 3 | E32: 02:55:00 | F32: 27400 | G32: 36300 | H32: 62200 | I32: 87900 | J32: 11800 | K32: 47500 | L32: 52700
B33: BOGOTA_UBATE | C33: 85.2 | D33: 3 | E33: 01:51:00 | F33: 17700 | G33: 24200 | H33: 33400 | I33: 51400 | J33: 100800 | K33: 85400 | L33: 94600
B34: BOGOTA_VILLA DE LEYVA | C34: 159 | D34: 4 | E34: 02:35:00 | F34: 36600 | G34: 46200 | H34: 83500 | I34: 115000 | J34: 142300 | K34: 47500 | L34: 52700
B35: BOGOTA_VILLAVICENCIO | C35: 117 | D35: 4 | E35: 02:29:00 | F35: 58900 | G35: 151400 | H35: 90000 | I35: 199600 | J35: 225000 | K35: 273500 | L35: 330900
B36: BOGOTA_YOPAL | C36: 337 | D36: 7 | E36: 06:18:00 | F36: 79600 | G36: 190300 | H36: 129900 | I36: 255900 | J36: 296900 | K36: 328800 | L36: 393200
B37: BOGOTA_ZIPAQUIRA | C37: 42.9 | D37: 2 | E37: 55.03819444 | F37: 9100 | G37: 15000 | H37: 9600 | I37: 21800 | J37: 66200 | K37: 85400 | L37: 94600
B38: BUCARAMANGA_BARRANCABERMEJA | C38: 116 | D38: 2 | E38: 02:18:00 | F38: 16500 | G38: 18500 | H38: 41200 | I38: 53700 | J38: 61000 | K38: 0 | L38: 0
B39: BUCARAMANGA_CUCUTA | C39: 198 | D39: 2 | E39: 04:57:00 | F39: 15100 | G39: 18700 | H39: 40400 | I39: 51700 | J39: 58600
B40: BUCARAMANGA_OCAÑA | C40: 216 | D40: 4 | E40: 04:44:00 | F40: 35000 | G40: 38700 | H40: 83600 | I40: 107700 | J40: 122700 | K40: 0 | L40: 0
B41: CALI_BUCARAMANGA | C41: 769 | D41: 12 | E41: 14:05:00 | F41: 126000 | G41: 152600 | H41: 307400 | I41: 383600 | J41: 493900 | K41: 139200 | L41: 155900
B42: CALI_IPIALES | C42: 473 | D42: 5 | E42: 08:48:00 | F42: 48900 | G42: 55000 | H42: 128100 | I42: 166500 | J42: 191400 | K42: 0 | L42: 0
B43: CALI_PASTO | C43: 388 | D43: 4 | E43: 07:16:00 | F43: 38600 | G43: 44200 | H43: 105200 | I43: 136600 | J43: 156900 | K43: 0 | L43: 0
B44: CALI_POPAYAN | C44: 138 | D44: 2 | E44: 02:25:00 | F44: 18000 | G44: 21800 | H44: 58800 | I44: 76600 | J44: 88200 | K44: 0 | L44: 0
B45: FUNZA_BARRANQUILLA | C45: 979 | D45: 13 | E45: 17:57:00 | F45: 138900 | G45: 170100 | H45: 324500 | I45: 426500 | J45: 521900 | K45: 205200 | L45: 138700
B46: FUNZA_CARTAGENA | C46: 1050 | D46: 12 | E46: 19:10:00 | F46: 126700 | G46: 158100 | H46: 317200 | I46: 425100 | J46: 501300 | K46: 123200 | L46: 46100
B47: FUNZA_MEDELLIN | C47: 408 | D47: 8 | E47: 08:11:00 | F47: 101800 | G47: 135000 | H47: 138700 | I47: 190000 | J47: 286600 | K47: 284700 | L47: 212700
B48: IBAGUE_MEDELLIN | C48: 413 | D48: 5 | E48: 06:40:00 | F48: 60500 | G48: 79400 | H48: 75200 | I48: 85400 | J48: 117400 | K48: 247500 | L48: 258500
B49: MEDELLIN_BARRANQUILLA | C49: 702 | D49: 11 | E49: 12:02:00 | F49: 112400 | G49: 142800 | H49: 200500 | I49: 243600 | J49: 342500 | K49: 213600 | L49: 243100
B50: MEDELLIN_BUCARAMANGA | C50: 404 | D50: 7 | E50: 08:12:00 | F50: 70100 | G50: 80200 | H50: 134200 | I50: 166800 | J50: 226800 | K50: 114100 | L50: 129300
B51: MEDELLIN_IPIALES | C51: 877 | D51: 14 | E51: 18:12:00 | F51: 126700 | G51: 146100 | H51: 328600 | I51: 425700 | J51: 502000 | K51: 42400 | L51: 48900
B52: MEDELLIN_LA APARTADA | C52: 301 | D52: 6 | E52: 06:26:00 | F52: 53600 | G52: 63400 | H52: 96900 | I52: 120400 | J52: 159400 | K52: 101900 | L52: 115300
B53: MEDELLIN_NEIVA | C53: 556 | D53: 8 | E53: 10:11:00 | F53: 97300 | G53: 124300 | H53: 145500 | I53: 176900 | J53: 299900 | K53: 344100 | L53: 370500
B54: MEDELLIN_PEREIRA | C54: 215 | D54: 4 | E54: 04:05:00 | F54: 42200 | G54: 50300 | H54: 72200 | I54: 83400 | J54: 135500 | K54: 98900 | L54: 112200
B55: MEDELLIN-CALI | C55: 425 | D55: 9 | E55: 07:45:00 | F55: 92500 | G55: 111700 | H55: 226200 | I55: 287300 | J55: 366400 | K55: 98900 | L55: 112200
B56: MEDELLIN_SINCELEJO | C56: 471 | D56: 7 | E56: 08:41:00 | F56: 76100 | G56: 93900 | H56: 118000 | I56: 138100 | J56: 211600 | K56: 213600 | L56: 243100
B57: PEREIRA_CAJICA | C57: 339 | D57: 8 | E57: 07:31:00 | F57: 75300 | G57: 91400 | H57: 139600 | I57: 202900 | J57: 308100 | K57: 178000 | L57: 197200
B58: PEREIRA_YUMBO | C58: 199 | D58: 6 | E58: 03:08:00 | F58: 49100 | G58: 58900 | H58: 151500 | I58: 199400 | J58: 227400 | K58: 0 | L58: 0
B59: SINCELEJO_BARRANQUILLA | C59: 236 | D59: 4 | E59: 04:13:00 | F59: 36300 | G59: 48900 | H59: 82500 | I59: 105500 | J59: 130900 | K59: 0 | L59: 0
B60: BOGOTA-MAGDALENA MEDIO | C60: 940 | D60: 11 | E60: 17:14:00 | F60: 116700 | G60: 143700 | H60: 290100 | I60: 383700 | J60: 460100 | K60: 123200 | L60: 46100

Sheet P&G Operación (hidden)
B5: Viajes Urbanos Dislicores | C5: Lunes | D5: Martes | E5: Miércoles | F5: Jueves | G5: Viernes | H5: Sábado | I5: Total Semana | J5: Total Mes | L5: Tipo de Vehículo | M5: Flete Propietario | N5: Tarifa Sugerida | P5: Viajes Urbanos Dislicores | Q5: Lunes | R5: Martes | S5: Miércoles | T5: Jueves | U5: Viernes | V5: Sábado | W5: Total Semana | X5: Total Mes | Z5: Variaciòn % | AA5: Variaciòn % | AC5: Variaciòn ($) | AD5: Variaciòn ($)
B6: BARRANQUILLA_medellin | C6: 1 | D6: 1 | E6: 1 | F6: 1 | G6: 1 | H6: 1 | I6: =SUM(C6:H6) -> 6 | J6: =I6*4.3333 -> 25.9998 | L6: =B6 -> BARRANQUILLA_medellin | M6: =IF(I6=0,"",Rutas!AG3) -> 1189064.346 | N6: =IF(I6=0,"",Rutas!AO3) -> 1655029.106 | P6: Carry | Q6: 1 | R6: 1 | S6: 1 | T6: 1 | U6: 1 | V6: 1 | W6: =SUM(Q6:V6) -> 6 | X6: =W6*4.3333 -> 25.9998 | Z6: =IFERROR(M6/M21-1,"") ->  | AC6: =IFERROR(M6-M6/(1+Z6),"") ->  | AD6: =IFERROR(N6-N6/(1+AA6),"") -> 
B7: =IF(Rutas!A4<>"",Rutas!A4,"") -> BARRANQUILLA_SANTA MARTA | I7: 0 | J7: =I7*4.3333 -> 0 | L7: =B7 -> BARRANQUILLA_SANTA MARTA | M7: =IF(I7=0,"",Rutas!AG4) ->  | N7: =IF(I7=0,"",Rutas!AO4) ->  | P7: Luv | Q7: 1 | R7: 2 | S7: 2 | T7: 2 | U7: 2 | V7: 1 | W7: =SUM(Q7:V7) -> 10 | X7: =W7*4.3333 -> 43.333
B8: =IF(Rutas!A5<>"",Rutas!A5,"") -> BARRANQUILLA_VALLEDUPAR | I8: 0 | J8: =I8*4.3333 -> 0 | L8: BARRANQUILLA_VALLEDUPAR | M8: =IF(I8=0,"",Rutas!AG5) ->  | N8: =IF(I8=0,"",Rutas!AO5) ->  | P8: NHR | Q8: 2 | R8: 7 | S8: 6 | T8: 7 | U8: 6 | V8: 2 | W8: =SUM(Q8:V8) -> 30 | X8: =W8*4.3333 -> 129.999
B9: =IF(Rutas!A6<>"",Rutas!A6,"") -> BOGOTA_AQUITANIA | I9: 0 | J9: 0 | L9: BOGOTA_AQUITANIA | M9: =IF(I9=0,"",Rutas!AG6) ->  | N9: =IF(I9=0,"",Rutas!AO6) ->  | P9: NPR | S9: 1 | U9: 1 | W9: =SUM(Q9:V9) -> 2 | X9: =W9*4.3333 -> 8.6666
B10: =IF(Rutas!A7<>"",Rutas!A7,"") -> BOGOTA_ARMENIA | I10: 0 | J10: 0 | L10: BOGOTA_ARMENIA | M10: =IF(I10=0,"",Rutas!AG7) ->  | N10: =IF(I10=0,"",Rutas!AO7) ->  | Z10: =IFERROR(M10/M21-1,"") -> 
B11: =IF(Rutas!A8<>"",Rutas!A8,"") -> BOGOTA_BARBOSA | I11: 0 | J11: 0 | L11: BOGOTA_BARBOSA | M11: =IF(I11=0,"",Rutas!AG8) ->  | N11: =IF(I11=0,"",Rutas!AO8) -> 
B12: =IF(Rutas!A9<>"",Rutas!A9,"") -> BOGOTÁ_BARRANQUILLA | I12: 0 | J12: 0 | L12: BOGOTÁ_BARRANQUILLA | M12: =IF(I12=0,"",Rutas!AG9) ->  | N12: =IF(I12=0,"",Rutas!AO9) -> 
B13: =IF(Rutas!A10<>"",Rutas!A10,"") -> BOGOTÁ_BUCARAMANGA | I13: 0 | J13: 0 | L13: BOGOTÁ_BUCARAMANGA | M13: =IF(I13=0,"",Rutas!AG10) ->  | N13: =IF(I13=0,"",Rutas!AO10) -> 
B14: =IF(Rutas!A11<>"",Rutas!A11,"") -> BOGOTA_CALI | I14: 0 | J14: 0 | L14: BOGOTA_CALI | M14: =IF(I14=0,"",Rutas!AG11) ->  | N14: =IF(I14=0,"",Rutas!AO11) ->  | Z14: =IFERROR(M14/M21-1,"") -> 
B15: =IF(Rutas!A12<>"",Rutas!A12,"") -> BOGOTA_CARTAGENA | I15: 0 | J15: 0 | L15: BOGOTA_CARTAGENA | M15: =IF(I15=0,"",Rutas!AG12) ->  | N15: =IF(I15=0,"",Rutas!AO12) -> 
B16: =IF(Rutas!A13<>"",Rutas!A13,"") -> BOGOTA_CHIQUINQUIRA | I16: 0 | J16: 0 | L16: BOGOTA_CHIQUINQUIRA | M16: =IF(I16=0,"",Rutas!AG13) ->  | N16: =IF(I16=0,"",Rutas!AO13) -> 
B17: =IF(Rutas!A14<>"",Rutas!A14,"") -> BOGOTA_CUCUTA | I17: 0 | J17: 0 | L17: BOGOTA_CUCUTA | M17: =IF(I17=0,"",Rutas!AG14) ->  | N17: =IF(I17=0,"",Rutas!AO14) -> 
B18: Total Viajes | C18: =SUM(C6:C17) -> 1 | D18: 1 | E18: 1 | F18: 1 | G18: 1 | H18: 1 | I18: 6 | J18: 25.9998 | P18: Total Viajes | Q18: =SUM(Q6:Q9) -> 4 | R18: 10 | S18: 10 | T18: 10 | U18: 10 | V18: 4 | W18: =SUM(Q18:V18) -> 48 | X18: =W18*4.3333 -> 207.9984
M19: Tarifas Actuales
B20: Tarifa Cliente | C20: =SUMPRODUCT(C6:C17,Rutas!$AO$3:$AO$14) -> 1655029.106 | D20: =SUMPRODUCT(D6:D17,Rutas!$AO$3:$AO$14) -> 1655029.106 | E20: =SUMPRODUCT(E6:E17,Rutas!$AO$3:$AO$14) -> 1655029.106 | F20: =SUMPRODUCT(F6:F17,Rutas!$AO$3:$AO$14) -> 1655029.106 | G20: =SUMPRODUCT(G6:G17,Rutas!$AO$3:$AO$14) -> 1655029.106 | H20: =SUMPRODUCT(H6:H17,Rutas!$AO$3:$AO$14) -> 1655029.106 | I20: =SUM(C20:H20) -> 9930174.635 | J20: =I20*4.3333 -> 43030425.75 | L20: Tipo Vehículo | M20: Flete tercero | N20: Tarifa Cliente | P20: Tarifa Cliente | Q20: =SUMPRODUCT(Q$6:Q$9,$N$21:$N$24) -> 0 | R20: 0 | S20: 0 | T20: 0 | U20: 0 | V20: 0 | W20: =SUM(Q20:V20) -> 0 | X20: =W20*4.3333 -> 0 | Z20: Total Mes Cliente Actual
L21: Carry
B22: Fletes | C22: =SUMPRODUCT(C6:C17,Rutas!$AG$3:$AG$14) -> 1189064.346 | D22: =SUMPRODUCT(D6:D17,Rutas!$AG$3:$AG$14) -> 1189064.346 | E22: =SUMPRODUCT(E6:E17,Rutas!$AG$3:$AG$14) -> 1189064.346 | F22: =SUMPRODUCT(F6:F17,Rutas!$AG$3:$AG$14) -> 1189064.346 | G22: =SUMPRODUCT(G6:G17,Rutas!$AG$3:$AG$14) -> 1189064.346 | H22: =SUMPRODUCT(H6:H17,Rutas!$AG$3:$AG$14) -> 1189064.346 | I22: =SUM(C22:H22) -> 7134386.077 | J22: =I22*4.3333 -> 30915435.19 | L22: Luv | P22: Fletes | Q22: =SUMPRODUCT(Q$6:Q$9,$M$21:$M$24) -> 0 | R22: 0 | S22: 0 | T22: 0 | U22: 0 | V22: 0 | W22: =SUM(Q22:V22) -> 0 | X22: =W22*4.3333 -> 0
L23: NHR
B24: Costo Auxiliares | C24: =SUMPRODUCT(C6:C17,Rutas!$AL$3:$AL$14) -> 159784.375 | D24: =SUMPRODUCT(D6:D17,Rutas!$AL$3:$AL$14) -> 159784.375 | E24: =SUMPRODUCT(E6:E17,Rutas!$AL$3:$AL$14) -> 159784.375 | F24: =SUMPRODUCT(F6:F17,Rutas!$AL$3:$AL$14) -> 159784.375 | G24: =SUMPRODUCT(G6:G17,Rutas!$AL$3:$AL$14) -> 159784.375 | H24: =SUMPRODUCT(H6:H17,Rutas!$AL$3:$AL$14) -> 159784.375 | I24: =SUM(C24:H24) -> 958706.25 | J24: =I24*4.3333 -> 4154361.793 | L24: NPR | P24: Costo Auxiliares | Q24: =(VLOOKUP($B$6,Rutas!$B:$AV,45,0)*Q$6+VLOOKUP($B$7,Rutas!$B:$AV,45,0)*Q$7+VLOOKUP($B$8,Rutas!$B:$AV,45,0)*Q$8+VLOOKUP($B$9,Rutas!$B:$AV,45,0)*Q$9) ->  | R24: =(VLOOKUP($B$6,Rutas!$B:$AV,45,0)*R$6+VLOOKUP($B$7,Rutas!$B:$AV,45,0)*R$7+VLOOKUP($B$8,Rutas!$B:$AV,45,0)*R$8+VLOOKUP($B$9,Rutas!$B:$AV,45,0)*R$9) ->  | S24: =(VLOOKUP($B$6,Rutas!$B:$AV,45,0)*S$6+VLOOKUP($B$7,Rutas!$B:$AV,45,0)*S$7+VLOOKUP($B$8,Rutas!$B:$AV,45,0)*S$8+VLOOKUP($B$9,Rutas!$B:$AV,45,0)*S$9) ->  | T24: =(VLOOKUP($B$6,Rutas!$B:$AV,45,0)*T$6+VLOOKUP($B$7,Rutas!$B:$AV,45,0)*T$7+VLOOKUP($B$8,Rutas!$B:$AV,45,0)*T$8+VLOOKUP($B$9,Rutas!$B:$AV,45,0)*T$9) ->  | U24: =(VLOOKUP($B$6,Rutas!$B:$AV,45,0)*U$6+VLOOKUP($B$7,Rutas!$B:$AV,45,0)*U$7+VLOOKUP($B$8,Rutas!$B:$AV,45,0)*U$8+VLOOKUP($B$9,Rutas!$B:$AV,45,0)*U$9) ->  | V24: =(VLOOKUP($B$6,Rutas!$B:$AV,45,0)*V$6+VLOOKUP($B$7,Rutas!$B:$AV,45,0)*V$7+VLOOKUP($B$8,Rutas!$B:$AV,45,0)*V$8+VLOOKUP($B$9,Rutas!$B:$AV,45,0)*V$9) ->  | W24: =SUM(Q24:V24) ->  | X24: =W24*4.3333 -> 
B25: Costo por Inhouse | C25: =$N$28/4.3333/6 -> 38461.83432 | D25: 38461.83432 | E25: 38461.83432 | F25: 38461.83432 | G25: 38461.83432 | H25: 38461.83432 | I25: =SUM(C25:H25) -> 230771.0059 | J25: =I25*4.3333 -> 1000000 | P25: Costo por Inhouse | Q25: =$N$28/4.3333/6 -> 38461.83432 | R25: 38461.83432 | S25: 38461.83432 | T25: 38461.83432 | U25: 38461.83432 | V25: 38461.83432 | W25: =SUM(Q25:V25) -> 230771.0059 | X25: =W25*4.3333 -> 1000000
B26: Costo Horas Extra Fuera Ruta | C26: =SUM(C6:C9)*$N$26*'Costos Vehículo'!$K$28+SUM(C14:C17)*$N$26*'Costos Vehículo'!$K$29 -> 0 | D26: =SUM(D6:D9)*$N$26*'Costos Vehículo'!$K$28+SUM(D14:D17)*$N$26*'Costos Vehículo'!$K$29 -> 0 | E26: =SUM(E6:E9)*$N$26*'Costos Vehículo'!$K$28+SUM(E14:E17)*$N$26*'Costos Vehículo'!$K$29 -> 0 | F26: =SUM(F6:F9)*$N$26*'Costos Vehículo'!$K$28+SUM(F14:F17)*$N$26*'Costos Vehículo'!$K$29 -> 0 | G26: =SUM(G6:G9)*$N$26*'Costos Vehículo'!$K$28+SUM(G14:G17)*$N$26*'Costos Vehículo'!$K$29 -> 0 | H26: =SUM(H6:H9)*$N$26*'Costos Vehículo'!$K$28+SUM(H14:H17)*$N$26*'Costos Vehículo'!$K$29 -> 0 | I26: =SUM(C26:H26) -> 0 | J26: =I26*4.3333 -> 0 | L26: Horas extra Promedio Ruta | N26: 0 | P26: Costo Horas Extra Fuera Ruta | Q26: =Q$18*$N$26*'Costos Vehículo'!$K$28 -> 0 | R26: =R$18*$N$26*'Costos Vehículo'!$K$28 -> 0 | S26: =S$18*$N$26*'Costos Vehículo'!$K$28 -> 0 | T26: =T$18*$N$26*'Costos Vehículo'!$K$28 -> 0 | U26: =U$18*$N$26*'Costos Vehículo'!$K$28 -> 0 | V26: =V$18*$N$26*'Costos Vehículo'!$K$28 -> 0 | W26: =SUM(Q26:V26) -> 0 | X26: =W26*4.3333 -> 0
B27: Costo Por Novedades | C27: =$N$27/6 -> 0 | D27: 0 | E27: 0 | F27: 0 | G27: 0 | H27: 0 | I27: =SUM(C27:H27) -> 0 | J27: =I27*4.3333 -> 0 | L27: Novedades Promedio Semana | N27: 0 | P27: Costo Por Novedades | Q27: =$N$27/6 -> 0 | R27: 0 | S27: 0 | T27: 0 | U27: 0 | V27: 0 | W27: =SUM(Q27:V27) -> 0 | X27: =W27*4.3333 -> 0
B28: Total Costos Adicionales | C28: =SUM(C24:C27) -> 198246.2093 | D28: 198246.2093 | E28: 198246.2093 | F28: 198246.2093 | G28: 198246.2093 | H28: 198246.2093 | I28: =SUM(C28:H28) -> 1189477.256 | J28: =I28*4.3333 -> 5154361.793 | L28: Salarios Inhouse | N28: 1000000 | P28: Total Costos Adicionales | Q28: =SUM(Q24:Q27) ->  | W28: =SUM(Q28:V28) ->  | X28: =W28*4.3333 -> 
B30: Margen ($) | C30: =C20-C22-SUM(C24:C27) -> 267718.5503 | D30: =D20-D22-SUM(D24:D27) -> 267718.5503 | E30: 267718.5503 | F30: 267718.5503 | G30: 267718.5503 | H30: 267718.5503 | I30: 1606311.302 | J30: 6960628.763 | L30: Variación Costo para Cliente ($) | N30: =J20-$AC$20 -> 43030425.75 | P30: Margen ($) | Q30: =Q20-Q22-SUM(Q24:Q27) -> 
B31: Margen % | C31: =IFERROR(C30/C20,"") -> 0.1617606297 | D31: 0.1617606297 | E31: 0.1617606297 | F31: 0.1617606297 | G31: 0.1617606297 | H31: 0.1617606297 | I31: 0.1617606297 | J31: 0.1617606297 | L31: Variación Costo para Cliente (%) | N31: =IFERROR(J20/$AC$20-1,"") ->  | P31: Margen % | Q31: =Q30/Q20 -> 

Sheet Escenario Actual (hidden)
B2: Operación Dislicores | D2: Operación Actual: Auxiliares por prestación, horas extra pagadas fuera del flete para los auxiliares. | P2: Operación Dislicores | R2: Con fletes actuales y auxiliares por prestación de servicios
B4: Viajes Urbanos Dislicores | C4: Lunes | D4: Martes | E4: Miércoles | F4: Jueves | G4: Viernes | H4: Sábado | I4: Total Semana | J4: Total Mes | L4: Tipo de Vehículo | M4: Flete Propietario | N4: Tarifa Sugerida | P4: Viajes Urbanos Dislicores | Q4: Lunes | R4: Martes | S4: Miércoles | T4: Jueves | U4: Viernes | V4: Sábado | W4: Total Semana | X4: Total Mes | Z4: Variaciòn % | AA4: Variaciòn % | AC4: Variaciòn ($) | AD4: Variaciòn ($)
B5: Carry Aux Prest | C5: 2 | D5: 2 | E5: 2 | F5: 2 | G5: 2 | H5: 2 | I5: 12 | J5: 51.9996 | L5: Carry Aux Prest | M5: 130000 | N5: 257500 | P5: Carry | Q5: 1 | R5: 1 | S5: 1 | T5: 1 | U5: 1 | V5: 1 | W5: 6 | X5: 25.9998 | Z5: 0 | AA5: -2.864375404e-14 | AC5: 0 | AD5: -7.363269106e-09
B6: Luv Aux Prest | C6: 1 | D6: 2 | E6: 2 | F6: 2 | G6: 2 | H6: 1 | I6: 10 | J6: 43.333 | L6: Luv Aux Prest | M6: 150000 | N6: 282500 | P6: Luv | Q6: 1 | R6: 2 | S6: 2 | T6: 2 | U6: 2 | V6: 1 | W6: 10 | X6: 43.333 | Z6: 0 | AA6: -5.8730798e-14 | AC6: 0 | AD6: -1.658918336e-08
B7: NHR Aux Prest | C7: 1 | D7: 6 | E7: 5 | F7: 6 | G7: 5 | H7: 1 | I7: 24 | J7: 103.9992 | L7: NHR Aux Prest | M7: 160000 | N7: 295000 | P7: NHR | Q7: 2 | R7: 7 | S7: 6 | T7: 7 | U7: 6 | V7: 2 | W7: 30 | X7: 129.999 | Z7: 2.220446049e-16 | AA7: -7.949196856e-14 | AC7: 2.910383046e-11 | AD7: -2.345768735e-08
B8: NPR Aux Prest | E8: 1 | G8: 1 | I8: 2 | J8: 8.6666 | L8: NPR Aux Prest | M8: 180000 | N8: 320000 | P8: NPR | S8: 1 | U8: 1 | W8: 2 | X8: 8.6666 | Z8: 0 | AA8: -1.330047184e-13 | AC8: 0 | AD8: -4.254980013e-08
B9: Carry Aux Cond | I9: 0 | J9: 0 | L9: Carry Aux Cond
B10: Luv Aux Cond | I10: 0 | J10: 0 | L10: Luv Aux Cond
B11: NHR Aux Cond | I11: 0 | J11: 0 | L11: NHR Aux Cond
B12: NPR Aux Cond | I12: 0 | J12: 0 | L12: NPR Aux Cond
B13: Carry Aux Temp | I13: 0 | J13: 0 | L13: Carry Aux Temp
B14: Luv Aux Temp | I14: 0 | J14: 0 | L14: Luv Aux Temp
B15: NHR Aux Temp | I15: 0 | J15: 0 | L15: NHR Aux Temp
B16: NPR Aux Temp | I16: 0 | J16: 0 | L16: NPR Aux Temp
B17: Total Viajes | C17: 4 | D17: 10 | E17: 10 | F17: 10 | G17: 10 | H17: 4 | I17: 48 | J17: 207.9984 | P17: Total Viajes | Q17: 4 | R17: 10 | S17: 10 | T17: 10 | U17: 10 | V17: 4 | W17: 48 | X17: 207.9984
M18: Tarifas Actuales
B19: Tarifa Cliente | C19: 1092500 | D19: 2850000 | E19: 2875000 | F19: 2850000 | G19: 2875000 | H19: 1092500 | I19: 13635000 | J19: 59084545.5 | L19: Tipo Vehículo | M19: Flete tercero | N19: Tarifa Cliente | P19: Tarifa Cliente | Q19: 1130000 | R19: 2887500 | S19: 2912500 | T19: 2887500 | U19: 2912500 | V19: 1130000 | W19: 13860000 | X19: 60059538 | Z19: Total Mes Cliente Actual | AC19: 59084545.5
L20: Carry | M20: 130000 | N20: 257500
B21: Fletes | C21: 570000 | D21: 1520000 | E21: 1540000 | F21: 1520000 | G21: 1540000 | H21: 570000 | I21: 7260000 | J21: 31459758 | L21: Luv | M21: 150000 | N21: 282500 | P21: Fletes | Q21: 600000 | R21: 1550000 | S21: 1570000 | T21: 1550000 | U21: 1570000 | V21: 600000 | W21: 7440000 | X21: 32239752
L22: NHR | M22: 160000 | N22: 295000
B23: Costo Auxiliares | C23: 345200 | D23: 863000 | E23: 863000 | F23: 863000 | G23: 863000 | H23: 345200 | I23: 4142400 | J23: 17950261.92 | L23: NPR | M23: 180000 | N23: 320000 | P23: Costo Auxiliares
B24: Costo por Inhouse | C24: 115385.503 | D24: 115385.503 | E24: 115385.503 | F24: 115385.503 | G24: 115385.503 | H24: 115385.503 | I24: 692313.0178 | J24: 3000000 | P24: Costo por Inhouse | Q24: 115385.503 | R24: 115385.503 | S24: 115385.503 | T24: 115385.503 | U24: 115385.503 | V24: 115385.503 | W24: 692313.0178 | X24: 3000000
B25: Costo Horas Extra Fuera Ruta | C25: 107875 | D25: 269687.5 | E25: 269687.5 | F25: 269687.5 | G25: 269687.5 | H25: 107875 | I25: 1294500 | J25: 5609456.85 | L25: Horas extra Promedio Ruta | N25: 2 | P25: Costo Horas Extra Fuera Ruta | Q25: 107875 | R25: 269687.5 | S25: 269687.5 | T25: 269687.5 | U25: 269687.5 | V25: 107875 | W25: 1294500 | X25: 5609456.85
B26: Costo Por Novedades | C26: 0 | D26: 0 | E26: 0 | F26: 0 | G26: 0 | H26: 0 | I26: 0 | J26: 0 | L26: Novedades Promedio Semana | N26: 0 | P26: Costo Por Novedades | Q26: 0 | R26: 0 | S26: 0 | T26: 0 | U26: 0 | V26: 0 | W26: 0 | X26: 0
B27: Total Costos Adicionales | C27: 568460.503 | D27: 1248073.003 | E27: 1248073.003 | F27: 1248073.003 | G27: 1248073.003 | H27: 568460.503 | I27: 6129213.018 | J27: 26559718.77 | L27: Salarios Inhouse | N27: 3000000 | P27: Total Costos Adicionales
B29: Margen ($) | C29: -45960.50297 | D29: 81926.99703 | E29: 86926.99703 | F29: 81926.99703 | G29: 86926.99703 | H29: -45960.50297 | I29: 245786.9822 | J29: 1065068.73 | L29: Variación Costo para Cliente ($) | N29: 3.703683615e-05 | P29: Margen ($)
B30: Margen % | C30: -0.04206911027 | D30: 0.02874631475 | E30: 0.03023547723 | F30: 0.02874631475 | G30: 0.03023547723 | H30: -0.04206911027 | I30: 0.01802618131 | J30: 0.01802618131 | L30: Variación Costo para Cliente (%) | N30: 6.268319197e-13 | P30: Margen %
